Workbook

Sheet Disclaimer
B2: Táto verzia databázy nákupov Zdravotníckej techniky je testovacia verzia, s obmedzeným rozsahom zmlúv, ako aj informáciami o nákupoch. Jej cieľom je dopomôcť poskytovateľom zdravotnej starostlivosti pri stanovovaní PHZ a vyjednávaní s dodávateľmi zdravotníckej techniky. Databáza je vytváraná ručným či automatickým prepisom realizovaných nákupov v ČR a SR, čo determinuje aj detail informácií o každom nákupe. V niektorých prípadoch sú dostupné informácie na úrovni každej položky, v niektorých len za celkový sumárne nákup. Položky v databáze nie sú vždy zjednotené a databáza bola expandovaná postupne, ako sa tvorila. Aj z tohto dôvodu sa zverejnila približne len polovica fuknčnej databázy. Napriek tomu obsahu približne 900 nákupov najčastejšie kupovaných položiek. Ceny sú zobrazené aj pôvodných hodnotách, aj prepočítané k posledným hodnotám inflácie EUROSTATU zdravotníckej techniky. Dostupnosť informácií o cene je označená v stĺpci "detail ceny položky". Pri stanovovaní optimálnej hodnoty PZS daného nákupu postupuje IZP tak, že so zreteľom platobným podmienok daného PZS sa stanovuje cena ako maximálne z priemeru, alebo prvého quintileu dostupných cien, očistených o extrémne hodnoty, či príliš staré nákupy. V exceli je predpripravené aj grafické rozhranie pre detailné analýzy v databáze. V prípade záujmu o konkrétne zmluvy, či iné otázky ohľadom využitia a funkcionality databáz, skontaktuje prosím Martina Smatanu z Inštitútu zdravotnej politky (martin.smatana@health.gov.sk; 0905 485 687).

Sheet Zdroj
A1: Kategória | B1: Sub-kategória | C1: Položka | D1: Detail položky | E1: Technické parametre položky | F1: Ostatné detaily | G1: Názov zostavy | H1: Názov položky | I1: Zameranie prístroja | J1: Výrobca | K1: Detail ceny položky | L1: HW / SW | M1: Nákupca | N1: Krajina nákupcu | O1: Dodávateľ | P1: Dodávateľ IČO | Q1: Počet kusov | R1: Cena bez DPH | S1: Cena s DPH | T1: Výmenný kurz | U1: Cena EUR bez DPH | V1: Cena EUR s DPH | W1: Cena EUR bez DPH za jednotku | X1: Cena EUR s DPH za jednotku | Y1: HICP k dátumu nákupu (2015 = 100) | Z1: Cena EUR bez DPH za jednotku HICP k 11/2016 | AA1: Cena EUR s DPH za jednotku HICP k 11/2016 | AB1: Rok nákupu | AC1: Mesiac nákupu | AD1: Deň nákupu | AE1: Dátum pre účely mapy | AF1: Zaškolenie | AG1: Doprava a inštalácia | AH1: Financovanie | AI1: Nakupované v rámci komplexnej dodávky | AJ1: Servis | AK1: Dĺžka záručnej doby (mesiace) | AL1: Dĺžka pozáručného servisu (mesiace) | AM1: Maximálny reakčný čas na opravu (hodiny) | AN1: Odkaz | AO1: Treba dovypýtať | AP1: Výnimočný nákup | AQ1: Účastník súťaže 1 | AR1: Účastník súťaže 2 | AS1: Účastník súťaže 3 | AT1: Mesto nákupcu (link) | AU1: Ulica nákupcu (link) | AV1: M | AW1: Dátum + M + mesiac | BC1: Mesto nákupcu | BD1: Ulica nákupcu | BE1: check | BF1: check2 | BG1: check | BH1: check2
A2: SPECT/CT | C2: Celá zostava | G2: Siemens symbia Intevo 2 | K2: sumárna cena | L2: HW/SW | M2: Fakultní nemocnice Ostrava | N2: ČR | O2: EDOMED a.s. | Q2: 1 | R2: 15120000 | S2: =R2*1.21 -> 18295200 | T2: =IF(N2="SR",1,IF(AC2="",VLOOKUP(AW2,'CZKEUR Xchange rate'!$D$13:$E$234,2,FALSE),VLOOKUP(AW2,'CZKEUR Xchange rate'!$A$13:$B$234,2,FALSE))) -> 27.253 | U2: =R2/T2 -> 554801.3063 | V2: =S2/T2 -> 671309.5806 | W2: =U2/Q2 -> 554801.3063 | X2: =V2/Q2 -> 671309.5806 | Y2: =VLOOKUP(AW2,'Cenové indexy '!$D$7:$E$200,2,FALSE) -> 99.88 | Z2: =W2/Y2*'Cenové indexy '!$E$149 -> 572854.012 | AA2: =Z2*1.2 -> 687424.8144 | AB2: 2015 | AE2: =DATE(AB2,AC2,AD2) -> 2014-11-30 | AF2: Áno | AG2: Áno | AH2: Neurčené | AI2: Nie | AJ2: 24 mesiacov zadarmo, potom (?) | AN2: Zmluva 1_MS | AT2: =VLOOKUP(M2,Adresy!$A$4:$C$156,2,FALSE) -> Ostrava | AU2: =VLOOKUP(M2,Adresy!$A$4:$C$156,3,FALSE) -> 17. listopadu | AV2: M | AW2: =IF(AC2="",CONCATENATE(AB2,AV2,"06"),IF(LEN(AC2)=1,CONCATENATE(AB2,AV2,"0"&AC2),CONCATENATE(AB2,AV2,AC2))) -> 2015M06 | BC2: =VLOOKUP(M2,Adresy!$A$3:$C$122,2,FALSE) -> Ostrava | BD2: =VLOOKUP(M2,Adresy!$A$3:$C$122,3,FALSE) -> 17. listopadu | BE2: =IF(BC2<>AT2,1,0) -> 0 | BF2: 0 | BG2: 0 | BH2: 0
A3: SPECT/CT | C3: Detektory 3/8 s nízkym profilom | G3: Siemens symbia Intevo 2 | K3: bez položkovej identifikácie ceny (v rámci sumárnej ceny) | L3: HW | M3: Fakultní nemocnice Ostrava | N3: ČR | O3: EDOMED a.s. | Q3: 2 | T3: =IF(N3="SR",1,IF(AC3="",VLOOKUP(AW3,'CZKEUR Xchange rate'!$D$13:$E$234,2,FALSE),VLOOKUP(AW3,'CZKEUR Xchange rate'!$A$13:$B$234,2,FALSE))) -> 27.253 | U3: =R3/T3 -> 0 | V3: =S3/T3 -> 0 | Y3: =VLOOKUP(AW3,'Cenové indexy '!$D$7:$E$200,2,FALSE) -> 99.88 | Z3: =W3/Y3*'Cenové indexy '!$E$149 -> 0 | AA3: 0 | AB3: 2015 | AE3: 2014-11-30 | AF3: Áno | AG3: Áno | AH3: Neurčené | AI3: Nie | AJ3: 24 mesiacov zadarmo, potom (?) | AN3: Zmluva 1_MS | AT3: =VLOOKUP(M3,Adresy!$A$4:$C$156,2,FALSE) -> Ostrava | AU3: =VLOOKUP(M3,Adresy!$A$4:$C$156,3,FALSE) -> 17. listopadu | AV3: M | AW3: =IF(AC3="",CONCATENATE(AB3,AV3,"06"),IF(LEN(AC3)=1,CONCATENATE(AB3,AV3,"0"&AC3),CONCATENATE(AB3,AV3,AC3))) -> 2015M06 | BC3: =VLOOKUP(M3,Adresy!$A$3:$C$122,2,FALSE) -> Ostrava | BD3: =VLOOKUP(M3,Adresy!$A$3:$C$122,3,FALSE) -> 17. listopadu | BE3: 0 | BF3: 0 | BG3: 0 | BH3: 0
A4: SPECT/CT | C4: Kaudálne naklápanie | G4: Siemens symbia Intevo 2 | K4: bez položkovej identifikácie ceny (v rámci sumárnej ceny) | L4: HW | M4: Fakultní nemocnice Ostrava | N4: ČR | O4: EDOMED a.s. | Q4: 1 | T4: =IF(N4="SR",1,IF(AC4="",VLOOKUP(AW4,'CZKEUR Xchange rate'!$D$13:$E$234,2,FALSE),VLOOKUP(AW4,'CZKEUR Xchange rate'!$A$13:$B$234,2,FALSE))) -> 27.253 | U4: 0 | V4: 0 | Y4: =VLOOKUP(AW4,'Cenové indexy '!$D$7:$E$200,2,FALSE) -> 99.88 | Z4: =W4/Y4*'Cenové indexy '!$E$149 -> 0 | AA4: 0 | AB4: 2015 | AE4: 2014-11-30 | AF4: Áno | AG4: Áno | AH4: Neurčené | AI4: Nie | AJ4: 24 mesiacov zadarmo, potom (?) | AN4: Zmluva 1_MS | AT4: =VLOOKUP(M4,Adresy!$A$4:$C$156,2,FALSE) -> Ostrava | AU4: =VLOOKUP(M4,Adresy!$A$4:$C$156,3,FALSE) -> 17. listopadu | AV4: M | AW4: 2015M06 | BC4: =VLOOKUP(M4,Adresy!$A$3:$C$122,2,FALSE) -> Ostrava | BD4: =VLOOKUP(M4,Adresy!$A$3:$C$122,3,FALSE) -> 17. listopadu | BE4: 0 | BF4: 0 | BG4: 0 | BH4: 0
A5: SPECT/CT | C5: Kolimátor pre nízke energie, vysoké rozlíšenie | G5: Siemens symbia Intevo 2 | K5: bez položkovej identifikácie ceny (v rámci sumárnej ceny) | L5: HW | M5: Fakultní nemocnice Ostrava | N5: ČR | O5: EDOMED a.s. | Q5: 2 | T5: =IF(N5="SR",1,IF(AC5="",VLOOKUP(AW5,'CZKEUR Xchange rate'!$D$13:$E$234,2,FALSE),VLOOKUP(AW5,'CZKEUR Xchange rate'!$A$13:$B$234,2,FALSE))) -> 27.253 | U5: 0 | V5: 0 | Y5: =VLOOKUP(AW5,'Cenové indexy '!$D$7:$E$200,2,FALSE) -> 99.88 | Z5: =W5/Y5*'Cenové indexy '!$E$149 -> 0 | AA5: 0 | AB5: 2015 | AE5: 2014-11-30 | AF5: Áno | AG5: Áno | AH5: Neurčené | AI5: Nie | AJ5: 24 mesiacov zadarmo, potom (?) | AN5: Zmluva 1_MS | AT5: =VLOOKUP(M5,Adresy!$A$4:$C$156,2,FALSE) -> Ostrava | AU5: =VLOOKUP(M5,Adresy!$A$4:$C$156,3,FALSE) -> 17. listopadu | AV5: M | AW5: 2015M06 | BC5: =VLOOKUP(M5,Adresy!$A$3:$C$122,2,FALSE) -> Ostrava | BD5: =VLOOKUP(M5,Adresy!$A$3:$C$122,3,FALSE) -> 17. listopadu | BE5: 0 | BF5: 0 | BG5: 0 | BH5: 0
A6: SPECT/CT | C6: Kolimátor pre stredné energie | G6: Siemens symbia Intevo 2 | K6: bez položkovej identifikácie ceny (v rámci sumárnej ceny) | L6: HW | M6: Fakultní nemocnice Ostrava | N6: ČR | O6: EDOMED a.s. | Q6: 2 | T6: =IF(N6="SR",1,IF(AC6="",VLOOKUP(AW6,'CZKEUR Xchange rate'!$D$13:$E$234,2,FALSE),VLOOKUP(AW6,'CZKEUR Xchange rate'!$A$13:$B$234,2,FALSE))) -> 27.253 | U6: 0 | V6: 0 | Y6: =VLOOKUP(AW6,'Cenové indexy '!$D$7:$E$200,2,FALSE) -> 99.88 | Z6: =W6/Y6*'Cenové indexy '!$E$149 -> 0 | AA6: 0 | AB6: 2015 | AE6: 2014-11-30 | AF6: Áno | AG6: Áno | AH6: Neurčené | AI6: Nie | AJ6: 24 mesiacov zadarmo, potom (?) | AN6: Zmluva 1_MS | AT6: =VLOOKUP(M6,Adresy!$A$4:$C$156,2,FALSE) -> Ostrava | AU6: =VLOOKUP(M6,Adresy!$A$4:$C$156,3,FALSE) -> 17. listopadu | AV6: M | AW6: 2015M06 | BC6: =VLOOKUP(M6,Adresy!$A$3:$C$122,2,FALSE) -> Ostrava | BD6: =VLOOKUP(M6,Adresy!$A$3:$C$122,3,FALSE) -> 17. listopadu | BE6: 0 | BF6: 0 | BG6: 0 | BH6: 0
A7: SPECT/CT | C7: Kolimátor pre vysoké energie | G7: Siemens symbia Intevo 2 | K7: bez položkovej identifikácie ceny (v rámci sumárnej ceny) | L7: HW | M7: Fakultní nemocnice Ostrava | N7: ČR | O7: EDOMED a.s. | Q7: 2 | T7: =IF(N7="SR",1,IF(AC7="",VLOOKUP(AW7,'CZKEUR Xchange rate'!$D$13:$E$234,2,FALSE),VLOOKUP(AW7,'CZKEUR Xchange rate'!$A$13:$B$234,2,FALSE))) -> 27.253 | U7: 0 | V7: 0 | Y7: =VLOOKUP(AW7,'Cenové indexy '!$D$7:$E$200,2,FALSE) -> 99.88 | Z7: =W7/Y7*'Cenové indexy '!$E$149 -> 0 | AA7: 0 | AB7: 2015 | AE7: 2014-11-30 | AF7: Áno | AG7: Áno | AH7: Neurčené | AI7: Nie | AJ7: 24 mesiacov zadarmo, potom (?) | AN7: Zmluva 1_MS | AT7: =VLOOKUP(M7,Adresy!$A$4:$C$156,2,FALSE) -> Ostrava | AU7: =VLOOKUP(M7,Adresy!$A$4:$C$156,3,FALSE) -> 17. listopadu | AV7: M | AW7: 2015M06 | BC7: =VLOOKUP(M7,Adresy!$A$3:$C$122,2,FALSE) -> Ostrava | BD7: =VLOOKUP(M7,Adresy!$A$3:$C$122,3,FALSE) -> 17. listopadu | BE7: 0 | BF7: 0 | BG7: 0 | BH7: 0
A8: SPECT/CT | C8: Symbia - sada pre zvýšenie produktivity | G8: Siemens symbia Intevo 2 | K8: bez položkovej identifikácie ceny (v rámci sumárnej ceny) | L8: HW | M8: Fakultní nemocnice Ostrava | N8: ČR | O8: EDOMED a.s. | Q8: 1 | T8: =IF(N8="SR",1,IF(AC8="",VLOOKUP(AW8,'CZKEUR Xchange rate'!$D$13:$E$234,2,FALSE),VLOOKUP(AW8,'CZKEUR Xchange rate'!$A$13:$B$234,2,FALSE))) -> 27.253 | U8: 0 | V8: 0 | Y8: =VLOOKUP(AW8,'Cenové indexy '!$D$7:$E$200,2,FALSE) -> 99.88 | Z8: =W8/Y8*'Cenové indexy '!$E$149 -> 0 | AA8: 0 | AB8: 2015 | AE8: 2014-11-30 | AF8: Áno | AG8: Áno | AH8: Neurčené | AI8: Nie | AJ8: 24 mesiacov zadarmo, potom (?) | AN8: Zmluva 1_MS | AT8: =VLOOKUP(M8,Adresy!$A$4:$C$156,2,FALSE) -> Ostrava | AU8: =VLOOKUP(M8,Adresy!$A$4:$C$156,3,FALSE) -> 17. listopadu | AV8: M | AW8: 2015M06 | BC8: =VLOOKUP(M8,Adresy!$A$3:$C$122,2,FALSE) -> Ostrava | BD8: =VLOOKUP(M8,Adresy!$A$3:$C$122,3,FALSE) -> 17. listopadu | BE8: 0 | BF8: 0 | BG8: 0 | BH8: 0
A9: SPECT/CT | C9: Školenie na AutoQC | G9: Siemens symbia Intevo 2 | K9: bez položkovej identifikácie ceny (v rámci sumárnej ceny) | L9: HW | M9: Fakultní nemocnice Ostrava | N9: ČR | O9: EDOMED a.s. | Q9: 1 | T9: =IF(N9="SR",1,IF(AC9="",VLOOKUP(AW9,'CZKEUR Xchange rate'!$D$13:$E$234,2,FALSE),VLOOKUP(AW9,'CZKEUR Xchange rate'!$A$13:$B$234,2,FALSE))) -> 27.253 | U9: 0 | V9: 0 | Y9: =VLOOKUP(AW9,'Cenové indexy '!$D$7:$E$200,2,FALSE) -> 99.88 | Z9: =W9/Y9*'Cenové indexy '!$E$149 -> 0 | AA9: 0 | AB9: 2015 | AE9: 2014-11-30 | AF9: Áno | AG9: Áno | AH9: Neurčené | AI9: Nie | AJ9: 24 mesiacov zadarmo, potom (?) | AN9: Zmluva 1_MS | AT9: =VLOOKUP(M9,Adresy!$A$4:$C$156,2,FALSE) -> Ostrava | AU9: =VLOOKUP(M9,Adresy!$A$4:$C$156,3,FALSE) -> 17. listopadu | AV9: M | AW9: 2015M06 | BC9: =VLOOKUP(M9,Adresy!$A$3:$C$122,2,FALSE) -> Ostrava | BD9: =VLOOKUP(M9,Adresy!$A$3:$C$122,3,FALSE) -> 17. listopadu | BE9: 0 | BF9: 0 | BG9: 0 | BH9: 0
A10: SPECT/CT | C10: Súprava pre zrovnanie polohy zdrojov AutoQC | G10: Siemens symbia Intevo 2 | K10: bez položkovej identifikácie ceny (v rámci sumárnej ceny) | L10: HW | M10: Fakultní nemocnice Ostrava | N10: ČR | O10: EDOMED a.s. | Q10: 1 | T10: =IF(N10="SR",1,IF(AC10="",VLOOKUP(AW10,'CZKEUR Xchange rate'!$D$13:$E$234,2,FALSE),VLOOKUP(AW10,'CZKEUR Xchange rate'!$A$13:$B$234,2,FALSE))) -> 27.253 | U10: 0 | V10: 0 | Y10: =VLOOKUP(AW10,'Cenové indexy '!$D$7:$E$200,2,FALSE) -> 99.88 | Z10: =W10/Y10*'Cenové indexy '!$E$149 -> 0 | AA10: 0 | AB10: 2015 | AE10: 2014-11-30 | AF10: Áno | AG10: Áno | AH10: Neurčené | AI10: Nie | AJ10: 24 mesiacov zadarmo, potom (?) | AN10: Zmluva 1_MS | AT10: =VLOOKUP(M10,Adresy!$A$4:$C$156,2,FALSE) -> Ostrava | AU10: =VLOOKUP(M10,Adresy!$A$4:$C$156,3,FALSE) -> 17. listopadu | AV10: M | AW10: 2015M06 | BC10: =VLOOKUP(M10,Adresy!$A$3:$C$122,2,FALSE) -> Ostrava | BD10: =VLOOKUP(M10,Adresy!$A$3:$C$122,3,FALSE) -> 17. listopadu | BE10: 0 | BF10: 0 | BG10: 0 | BH10: 0
A11: SPECT/CT | C11: Sada zdrojov auto QC | G11: Siemens symbia Intevo 2 | K11: bez položkovej identifikácie ceny (v rámci sumárnej ceny) | L11: HW | M11: Fakultní nemocnice Ostrava | N11: ČR | O11: EDOMED a.s. | Q11: 1 | T11: =IF(N11="SR",1,IF(AC11="",VLOOKUP(AW11,'CZKEUR Xchange rate'!$D$13:$E$234,2,FALSE),VLOOKUP(AW11,'CZKEUR Xchange rate'!$A$13:$B$234,2,FALSE))) -> 27.253 | U11: 0 | V11: 0 | Y11: =VLOOKUP(AW11,'Cenové indexy '!$D$7:$E$200,2,FALSE) -> 99.88 | Z11: =W11/Y11*'Cenové indexy '!$E$149 -> 0 | AA11: 0 | AB11: 2015 | AE11: 2014-11-30 | AF11: Áno | AG11: Áno | AH11: Neurčené | AI11: Nie | AJ11: 24 mesiacov zadarmo, potom (?) | AN11: Zmluva 1_MS | AT11: =VLOOKUP(M11,Adresy!$A$4:$C$156,2,FALSE) -> Ostrava | AU11: =VLOOKUP(M11,Adresy!$A$4:$C$156,3,FALSE) -> 17. listopadu | AV11: M | AW11: 2015M06 | BC11: =VLOOKUP(M11,Adresy!$A$3:$C$122,2,FALSE) -> Ostrava | BD11: =VLOOKUP(M11,Adresy!$A$3:$C$122,3,FALSE) -> 17. listopadu | BE11: 0 | BF11: 0 | BG11: 0 | BH11: 0
A12: SPECT/CT | C12: Vozík pre kolimátor | G12: Siemens symbia Intevo 2 | K12: bez položkovej identifikácie ceny (v rámci sumárnej ceny) | L12: HW | M12: Fakultní nemocnice Ostrava | N12: ČR | O12: EDOMED a.s. | Q12: 1 | T12: =IF(N12="SR",1,IF(AC12="",VLOOKUP(AW12,'CZKEUR Xchange rate'!$D$13:$E$234,2,FALSE),VLOOKUP(AW12,'CZKEUR Xchange rate'!$A$13:$B$234,2,FALSE))) -> 27.253 | U12: 0 | V12: 0 | Y12: =VLOOKUP(AW12,'Cenové indexy '!$D$7:$E$200,2,FALSE) -> 99.88 | Z12: =W12/Y12*'Cenové indexy '!$E$149 -> 0 | AA12: 0 | AB12: 2015 | AE12: 2014-11-30 | AF12: Áno | AG12: Áno | AH12: Neurčené | AI12: Nie | AJ12: 24 mesiacov zadarmo, potom (?) | AN12: Zmluva 1_MS | AT12: =VLOOKUP(M12,Adresy!$A$4:$C$156,2,FALSE) -> Ostrava | AU12: =VLOOKUP(M12,Adresy!$A$4:$C$156,3,FALSE) -> 17. listopadu | AV12: M | AW12: 2015M06 | BC12: =VLOOKUP(M12,Adresy!$A$3:$C$122,2,FALSE) -> Ostrava | BD12: =VLOOKUP(M12,Adresy!$A$3:$C$122,3,FALSE) -> 17. listopadu | BE12: 0 | BF12: 0 | BG12: 0 | BH12: 0
A13: SPECT/CT | C13: Špeciálny rekonštrukčný systém | G13: Siemens symbia Intevo 2 | K13: bez položkovej identifikácie ceny (v rámci sumárnej ceny) | L13: HW | M13: Fakultní nemocnice Ostrava | N13: ČR | O13: EDOMED a.s. | Q13: 1 | T13: =IF(N13="SR",1,IF(AC13="",VLOOKUP(AW13,'CZKEUR Xchange rate'!$D$13:$E$234,2,FALSE),VLOOKUP(AW13,'CZKEUR Xchange rate'!$A$13:$B$234,2,FALSE))) -> 27.253 | U13: 0 | V13: 0 | Y13: =VLOOKUP(AW13,'Cenové indexy '!$D$7:$E$200,2,FALSE) -> 99.88 | Z13: =W13/Y13*'Cenové indexy '!$E$149 -> 0 | AA13: 0 | AB13: 2015 | AE13: 2014-11-30 | AF13: Áno | AG13: Áno | AH13: Neurčené | AI13: Nie | AJ13: 24 mesiacov zadarmo, potom (?) | AN13: Zmluva 1_MS | AT13: =VLOOKUP(M13,Adresy!$A$4:$C$156,2,FALSE) -> Ostrava | AU13: =VLOOKUP(M13,Adresy!$A$4:$C$156,3,FALSE) -> 17. listopadu | AV13: M | AW13: 2015M06 | BC13: =VLOOKUP(M13,Adresy!$A$3:$C$122,2,FALSE) -> Ostrava | BD13: =VLOOKUP(M13,Adresy!$A$3:$C$122,3,FALSE) -> 17. listopadu | BE13: 0 | BF13: 0 | BG13: 0 | BH13: 0
A14: SPECT/CT | C14: xSPECT QUANT Tc99m | G14: Siemens symbia Intevo 2 | K14: bez položkovej identifikácie ceny (v rámci sumárnej ceny) | L14: HW | M14: Fakultní nemocnice Ostrava | N14: ČR | O14: EDOMED a.s. | Q14: 1 | T14: =IF(N14="SR",1,IF(AC14="",VLOOKUP(AW14,'CZKEUR Xchange rate'!$D$13:$E$234,2,FALSE),VLOOKUP(AW14,'CZKEUR Xchange rate'!$A$13:$B$234,2,FALSE))) -> 27.253 | U14: 0 | V14: 0 | Y14: =VLOOKUP(AW14,'Cenové indexy '!$D$7:$E$200,2,FALSE) -> 99.88 | Z14: =W14/Y14*'Cenové indexy '!$E$149 -> 0 | AA14: 0 | AB14: 2015 | AE14: 2014-11-30 | AF14: Áno | AG14: Áno | AH14: Neurčené | AI14: Nie | AJ14: 24 mesiacov zadarmo, potom (?) | AN14: Zmluva 1_MS | AT14: =VLOOKUP(M14,Adresy!$A$4:$C$156,2,FALSE) -> Ostrava | AU14: =VLOOKUP(M14,Adresy!$A$4:$C$156,3,FALSE) -> 17. listopadu | AV14: M | AW14: 2015M06 | BC14: =VLOOKUP(M14,Adresy!$A$3:$C$122,2,FALSE) -> Ostrava | BD14: =VLOOKUP(M14,Adresy!$A$3:$C$122,3,FALSE) -> 17. listopadu | BE14: 0 | BF14: 0 | BG14: 0 | BH14: 0
A15: SPECT/CT | C15: xSPECT Bone Bundle | G15: Siemens symbia Intevo 2 | K15: bez položkovej identifikácie ceny (v rámci sumárnej ceny) | L15: HW | M15: Fakultní nemocnice Ostrava | N15: ČR | O15: EDOMED a.s. | Q15: 1 | T15: =IF(N15="SR",1,IF(AC15="",VLOOKUP(AW15,'CZKEUR Xchange rate'!$D$13:$E$234,2,FALSE),VLOOKUP(AW15,'CZKEUR Xchange rate'!$A$13:$B$234,2,FALSE))) -> 27.253 | U15: 0 | V15: 0 | Y15: =VLOOKUP(AW15,'Cenové indexy '!$D$7:$E$200,2,FALSE) -> 99.88 | Z15: =W15/Y15*'Cenové indexy '!$E$149 -> 0 | AA15: 0 | AB15: 2015 | AE15: 2014-11-30 | AF15: Áno | AG15: Áno | AH15: Neurčené | AI15: Nie | AJ15: 24 mesiacov zadarmo, potom (?) | AN15: Zmluva 1_MS | AT15: =VLOOKUP(M15,Adresy!$A$4:$C$156,2,FALSE) -> Ostrava | AU15: =VLOOKUP(M15,Adresy!$A$4:$C$156,3,FALSE) -> 17. listopadu | AV15: M | AW15: 2015M06 | BC15: =VLOOKUP(M15,Adresy!$A$3:$C$122,2,FALSE) -> Ostrava | BD15: =VLOOKUP(M15,Adresy!$A$3:$C$122,3,FALSE) -> 17. listopadu | BE15: 0 | BF15: 0 | BG15: 0 | BH15: 0
A16: SPECT/CT | C16: xSPECT quant - súprava kal zdroja | G16: Siemens symbia Intevo 2 | K16: bez položkovej identifikácie ceny (v rámci sumárnej ceny) | L16: HW | M16: Fakultní nemocnice Ostrava | N16: ČR | O16: EDOMED a.s. | Q16: 1 | T16: =IF(N16="SR",1,IF(AC16="",VLOOKUP(AW16,'CZKEUR Xchange rate'!$D$13:$E$234,2,FALSE),VLOOKUP(AW16,'CZKEUR Xchange rate'!$A$13:$B$234,2,FALSE))) -> 27.253 | U16: 0 | V16: 0 | Y16: =VLOOKUP(AW16,'Cenové indexy '!$D$7:$E$200,2,FALSE) -> 99.88 | Z16: =W16/Y16*'Cenové indexy '!$E$149 -> 0 | AA16: 0 | AB16: 2015 | AE16: 2014-11-30 | AF16: Áno | AG16: Áno | AH16: Neurčené | AI16: Nie | AJ16: 24 mesiacov zadarmo, potom (?) | AN16: Zmluva 1_MS | AT16: =VLOOKUP(M16,Adresy!$A$4:$C$156,2,FALSE) -> Ostrava | AU16: =VLOOKUP(M16,Adresy!$A$4:$C$156,3,FALSE) -> 17. listopadu | AV16: M | AW16: 2015M06 | BC16: =VLOOKUP(M16,Adresy!$A$3:$C$122,2,FALSE) -> Ostrava | BD16: =VLOOKUP(M16,Adresy!$A$3:$C$122,3,FALSE) -> 17. listopadu | BE16: 0 | BF16: 0 | BG16: 0 | BH16: 0
A17: SPECT/CT | C17: xSPECT quant - polohové riadenie zdroja | G17: Siemens symbia Intevo 2 | K17: bez položkovej identifikácie ceny (v rámci sumárnej ceny) | L17: HW | M17: Fakultní nemocnice Ostrava | N17: ČR | O17: EDOMED a.s. | Q17: 1 | T17: =IF(N17="SR",1,IF(AC17="",VLOOKUP(AW17,'CZKEUR Xchange rate'!$D$13:$E$234,2,FALSE),VLOOKUP(AW17,'CZKEUR Xchange rate'!$A$13:$B$234,2,FALSE))) -> 27.253 | U17: 0 | V17: 0 | Y17: =VLOOKUP(AW17,'Cenové indexy '!$D$7:$E$200,2,FALSE) -> 99.88 | Z17: =W17/Y17*'Cenové indexy '!$E$149 -> 0 | AA17: 0 | AB17: 2015 | AE17: 2014-11-30 | AF17: Áno | AG17: Áno | AH17: Neurčené | AI17: Nie | AJ17: 24 mesiacov zadarmo, potom (?) | AN17: Zmluva 1_MS | AT17: =VLOOKUP(M17,Adresy!$A$4:$C$156,2,FALSE) -> Ostrava | AU17: =VLOOKUP(M17,Adresy!$A$4:$C$156,3,FALSE) -> 17. listopadu | AV17: M | AW17: 2015M06 | BC17: =VLOOKUP(M17,Adresy!$A$3:$C$122,2,FALSE) -> Ostrava | BD17: =VLOOKUP(M17,Adresy!$A$3:$C$122,3,FALSE) -> 17. listopadu | BE17: 0 | BF17: 0 | BG17: 0 | BH17: 0
A18: SPECT/CT | C18: Interný EKG pre systém Symbia | G18: Siemens symbia Intevo 2 | K18: bez položkovej identifikácie ceny (v rámci sumárnej ceny) | L18: HW | M18: Fakultní nemocnice Ostrava | N18: ČR | O18: EDOMED a.s. | Q18: 1 | T18: =IF(N18="SR",1,IF(AC18="",VLOOKUP(AW18,'CZKEUR Xchange rate'!$D$13:$E$234,2,FALSE),VLOOKUP(AW18,'CZKEUR Xchange rate'!$A$13:$B$234,2,FALSE))) -> 27.253 | U18: 0 | V18: 0 | Y18: =VLOOKUP(AW18,'Cenové indexy '!$D$7:$E$200,2,FALSE) -> 99.88 | Z18: =W18/Y18*'Cenové indexy '!$E$149 -> 0 | AA18: 0 | AB18: 2015 | AE18: 2014-11-30 | AF18: Áno | AG18: Áno | AH18: Neurčené | AI18: Nie | AJ18: 24 mesiacov zadarmo, potom (?) | AN18: Zmluva 1_MS | AT18: =VLOOKUP(M18,Adresy!$A$4:$C$156,2,FALSE) -> Ostrava | AU18: =VLOOKUP(M18,Adresy!$A$4:$C$156,3,FALSE) -> 17. listopadu | AV18: M | AW18: 2015M06 | BC18: =VLOOKUP(M18,Adresy!$A$3:$C$122,2,FALSE) -> Ostrava | BD18: =VLOOKUP(M18,Adresy!$A$3:$C$122,3,FALSE) -> 17. listopadu | BE18: 0 | BF18: 0 | BG18: 0 | BH18: 0
A19: SPECT/CT | C19: Kábel PHS pod podlahou | G19: Siemens symbia Intevo 2 | K19: bez položkovej identifikácie ceny (v rámci sumárnej ceny) | L19: HW | M19: Fakultní nemocnice Ostrava | N19: ČR | O19: EDOMED a.s. | Q19: 1 | T19: =IF(N19="SR",1,IF(AC19="",VLOOKUP(AW19,'CZKEUR Xchange rate'!$D$13:$E$234,2,FALSE),VLOOKUP(AW19,'CZKEUR Xchange rate'!$A$13:$B$234,2,FALSE))) -> 27.253 | U19: 0 | V19: 0 | Y19: =VLOOKUP(AW19,'Cenové indexy '!$D$7:$E$200,2,FALSE) -> 99.88 | Z19: =W19/Y19*'Cenové indexy '!$E$149 -> 0 | AA19: 0 | AB19: 2015 | AE19: 2014-11-30 | AF19: Áno | AG19: Áno | AH19: Neurčené | AI19: Nie | AJ19: 24 mesiacov zadarmo, potom (?) | AN19: Zmluva 1_MS | AT19: =VLOOKUP(M19,Adresy!$A$4:$C$156,2,FALSE) -> Ostrava | AU19: =VLOOKUP(M19,Adresy!$A$4:$C$156,3,FALSE) -> 17. listopadu | AV19: M | AW19: 2015M06 | BC19: =VLOOKUP(M19,Adresy!$A$3:$C$122,2,FALSE) -> Ostrava | BD19: =VLOOKUP(M19,Adresy!$A$3:$C$122,3,FALSE) -> 17. listopadu | BE19: 0 | BF19: 0 | BG19: 0 | BH19: 0
A20: SPECT/CT | C20: Služby diaľkovej diagnostiky | G20: Siemens symbia Intevo 2 | K20: bez položkovej identifikácie ceny (v rámci sumárnej ceny) | L20: HW | M20: Fakultní nemocnice Ostrava | N20: ČR | O20: EDOMED a.s. | Q20: 1 | T20: =IF(N20="SR",1,IF(AC20="",VLOOKUP(AW20,'CZKEUR Xchange rate'!$D$13:$E$234,2,FALSE),VLOOKUP(AW20,'CZKEUR Xchange rate'!$A$13:$B$234,2,FALSE))) -> 27.253 | U20: 0 | V20: 0 | Y20: =VLOOKUP(AW20,'Cenové indexy '!$D$7:$E$200,2,FALSE) -> 99.88 | Z20: =W20/Y20*'Cenové indexy '!$E$149 -> 0 | AA20: 0 | AB20: 2015 | AE20: 2014-11-30 | AF20: Áno | AG20: Áno | AH20: Neurčené | AI20: Nie | AJ20: 24 mesiacov zadarmo, potom (?) | AN20: Zmluva 1_MS | AT20: =VLOOKUP(M20,Adresy!$A$4:$C$156,2,FALSE) -> Ostrava | AU20: =VLOOKUP(M20,Adresy!$A$4:$C$156,3,FALSE) -> 17. listopadu | AV20: M | AW20: 2015M06 | BC20: =VLOOKUP(M20,Adresy!$A$3:$C$122,2,FALSE) -> Ostrava | BD20: =VLOOKUP(M20,Adresy!$A$3:$C$122,3,FALSE) -> 17. listopadu | BE20: 0 | BF20: 0 | BG20: 0 | BH20: 0
A21: SPECT/CT | C21: Symbia.net | G21: Siemens symbia Intevo 2 | K21: bez položkovej identifikácie ceny (v rámci sumárnej ceny) | L21: SW | M21: Fakultní nemocnice Ostrava | N21: ČR | O21: EDOMED a.s. | Q21: 1 | T21: =IF(N21="SR",1,IF(AC21="",VLOOKUP(AW21,'CZKEUR Xchange rate'!$D$13:$E$234,2,FALSE),VLOOKUP(AW21,'CZKEUR Xchange rate'!$A$13:$B$234,2,FALSE))) -> 27.253 | U21: 0 | V21: 0 | Y21: =VLOOKUP(AW21,'Cenové indexy '!$D$7:$E$200,2,FALSE) -> 99.88 | Z21: =W21/Y21*'Cenové indexy '!$E$149 -> 0 | AA21: 0 | AB21: 2015 | AE21: 2014-11-30 | AF21: Áno | AG21: Áno | AH21: Neurčené | AI21: Nie | AJ21: 24 mesiacov zadarmo, potom (?) | AN21: Zmluva 1_MS | AT21: =VLOOKUP(M21,Adresy!$A$4:$C$156,2,FALSE) -> Ostrava | AU21: =VLOOKUP(M21,Adresy!$A$4:$C$156,3,FALSE) -> 17. listopadu | AV21: M | AW21: 2015M06 | BC21: =VLOOKUP(M21,Adresy!$A$3:$C$122,2,FALSE) -> Ostrava | BD21: =VLOOKUP(M21,Adresy!$A$3:$C$122,3,FALSE) -> 17. listopadu | BE21: 0 | BF21: 0 | BG21: 0 | BH21: 0
A22: SPECT/CT | C22: Server management | G22: Siemens symbia Intevo 2 | K22: bez položkovej identifikácie ceny (v rámci sumárnej ceny) | L22: SW | M22: Fakultní nemocnice Ostrava | N22: ČR | O22: EDOMED a.s. | Q22: 1 | T22: =IF(N22="SR",1,IF(AC22="",VLOOKUP(AW22,'CZKEUR Xchange rate'!$D$13:$E$234,2,FALSE),VLOOKUP(AW22,'CZKEUR Xchange rate'!$A$13:$B$234,2,FALSE))) -> 27.253 | U22: 0 | V22: 0 | Y22: =VLOOKUP(AW22,'Cenové indexy '!$D$7:$E$200,2,FALSE) -> 99.88 | Z22: =W22/Y22*'Cenové indexy '!$E$149 -> 0 | AA22: 0 | AB22: 2015 | AE22: 2014-11-30 | AF22: Áno | AG22: Áno | AH22: Neurčené | AI22: Nie | AJ22: 24 mesiacov zadarmo, potom (?) | AN22: Zmluva 1_MS | AT22: =VLOOKUP(M22,Adresy!$A$4:$C$156,2,FALSE) -> Ostrava | AU22: =VLOOKUP(M22,Adresy!$A$4:$C$156,3,FALSE) -> 17. listopadu | AV22: M | AW22: 2015M06 | BC22: =VLOOKUP(M22,Adresy!$A$3:$C$122,2,FALSE) -> Ostrava | BD22: =VLOOKUP(M22,Adresy!$A$3:$C$122,3,FALSE) -> 17. listopadu | BE22: 0 | BF22: 0 | BG22: 0 | BH22: 0
A23: SPECT/CT | C23: Symbia.net, klient | G23: Siemens symbia Intevo 2 | K23: bez položkovej identifikácie ceny (v rámci sumárnej ceny) | L23: SW | M23: Fakultní nemocnice Ostrava | N23: ČR | O23: EDOMED a.s. | Q23: 2 | T23: =IF(N23="SR",1,IF(AC23="",VLOOKUP(AW23,'CZKEUR Xchange rate'!$D$13:$E$234,2,FALSE),VLOOKUP(AW23,'CZKEUR Xchange rate'!$A$13:$B$234,2,FALSE))) -> 27.253 | U23: 0 | V23: 0 | Y23: =VLOOKUP(AW23,'Cenové indexy '!$D$7:$E$200,2,FALSE) -> 99.88 | Z23: =W23/Y23*'Cenové indexy '!$E$149 -> 0 | AA23: 0 | AB23: 2015 | AE23: 2014-11-30 | AF23: Áno | AG23: Áno | AH23: Neurčené | AI23: Nie | AJ23: 24 mesiacov zadarmo, potom (?) | AN23: Zmluva 1_MS | AT23: =VLOOKUP(M23,Adresy!$A$4:$C$156,2,FALSE) -> Ostrava | AU23: =VLOOKUP(M23,Adresy!$A$4:$C$156,3,FALSE) -> 17. listopadu | AV23: M | AW23: 2015M06 | BC23: =VLOOKUP(M23,Adresy!$A$3:$C$122,2,FALSE) -> Ostrava | BD23: =VLOOKUP(M23,Adresy!$A$3:$C$122,3,FALSE) -> 17. listopadu | BE23: 0 | BF23: 0 | BG23: 0 | BH23: 0
A24: SPECT/CT | C24: Pokročilý engine pre onkológiu | G24: Siemens symbia Intevo 2 | K24: bez položkovej identifikácie ceny (v rámci sumárnej ceny) | L24: SW | M24: Fakultní nemocnice Ostrava | N24: ČR | O24: EDOMED a.s. | Q24: 1 | T24: =IF(N24="SR",1,IF(AC24="",VLOOKUP(AW24,'CZKEUR Xchange rate'!$D$13:$E$234,2,FALSE),VLOOKUP(AW24,'CZKEUR Xchange rate'!$A$13:$B$234,2,FALSE))) -> 27.253 | U24: 0 | V24: 0 | Y24: =VLOOKUP(AW24,'Cenové indexy '!$D$7:$E$200,2,FALSE) -> 99.88 | Z24: =W24/Y24*'Cenové indexy '!$E$149 -> 0 | AA24: 0 | AB24: 2015 | AE24: 2014-11-30 | AF24: Áno | AG24: Áno | AH24: Neurčené | AI24: Nie | AJ24: 24 mesiacov zadarmo, potom (?) | AN24: Zmluva 1_MS | AT24: =VLOOKUP(M24,Adresy!$A$4:$C$156,2,FALSE) -> Ostrava | AU24: =VLOOKUP(M24,Adresy!$A$4:$C$156,3,FALSE) -> 17. listopadu | AV24: M | AW24: 2015M06 | BC24: =VLOOKUP(M24,Adresy!$A$3:$C$122,2,FALSE) -> Ostrava | BD24: =VLOOKUP(M24,Adresy!$A$3:$C$122,3,FALSE) -> 17. listopadu | BE24: 0 | BF24: 0 | BG24: 0 | BH24: 0
A25: SPECT/CT | C25: + pokročilý engine pre onkológiu | G25: Siemens symbia Intevo 2 | K25: bez položkovej identifikácie ceny (v rámci sumárnej ceny) | L25: SW | M25: Fakultní nemocnice Ostrava | N25: ČR | O25: EDOMED a.s. | Q25: 2 | T25: =IF(N25="SR",1,IF(AC25="",VLOOKUP(AW25,'CZKEUR Xchange rate'!$D$13:$E$234,2,FALSE),VLOOKUP(AW25,'CZKEUR Xchange rate'!$A$13:$B$234,2,FALSE))) -> 27.253 | U25: 0 | V25: 0 | Y25: =VLOOKUP(AW25,'Cenové indexy '!$D$7:$E$200,2,FALSE) -> 99.88 | Z25: =W25/Y25*'Cenové indexy '!$E$149 -> 0 | AA25: 0 | AB25: 2015 | AE25: 2014-11-30 | AF25: Áno | AG25: Áno | AH25: Neurčené | AI25: Nie | AJ25: 24 mesiacov zadarmo, potom (?) | AN25: Zmluva 1_MS | AT25: =VLOOKUP(M25,Adresy!$A$4:$C$156,2,FALSE) -> Ostrava | AU25: =VLOOKUP(M25,Adresy!$A$4:$C$156,3,FALSE) -> 17. listopadu | AV25: M | AW25: 2015M06 | BC25: =VLOOKUP(M25,Adresy!$A$3:$C$122,2,FALSE) -> Ostrava | BD25: =VLOOKUP(M25,Adresy!$A$3:$C$122,3,FALSE) -> 17. listopadu | BE25: 0 | BF25: 0 | BG25: 0 | BH25: 0
A26: SPECT/CT | C26: Kardiologický engine 4DM | G26: Siemens symbia Intevo 2 | K26: bez položkovej identifikácie ceny (v rámci sumárnej ceny) | L26: SW | M26: Fakultní nemocnice Ostrava | N26: ČR | O26: EDOMED a.s. | Q26: 1 | T26: =IF(N26="SR",1,IF(AC26="",VLOOKUP(AW26,'CZKEUR Xchange rate'!$D$13:$E$234,2,FALSE),VLOOKUP(AW26,'CZKEUR Xchange rate'!$A$13:$B$234,2,FALSE))) -> 27.253 | U26: 0 | V26: 0 | Y26: =VLOOKUP(AW26,'Cenové indexy '!$D$7:$E$200,2,FALSE) -> 99.88 | Z26: =W26/Y26*'Cenové indexy '!$E$149 -> 0 | AA26: 0 | AB26: 2015 | AE26: 2014-11-30 | AF26: Áno | AG26: Áno | AH26: Neurčené | AI26: Nie | AJ26: 24 mesiacov zadarmo, potom (?) | AN26: Zmluva 1_MS | AT26: =VLOOKUP(M26,Adresy!$A$4:$C$156,2,FALSE) -> Ostrava | AU26: =VLOOKUP(M26,Adresy!$A$4:$C$156,3,FALSE) -> 17. listopadu | AV26: M | AW26: 2015M06 | BC26: =VLOOKUP(M26,Adresy!$A$3:$C$122,2,FALSE) -> Ostrava | BD26: =VLOOKUP(M26,Adresy!$A$3:$C$122,3,FALSE) -> 17. listopadu | BE26: 0 | BF26: 0 | BG26: 0 | BH26: 0
A27: SPECT/CT | C27: + kardiologický engine 4DM | G27: Siemens symbia Intevo 2 | K27: bez položkovej identifikácie ceny (v rámci sumárnej ceny) | L27: SW | M27: Fakultní nemocnice Ostrava | N27: ČR | O27: EDOMED a.s. | Q27: 2 | T27: =IF(N27="SR",1,IF(AC27="",VLOOKUP(AW27,'CZKEUR Xchange rate'!$D$13:$E$234,2,FALSE),VLOOKUP(AW27,'CZKEUR Xchange rate'!$A$13:$B$234,2,FALSE))) -> 27.253 | U27: 0 | V27: 0 | Y27: =VLOOKUP(AW27,'Cenové indexy '!$D$7:$E$200,2,FALSE) -> 99.88 | Z27: =W27/Y27*'Cenové indexy '!$E$149 -> 0 | AA27: 0 | AB27: 2015 | AE27: 2014-11-30 | AF27: Áno | AG27: Áno | AH27: Neurčené | AI27: Nie | AJ27: 24 mesiacov zadarmo, potom (?) | AN27: Zmluva 1_MS | AT27: =VLOOKUP(M27,Adresy!$A$4:$C$156,2,FALSE) -> Ostrava | AU27: =VLOOKUP(M27,Adresy!$A$4:$C$156,3,FALSE) -> 17. listopadu | AV27: M | AW27: 2015M06 | BC27: =VLOOKUP(M27,Adresy!$A$3:$C$122,2,FALSE) -> Ostrava | BD27: =VLOOKUP(M27,Adresy!$A$3:$C$122,3,FALSE) -> 17. listopadu | BE27: 0 | BF27: 0 | BG27: 0 | BH27: 0
A28: SPECT/CT | C28: Neurologický engine | G28: Siemens symbia Intevo 2 | K28: bez položkovej identifikácie ceny (v rámci sumárnej ceny) | L28: SW | M28: Fakultní nemocnice Ostrava | N28: ČR | O28: EDOMED a.s. | Q28: 1 | T28: =IF(N28="SR",1,IF(AC28="",VLOOKUP(AW28,'CZKEUR Xchange rate'!$D$13:$E$234,2,FALSE),VLOOKUP(AW28,'CZKEUR Xchange rate'!$A$13:$B$234,2,FALSE))) -> 27.253 | U28: 0 | V28: 0 | Y28: =VLOOKUP(AW28,'Cenové indexy '!$D$7:$E$200,2,FALSE) -> 99.88 | Z28: =W28/Y28*'Cenové indexy '!$E$149 -> 0 | AA28: 0 | AB28: 2015 | AE28: 2014-11-30 | AF28: Áno | AG28: Áno | AH28: Neurčené | AI28: Nie | AJ28: 24 mesiacov zadarmo, potom (?) | AN28: Zmluva 1_MS | AT28: =VLOOKUP(M28,Adresy!$A$4:$C$156,2,FALSE) -> Ostrava | AU28: =VLOOKUP(M28,Adresy!$A$4:$C$156,3,FALSE) -> 17. listopadu | AV28: M | AW28: 2015M06 | BC28: =VLOOKUP(M28,Adresy!$A$3:$C$122,2,FALSE) -> Ostrava | BD28: =VLOOKUP(M28,Adresy!$A$3:$C$122,3,FALSE) -> 17. listopadu | BE28: 0 | BF28: 0 | BG28: 0 | BH28: 0
A29: SPECT/CT | C29: + neurologický engine | G29: Siemens symbia Intevo 2 | K29: bez položkovej identifikácie ceny (v rámci sumárnej ceny) | L29: SW | M29: Fakultní nemocnice Ostrava | N29: ČR | O29: EDOMED a.s. | Q29: 2 | T29: =IF(N29="SR",1,IF(AC29="",VLOOKUP(AW29,'CZKEUR Xchange rate'!$D$13:$E$234,2,FALSE),VLOOKUP(AW29,'CZKEUR Xchange rate'!$A$13:$B$234,2,FALSE))) -> 27.253 | U29: 0 | V29: 0 | Y29: =VLOOKUP(AW29,'Cenové indexy '!$D$7:$E$200,2,FALSE) -> 99.88 | Z29: =W29/Y29*'Cenové indexy '!$E$149 -> 0 | AA29: 0 | AB29: 2015 | AE29: 2014-11-30 | AF29: Áno | AG29: Áno | AH29: Neurčené | AI29: Nie | AJ29: 24 mesiacov zadarmo, potom (?) | AN29: Zmluva 1_MS | AT29: =VLOOKUP(M29,Adresy!$A$4:$C$156,2,FALSE) -> Ostrava | AU29: =VLOOKUP(M29,Adresy!$A$4:$C$156,3,FALSE) -> 17. listopadu | AV29: M | AW29: 2015M06 | BC29: =VLOOKUP(M29,Adresy!$A$3:$C$122,2,FALSE) -> Ostrava | BD29: =VLOOKUP(M29,Adresy!$A$3:$C$122,3,FALSE) -> 17. listopadu | BE29: 0 | BF29: 0 | BG29: 0 | BH29: 0
A30: SPECT/CT | C30: Spracovanie zamerané na určitý orgán | G30: Siemens symbia Intevo 2 | K30: bez položkovej identifikácie ceny (v rámci sumárnej ceny) | L30: SW | M30: Fakultní nemocnice Ostrava | N30: ČR | O30: EDOMED a.s. | Q30: 1 | T30: =IF(N30="SR",1,IF(AC30="",VLOOKUP(AW30,'CZKEUR Xchange rate'!$D$13:$E$234,2,FALSE),VLOOKUP(AW30,'CZKEUR Xchange rate'!$A$13:$B$234,2,FALSE))) -> 27.253 | U30: 0 | V30: 0 | Y30: =VLOOKUP(AW30,'Cenové indexy '!$D$7:$E$200,2,FALSE) -> 99.88 | Z30: =W30/Y30*'Cenové indexy '!$E$149 -> 0 | AA30: 0 | AB30: 2015 | AE30: 2014-11-30 | AF30: Áno | AG30: Áno | AH30: Neurčené | AI30: Nie | AJ30: 24 mesiacov zadarmo, potom (?) | AN30: Zmluva 1_MS | AT30: =VLOOKUP(M30,Adresy!$A$4:$C$156,2,FALSE) -> Ostrava | AU30: =VLOOKUP(M30,Adresy!$A$4:$C$156,3,FALSE) -> 17. listopadu | AV30: M | AW30: 2015M06 | BC30: =VLOOKUP(M30,Adresy!$A$3:$C$122,2,FALSE) -> Ostrava | BD30: =VLOOKUP(M30,Adresy!$A$3:$C$122,3,FALSE) -> 17. listopadu | BE30: 0 | BF30: 0 | BG30: 0 | BH30: 0
A31: SPECT/CT | C31: + spracovanie zamerané na určitý orgán | G31: Siemens symbia Intevo 2 | K31: bez položkovej identifikácie ceny (v rámci sumárnej ceny) | L31: SW | M31: Fakultní nemocnice Ostrava | N31: ČR | O31: EDOMED a.s. | Q31: 2 | T31: =IF(N31="SR",1,IF(AC31="",VLOOKUP(AW31,'CZKEUR Xchange rate'!$D$13:$E$234,2,FALSE),VLOOKUP(AW31,'CZKEUR Xchange rate'!$A$13:$B$234,2,FALSE))) -> 27.253 | U31: 0 | V31: 0 | Y31: =VLOOKUP(AW31,'Cenové indexy '!$D$7:$E$200,2,FALSE) -> 99.88 | Z31: =W31/Y31*'Cenové indexy '!$E$149 -> 0 | AA31: 0 | AB31: 2015 | AE31: 2014-11-30 | AF31: Áno | AG31: Áno | AH31: Neurčené | AI31: Nie | AJ31: 24 mesiacov zadarmo, potom (?) | AN31: Zmluva 1_MS | AT31: =VLOOKUP(M31,Adresy!$A$4:$C$156,2,FALSE) -> Ostrava | AU31: =VLOOKUP(M31,Adresy!$A$4:$C$156,3,FALSE) -> 17. listopadu | AV31: M | AW31: 2015M06 | BC31: =VLOOKUP(M31,Adresy!$A$3:$C$122,2,FALSE) -> Ostrava | BD31: =VLOOKUP(M31,Adresy!$A$3:$C$122,3,FALSE) -> 17. listopadu | BE31: 0 | BF31: 0 | BG31: 0 | BH31: 0
A32: SPECT/CT | C32: Pokročilý enigine "reconstruction" | G32: Siemens symbia Intevo 2 | K32: bez položkovej identifikácie ceny (v rámci sumárnej ceny) | L32: SW | M32: Fakultní nemocnice Ostrava | N32: ČR | O32: EDOMED a.s. | Q32: 1 | T32: =IF(N32="SR",1,IF(AC32="",VLOOKUP(AW32,'CZKEUR Xchange rate'!$D$13:$E$234,2,FALSE),VLOOKUP(AW32,'CZKEUR Xchange rate'!$A$13:$B$234,2,FALSE))) -> 27.253 | U32: 0 | V32: 0 | Y32: =VLOOKUP(AW32,'Cenové indexy '!$D$7:$E$200,2,FALSE) -> 99.88 | Z32: =W32/Y32*'Cenové indexy '!$E$149 -> 0 | AA32: 0 | AB32: 2015 | AE32: 2014-11-30 | AF32: Áno | AG32: Áno | AH32: Neurčené | AI32: Nie | AJ32: 24 mesiacov zadarmo, potom (?) | AN32: Zmluva 1_MS | AT32: =VLOOKUP(M32,Adresy!$A$4:$C$156,2,FALSE) -> Ostrava | AU32: =VLOOKUP(M32,Adresy!$A$4:$C$156,3,FALSE) -> 17. listopadu | AV32: M | AW32: 2015M06 | BC32: =VLOOKUP(M32,Adresy!$A$3:$C$122,2,FALSE) -> Ostrava | BD32: =VLOOKUP(M32,Adresy!$A$3:$C$122,3,FALSE) -> 17. listopadu | BE32: 0 | BF32: 0 | BG32: 0 | BH32: 0
A33: SPECT/CT | C33: + pokročilá rekonštrukcia | G33: Siemens symbia Intevo 2 | K33: bez položkovej identifikácie ceny (v rámci sumárnej ceny) | L33: SW | M33: Fakultní nemocnice Ostrava | N33: ČR | O33: EDOMED a.s. | Q33: 2 | T33: =IF(N33="SR",1,IF(AC33="",VLOOKUP(AW33,'CZKEUR Xchange rate'!$D$13:$E$234,2,FALSE),VLOOKUP(AW33,'CZKEUR Xchange rate'!$A$13:$B$234,2,FALSE))) -> 27.253 | U33: 0 | V33: 0 | Y33: =VLOOKUP(AW33,'Cenové indexy '!$D$7:$E$200,2,FALSE) -> 99.88 | Z33: =W33/Y33*'Cenové indexy '!$E$149 -> 0 | AA33: 0 | AB33: 2015 | AE33: 2014-11-30 | AF33: Áno | AG33: Áno | AH33: Neurčené | AI33: Nie | AJ33: 24 mesiacov zadarmo, potom (?) | AN33: Zmluva 1_MS | AT33: =VLOOKUP(M33,Adresy!$A$4:$C$156,2,FALSE) -> Ostrava | AU33: =VLOOKUP(M33,Adresy!$A$4:$C$156,3,FALSE) -> 17. listopadu | AV33: M | AW33: 2015M06 | BC33: =VLOOKUP(M33,Adresy!$A$3:$C$122,2,FALSE) -> Ostrava | BD33: =VLOOKUP(M33,Adresy!$A$3:$C$122,3,FALSE) -> 17. listopadu | BE33: 0 | BF33: 0 | BG33: 0 | BH33: 0
A34: SPECT/CT | C34: Kompletná vyhodnocovacia stanica - HW | G34: Siemens symbia Intevo 2 | K34: položková cena (súčasť sumárnej ceny) | L34: HW | M34: Fakultní nemocnice Ostrava | N34: ČR | O34: EDOMED a.s. | Q34: 2 | R34: 280800 | S34: =R34*1.21 -> 339768 | T34: =IF(N34="SR",1,IF(AC34="",VLOOKUP(AW34,'CZKEUR Xchange rate'!$D$13:$E$234,2,FALSE),VLOOKUP(AW34,'CZKEUR Xchange rate'!$A$13:$B$234,2,FALSE))) -> 27.253 | U34: 10303.45283 | V34: 12467.17793 | W34: =U34/Q34 -> 5151.726415 | X34: =V34/Q34 -> 6233.588963 | Y34: =VLOOKUP(AW34,'Cenové indexy '!$D$7:$E$200,2,FALSE) -> 99.88 | Z34: =W34/Y34*'Cenové indexy '!$E$149 -> 5319.358683 | AA34: 6383.230419 | AB34: 2015 | AE34: 2014-11-30 | AF34: Áno | AG34: Áno | AH34: Neurčené | AI34: Nie | AJ34: 24 mesiacov zadarmo, potom (?) | AN34: Zmluva 1_MS | AT34: =VLOOKUP(M34,Adresy!$A$4:$C$156,2,FALSE) -> Ostrava | AU34: =VLOOKUP(M34,Adresy!$A$4:$C$156,3,FALSE) -> 17. listopadu | AV34: M | AW34: 2015M06 | BC34: =VLOOKUP(M34,Adresy!$A$3:$C$122,2,FALSE) -> Ostrava | BD34: =VLOOKUP(M34,Adresy!$A$3:$C$122,3,FALSE) -> 17. listopadu | BE34: 0 | BF34: 0 | BG34: 0 | BH34: 0
A35: SPECT/CT | C35: Farebná tlačiareň A4, 600dpi | G35: Siemens symbia Intevo 2 | K35: položková cena (súčasť sumárnej ceny) | L35: HW | M35: Fakultní nemocnice Ostrava | N35: ČR | O35: EDOMED a.s. | Q35: 1 | R35: 54000 | S35: =R35*1.21 -> 65340 | T35: =IF(N35="SR",1,IF(AC35="",VLOOKUP(AW35,'CZKEUR Xchange rate'!$D$13:$E$234,2,FALSE),VLOOKUP(AW35,'CZKEUR Xchange rate'!$A$13:$B$234,2,FALSE))) -> 27.253 | U35: 1981.433237 | V35: 2397.534216 | W35: 1981.433237 | X35: 2397.534216 | Y35: =VLOOKUP(AW35,'Cenové indexy '!$D$7:$E$200,2,FALSE) -> 99.88 | Z35: =W35/Y35*'Cenové indexy '!$E$149 -> 2045.907186 | AA35: 2455.088623 | AB35: 2015 | AE35: 2014-11-30 | AF35: Áno | AG35: Áno | AH35: Neurčené | AI35: Nie | AJ35: 24 mesiacov zadarmo, potom (?) | AN35: Zmluva 1_MS | AT35: =VLOOKUP(M35,Adresy!$A$4:$C$156,2,FALSE) -> Ostrava | AU35: =VLOOKUP(M35,Adresy!$A$4:$C$156,3,FALSE) -> 17. listopadu | AV35: M | AW35: 2015M06 | BC35: =VLOOKUP(M35,Adresy!$A$3:$C$122,2,FALSE) -> Ostrava | BD35: =VLOOKUP(M35,Adresy!$A$3:$C$122,3,FALSE) -> 17. listopadu | BE35: 0 | BF35: 0 | BG35: 0 | BH35: 0
A36: SPECT/CT | C36: Bar fanton | G36: Siemens symbia Intevo 2 | K36: položková cena (súčasť sumárnej ceny) | L36: HW | M36: Fakultní nemocnice Ostrava | N36: ČR | O36: EDOMED a.s. | Q36: 1 | R36: 183600 | S36: =R36*1.21 -> 222156 | T36: =IF(N36="SR",1,IF(AC36="",VLOOKUP(AW36,'CZKEUR Xchange rate'!$D$13:$E$234,2,FALSE),VLOOKUP(AW36,'CZKEUR Xchange rate'!$A$13:$B$234,2,FALSE))) -> 27.253 | U36: 6736.873005 | V36: 8151.616336 | W36: 6736.873005 | X36: 8151.616336 | Y36: =VLOOKUP(AW36,'Cenové indexy '!$D$7:$E$200,2,FALSE) -> 99.88 | Z36: =W36/Y36*'Cenové indexy '!$E$149 -> 6956.084431 | AA36: 8347.301317 | AB36: 2015 | AE36: 2014-11-30 | AF36: Áno | AG36: Áno | AH36: Neurčené | AI36: Nie | AJ36: 24 mesiacov zadarmo, potom (?) | AN36: Zmluva 1_MS | AT36: =VLOOKUP(M36,Adresy!$A$4:$C$156,2,FALSE) -> Ostrava | AU36: =VLOOKUP(M36,Adresy!$A$4:$C$156,3,FALSE) -> 17. listopadu | AV36: M | AW36: 2015M06 | BC36: =VLOOKUP(M36,Adresy!$A$3:$C$122,2,FALSE) -> Ostrava | BD36: =VLOOKUP(M36,Adresy!$A$3:$C$122,3,FALSE) -> 17. listopadu | BE36: 0 | BF36: 0 | BG36: 0 | BH36: 0
A37: SPECT/CT | C37: Jaszcak fantom | G37: Siemens symbia Intevo 2 | K37: položková cena (súčasť sumárnej ceny) | L37: HW | M37: Fakultní nemocnice Ostrava | N37: ČR | O37: EDOMED a.s. | Q37: 1 | R37: 118800 | S37: =R37*1.21 -> 143748 | T37: =IF(N37="SR",1,IF(AC37="",VLOOKUP(AW37,'CZKEUR Xchange rate'!$D$13:$E$234,2,FALSE),VLOOKUP(AW37,'CZKEUR Xchange rate'!$A$13:$B$234,2,FALSE))) -> 27.253 | U37: 4359.153121 | V37: 5274.575276 | W37: 4359.153121 | X37: 5274.575276 | Y37: =VLOOKUP(AW37,'Cenové indexy '!$D$7:$E$200,2,FALSE) -> 99.88 | Z37: =W37/Y37*'Cenové indexy '!$E$149 -> 4500.995808 | AA37: 5401.19497 | AB37: 2015 | AE37: 2014-11-30 | AF37: Áno | AG37: Áno | AH37: Neurčené | AI37: Nie | AJ37: 24 mesiacov zadarmo, potom (?) | AN37: Zmluva 1_MS | AT37: =VLOOKUP(M37,Adresy!$A$4:$C$156,2,FALSE) -> Ostrava | AU37: =VLOOKUP(M37,Adresy!$A$4:$C$156,3,FALSE) -> 17. listopadu | AV37: M | AW37: 2015M06 | BC37: =VLOOKUP(M37,Adresy!$A$3:$C$122,2,FALSE) -> Ostrava | BD37: =VLOOKUP(M37,Adresy!$A$3:$C$122,3,FALSE) -> 17. listopadu | BE37: 0 | BF37: 0 | BG37: 0 | BH37: 0
A38: SPECT/CT | C38: Bodové a plošné zdroje pre kalibráciu Co | G38: Siemens symbia Intevo 2 | K38: položková cena (súčasť sumárnej ceny) | L38: HW | M38: Fakultní nemocnice Ostrava | N38: ČR | O38: EDOMED a.s. | Q38: 1 | R38: 108000 | S38: =R38*1.21 -> 130680 | T38: =IF(N38="SR",1,IF(AC38="",VLOOKUP(AW38,'CZKEUR Xchange rate'!$D$13:$E$234,2,FALSE),VLOOKUP(AW38,'CZKEUR Xchange rate'!$A$13:$B$234,2,FALSE))) -> 27.253 | U38: 3962.866473 | V38: 4795.068433 | W38: 3962.866473 | X38: 4795.068433 | Y38: =VLOOKUP(AW38,'Cenové indexy '!$D$7:$E$200,2,FALSE) -> 99.88 | Z38: =W38/Y38*'Cenové indexy '!$E$149 -> 4091.814371 | AA38: 4910.177246 | AB38: 2015 | AE38: 2014-11-30 | AF38: Áno | AG38: Áno | AH38: Neurčené | AI38: Nie | AJ38: 24 mesiacov zadarmo, potom (?) | AN38: Zmluva 1_MS | AT38: =VLOOKUP(M38,Adresy!$A$4:$C$156,2,FALSE) -> Ostrava | AU38: =VLOOKUP(M38,Adresy!$A$4:$C$156,3,FALSE) -> 17. listopadu | AV38: M | AW38: 2015M06 | BC38: =VLOOKUP(M38,Adresy!$A$3:$C$122,2,FALSE) -> Ostrava | BD38: =VLOOKUP(M38,Adresy!$A$3:$C$122,3,FALSE) -> 17. listopadu | BE38: 0 | BF38: 0 | BG38: 0 | BH38: 0
A39: SPECT/CT | C39: Celá zostava | G39: Siemens symbia Intevo Excel | K39: sumárna cena | L39: HW/SW | M39: Fakultní nemocnice v Motole | N39: ČR | O39: Siemens Healthcare s.r.o. | Q39: 1 | R39: 1003900 | S39: 12147190 | T39: =IF(N39="SR",1,IF(AC39="",VLOOKUP(AW39,'CZKEUR Xchange rate'!$D$13:$E$234,2,FALSE),VLOOKUP(AW39,'CZKEUR Xchange rate'!$A$13:$B$234,2,FALSE))) -> 27.453 | U39: 36567.9525 | V39: 442472.2253 | W39: 36567.9525 | X39: 442472.2253 | Y39: =VLOOKUP(AW39,'Cenové indexy '!$D$7:$E$200,2,FALSE) -> 99.5 | Z39: =W39/Y39*'Cenové indexy '!$E$149 -> 37902.03961 | AA39: 45482.44753 | AB39: 2014 | AE39: 2013-11-30 | AF39: Áno | AG39: Áno | AH39: ERDF | AI39: Nie | AJ39: 24 mesiacov zadarmo, potom (?) | AN39: Zmluva 2_MS | AT39: =VLOOKUP(M39,Adresy!$A$4:$C$156,2,FALSE) -> Praha | AU39: =VLOOKUP(M39,Adresy!$A$4:$C$156,3,FALSE) -> V úvalu 84 | AV39: M | AW39: 2014M06 | BC39: =VLOOKUP(M39,Adresy!$A$3:$C$122,2,FALSE) -> Praha | BD39: =VLOOKUP(M39,Adresy!$A$3:$C$122,3,FALSE) -> V úvalu 84 | BE39: 0 | BF39: 0 | BG39: 0 | BH39: 0
A40: SPECT/CT | C40: Detektory 3/8 s nízkym profilom | G40: Siemens symbia Intevo Excel | K40: bez položkovej identifikácie ceny (v rámci sumárnej ceny) | L40: HW | M40: Fakultní nemocnice v Motole | N40: ČR | O40: Siemens Healthcare s.r.o. | Q40: 2 | T40: =IF(N40="SR",1,IF(AC40="",VLOOKUP(AW40,'CZKEUR Xchange rate'!$D$13:$E$234,2,FALSE),VLOOKUP(AW40,'CZKEUR Xchange rate'!$A$13:$B$234,2,FALSE))) -> 27.453 | U40: =R40/T40 -> 0 | V40: =S40/T40 -> 0 | Y40: =VLOOKUP(AW40,'Cenové indexy '!$D$7:$E$200,2,FALSE) -> 99.5 | Z40: =W40/Y40*'Cenové indexy '!$E$149 -> 0 | AA40: 0 | AB40: 2014 | AE40: 2013-11-30 | AF40: Áno | AG40: Áno | AH40: ERDF | AI40: Nie | AJ40: 24 mesiacov zadarmo, potom (?) | AN40: Zmluva 2_MS | AT40: =VLOOKUP(M40,Adresy!$A$4:$C$156,2,FALSE) -> Praha | AU40: =VLOOKUP(M40,Adresy!$A$4:$C$156,3,FALSE) -> V úvalu 84 | AV40: M | AW40: 2014M06 | BC40: =VLOOKUP(M40,Adresy!$A$3:$C$122,2,FALSE) -> Praha | BD40: =VLOOKUP(M40,Adresy!$A$3:$C$122,3,FALSE) -> V úvalu 84 | BE40: 0 | BF40: 0 | BG40: 0 | BH40: 0
A41: SPECT/CT | C41: Kaudálne naklápanie | G41: Siemens symbia Intevo Excel | K41: bez položkovej identifikácie ceny (v rámci sumárnej ceny) | L41: HW | M41: Fakultní nemocnice v Motole | N41: ČR | O41: Siemens Healthcare s.r.o. | Q41: 1 | T41: =IF(N41="SR",1,IF(AC41="",VLOOKUP(AW41,'CZKEUR Xchange rate'!$D$13:$E$234,2,FALSE),VLOOKUP(AW41,'CZKEUR Xchange rate'!$A$13:$B$234,2,FALSE))) -> 27.453 | U41: =R41/T41 -> 0 | V41: =S41/T41 -> 0 | Y41: =VLOOKUP(AW41,'Cenové indexy '!$D$7:$E$200,2,FALSE) -> 99.5 | Z41: =W41/Y41*'Cenové indexy '!$E$149 -> 0 | AA41: 0 | AB41: 2014 | AE41: 2013-11-30 | AF41: Áno | AG41: Áno | AH41: ERDF | AI41: Nie | AJ41: 24 mesiacov zadarmo, potom (?) | AN41: Zmluva 2_MS | AT41: =VLOOKUP(M41,Adresy!$A$4:$C$156,2,FALSE) -> Praha | AU41: =VLOOKUP(M41,Adresy!$A$4:$C$156,3,FALSE) -> V úvalu 84 | AV41: M | AW41: 2014M06 | BC41: =VLOOKUP(M41,Adresy!$A$3:$C$122,2,FALSE) -> Praha | BD41: =VLOOKUP(M41,Adresy!$A$3:$C$122,3,FALSE) -> V úvalu 84 | BE41: 0 | BF41: 0 | BG41: 0 | BH41: 0
A42: SPECT/CT | C42: Kolimátor pre nízke energie, vysoké rozlíšenie | G42: Siemens symbia Intevo Excel | K42: bez položkovej identifikácie ceny (v rámci sumárnej ceny) | L42: HW | M42: Fakultní nemocnice v Motole | N42: ČR | O42: Siemens Healthcare s.r.o. | Q42: 2 | T42: =IF(N42="SR",1,IF(AC42="",VLOOKUP(AW42,'CZKEUR Xchange rate'!$D$13:$E$234,2,FALSE),VLOOKUP(AW42,'CZKEUR Xchange rate'!$A$13:$B$234,2,FALSE))) -> 27.453 | U42: 0 | V42: 0 | Y42: =VLOOKUP(AW42,'Cenové indexy '!$D$7:$E$200,2,FALSE) -> 99.5 | Z42: =W42/Y42*'Cenové indexy '!$E$149 -> 0 | AA42: 0 | AB42: 2014 | AE42: 2013-11-30 | AF42: Áno | AG42: Áno | AH42: ERDF | AI42: Nie | AJ42: 24 mesiacov zadarmo, potom (?) | AN42: Zmluva 2_MS | AT42: =VLOOKUP(M42,Adresy!$A$4:$C$156,2,FALSE) -> Praha | AU42: =VLOOKUP(M42,Adresy!$A$4:$C$156,3,FALSE) -> V úvalu 84 | AV42: M | AW42: 2014M06 | BC42: =VLOOKUP(M42,Adresy!$A$3:$C$122,2,FALSE) -> Praha | BD42: =VLOOKUP(M42,Adresy!$A$3:$C$122,3,FALSE) -> V úvalu 84 | BE42: 0 | BF42: 0 | BG42: 0 | BH42: 0
A43: SPECT/CT | C43: Vozík pre kolimátor | G43: Siemens symbia Intevo Excel | K43: bez položkovej identifikácie ceny (v rámci sumárnej ceny) | L43: HW | M43: Fakultní nemocnice v Motole | N43: ČR | O43: Siemens Healthcare s.r.o. | Q43: 1 | T43: =IF(N43="SR",1,IF(AC43="",VLOOKUP(AW43,'CZKEUR Xchange rate'!$D$13:$E$234,2,FALSE),VLOOKUP(AW43,'CZKEUR Xchange rate'!$A$13:$B$234,2,FALSE))) -> 27.453 | U43: 0 | V43: 0 | Y43: =VLOOKUP(AW43,'Cenové indexy '!$D$7:$E$200,2,FALSE) -> 99.5 | Z43: =W43/Y43*'Cenové indexy '!$E$149 -> 0 | AA43: 0 | AB43: 2014 | AE43: 2013-11-30 | AF43: Áno | AG43: Áno | AH43: ERDF | AI43: Nie | AJ43: 24 mesiacov zadarmo, potom (?) | AN43: Zmluva 2_MS | AT43: =VLOOKUP(M43,Adresy!$A$4:$C$156,2,FALSE) -> Praha | AU43: =VLOOKUP(M43,Adresy!$A$4:$C$156,3,FALSE) -> V úvalu 84 | AV43: M | AW43: 2014M06 | BC43: =VLOOKUP(M43,Adresy!$A$3:$C$122,2,FALSE) -> Praha | BD43: =VLOOKUP(M43,Adresy!$A$3:$C$122,3,FALSE) -> V úvalu 84 | BE43: 0 | BF43: 0 | BG43: 0 | BH43: 0
A44: SPECT/CT | C44: Interný EKG pre systém Symbia | G44: Siemens symbia Intevo Excel | K44: bez položkovej identifikácie ceny (v rámci sumárnej ceny) | L44: HW | M44: Fakultní nemocnice v Motole | N44: ČR | O44: Siemens Healthcare s.r.o. | Q44: 1 | T44: =IF(N44="SR",1,IF(AC44="",VLOOKUP(AW44,'CZKEUR Xchange rate'!$D$13:$E$234,2,FALSE),VLOOKUP(AW44,'CZKEUR Xchange rate'!$A$13:$B$234,2,FALSE))) -> 27.453 | U44: 0 | V44: 0 | Y44: =VLOOKUP(AW44,'Cenové indexy '!$D$7:$E$200,2,FALSE) -> 99.5 | Z44: =W44/Y44*'Cenové indexy '!$E$149 -> 0 | AA44: 0 | AB44: 2014 | AE44: 2013-11-30 | AF44: Áno | AG44: Áno | AH44: ERDF | AI44: Nie | AJ44: 24 mesiacov zadarmo, potom (?) | AN44: Zmluva 2_MS | AT44: =VLOOKUP(M44,Adresy!$A$4:$C$156,2,FALSE) -> Praha | AU44: =VLOOKUP(M44,Adresy!$A$4:$C$156,3,FALSE) -> V úvalu 84 | AV44: M | AW44: 2014M06 | BC44: =VLOOKUP(M44,Adresy!$A$3:$C$122,2,FALSE) -> Praha | BD44: =VLOOKUP(M44,Adresy!$A$3:$C$122,3,FALSE) -> V úvalu 84 | BE44: 0 | BF44: 0 | BG44: 0 | BH44: 0
A45: SPECT/CT | C45: Kábel PHS pod podlahou | G45: Siemens symbia Intevo Excel | K45: bez položkovej identifikácie ceny (v rámci sumárnej ceny) | L45: HW | M45: Fakultní nemocnice v Motole | N45: ČR | O45: Siemens Healthcare s.r.o. | Q45: 1 | T45: =IF(N45="SR",1,IF(AC45="",VLOOKUP(AW45,'CZKEUR Xchange rate'!$D$13:$E$234,2,FALSE),VLOOKUP(AW45,'CZKEUR Xchange rate'!$A$13:$B$234,2,FALSE))) -> 27.453 | U45: 0 | V45: 0 | Y45: =VLOOKUP(AW45,'Cenové indexy '!$D$7:$E$200,2,FALSE) -> 99.5 | Z45: =W45/Y45*'Cenové indexy '!$E$149 -> 0 | AA45: 0 | AB45: 2014 | AE45: 2013-11-30 | AF45: Áno | AG45: Áno | AH45: ERDF | AI45: Nie | AJ45: 24 mesiacov zadarmo, potom (?) | AN45: Zmluva 2_MS | AT45: =VLOOKUP(M45,Adresy!$A$4:$C$156,2,FALSE) -> Praha | AU45: =VLOOKUP(M45,Adresy!$A$4:$C$156,3,FALSE) -> V úvalu 84 | AV45: M | AW45: 2014M06 | BC45: =VLOOKUP(M45,Adresy!$A$3:$C$122,2,FALSE) -> Praha | BD45: =VLOOKUP(M45,Adresy!$A$3:$C$122,3,FALSE) -> V úvalu 84 | BE45: 0 | BF45: 0 | BG45: 0 | BH45: 0
A46: SPECT/CT | C46: Pediatrický držiak | G46: Siemens symbia Intevo Excel | K46: bez položkovej identifikácie ceny (v rámci sumárnej ceny) | L46: HW | M46: Fakultní nemocnice v Motole | N46: ČR | O46: Siemens Healthcare s.r.o. | Q46: 1 | T46: =IF(N46="SR",1,IF(AC46="",VLOOKUP(AW46,'CZKEUR Xchange rate'!$D$13:$E$234,2,FALSE),VLOOKUP(AW46,'CZKEUR Xchange rate'!$A$13:$B$234,2,FALSE))) -> 27.453 | U46: 0 | V46: 0 | Y46: =VLOOKUP(AW46,'Cenové indexy '!$D$7:$E$200,2,FALSE) -> 99.5 | Z46: =W46/Y46*'Cenové indexy '!$E$149 -> 0 | AA46: 0 | AB46: 2014 | AE46: 2013-11-30 | AF46: Áno | AG46: Áno | AH46: ERDF | AI46: Nie | AJ46: 24 mesiacov zadarmo, potom (?) | AN46: Zmluva 2_MS | AT46: =VLOOKUP(M46,Adresy!$A$4:$C$156,2,FALSE) -> Praha | AU46: =VLOOKUP(M46,Adresy!$A$4:$C$156,3,FALSE) -> V úvalu 84 | AV46: M | AW46: 2014M06 | BC46: =VLOOKUP(M46,Adresy!$A$3:$C$122,2,FALSE) -> Praha | BD46: =VLOOKUP(M46,Adresy!$A$3:$C$122,3,FALSE) -> V úvalu 84 | BE46: 0 | BF46: 0 | BG46: 0 | BH46: 0
A47: SPECT/CT | C47: Služby diaľkovej diagnostiky | G47: Siemens symbia Intevo Excel | K47: bez položkovej identifikácie ceny (v rámci sumárnej ceny) | L47: SW | M47: Fakultní nemocnice v Motole | N47: ČR | O47: Siemens Healthcare s.r.o. | Q47: 1 | T47: =IF(N47="SR",1,IF(AC47="",VLOOKUP(AW47,'CZKEUR Xchange rate'!$D$13:$E$234,2,FALSE),VLOOKUP(AW47,'CZKEUR Xchange rate'!$A$13:$B$234,2,FALSE))) -> 27.453 | U47: 0 | V47: 0 | Y47: =VLOOKUP(AW47,'Cenové indexy '!$D$7:$E$200,2,FALSE) -> 99.5 | Z47: =W47/Y47*'Cenové indexy '!$E$149 -> 0 | AA47: 0 | AB47: 2014 | AE47: 2013-11-30 | AF47: Áno | AG47: Áno | AH47: ERDF | AI47: Nie | AJ47: 24 mesiacov zadarmo, potom (?) | AN47: Zmluva 2_MS | AT47: =VLOOKUP(M47,Adresy!$A$4:$C$156,2,FALSE) -> Praha | AU47: =VLOOKUP(M47,Adresy!$A$4:$C$156,3,FALSE) -> V úvalu 84 | AV47: M | AW47: 2014M06 | BC47: =VLOOKUP(M47,Adresy!$A$3:$C$122,2,FALSE) -> Praha | BD47: =VLOOKUP(M47,Adresy!$A$3:$C$122,3,FALSE) -> V úvalu 84 | BE47: 0 | BF47: 0 | BG47: 0 | BH47: 0
A48: SPECT/CT | C48: Spracovanie zamerané na určitý orgán | G48: Siemens symbia Intevo Excel | K48: bez položkovej identifikácie ceny (v rámci sumárnej ceny) | L48: SW | M48: Fakultní nemocnice v Motole | N48: ČR | O48: Siemens Healthcare s.r.o. | Q48: 1 | T48: =IF(N48="SR",1,IF(AC48="",VLOOKUP(AW48,'CZKEUR Xchange rate'!$D$13:$E$234,2,FALSE),VLOOKUP(AW48,'CZKEUR Xchange rate'!$A$13:$B$234,2,FALSE))) -> 27.453 | U48: 0 | V48: 0 | Y48: =VLOOKUP(AW48,'Cenové indexy '!$D$7:$E$200,2,FALSE) -> 99.5 | Z48: =W48/Y48*'Cenové indexy '!$E$149 -> 0 | AA48: 0 | AB48: 2014 | AE48: 2013-11-30 | AF48: Áno | AG48: Áno | AH48: ERDF | AI48: Nie | AJ48: 24 mesiacov zadarmo, potom (?) | AN48: Zmluva 2_MS | AT48: =VLOOKUP(M48,Adresy!$A$4:$C$156,2,FALSE) -> Praha | AU48: =VLOOKUP(M48,Adresy!$A$4:$C$156,3,FALSE) -> V úvalu 84 | AV48: M | AW48: 2014M06 | BC48: =VLOOKUP(M48,Adresy!$A$3:$C$122,2,FALSE) -> Praha | BD48: =VLOOKUP(M48,Adresy!$A$3:$C$122,3,FALSE) -> V úvalu 84 | BE48: 0 | BF48: 0 | BG48: 0 | BH48: 0
A49: SPECT/CT | C49: Pokročilý engine pre onkológiu | G49: Siemens symbia Intevo Excel | K49: bez položkovej identifikácie ceny (v rámci sumárnej ceny) | L49: SW | M49: Fakultní nemocnice v Motole | N49: ČR | O49: Siemens Healthcare s.r.o. | Q49: 1 | T49: =IF(N49="SR",1,IF(AC49="",VLOOKUP(AW49,'CZKEUR Xchange rate'!$D$13:$E$234,2,FALSE),VLOOKUP(AW49,'CZKEUR Xchange rate'!$A$13:$B$234,2,FALSE))) -> 27.453 | U49: 0 | V49: 0 | Y49: =VLOOKUP(AW49,'Cenové indexy '!$D$7:$E$200,2,FALSE) -> 99.5 | Z49: =W49/Y49*'Cenové indexy '!$E$149 -> 0 | AA49: 0 | AB49: 2014 | AE49: 2013-11-30 | AF49: Áno | AG49: Áno | AH49: ERDF | AI49: Nie | AJ49: 24 mesiacov zadarmo, potom (?) | AN49: Zmluva 2_MS | AT49: =VLOOKUP(M49,Adresy!$A$4:$C$156,2,FALSE) -> Praha | AU49: =VLOOKUP(M49,Adresy!$A$4:$C$156,3,FALSE) -> V úvalu 84 | AV49: M | AW49: 2014M06 | BC49: =VLOOKUP(M49,Adresy!$A$3:$C$122,2,FALSE) -> Praha | BD49: =VLOOKUP(M49,Adresy!$A$3:$C$122,3,FALSE) -> V úvalu 84 | BE49: 0 | BF49: 0 | BG49: 0 | BH49: 0
A50: SPECT/CT | C50: Pokročilý enigine "reconstruction" | G50: Siemens symbia Intevo Excel | K50: bez položkovej identifikácie ceny (v rámci sumárnej ceny) | L50: SW | M50: Fakultní nemocnice v Motole | N50: ČR | O50: Siemens Healthcare s.r.o. | Q50: 1 | T50: =IF(N50="SR",1,IF(AC50="",VLOOKUP(AW50,'CZKEUR Xchange rate'!$D$13:$E$234,2,FALSE),VLOOKUP(AW50,'CZKEUR Xchange rate'!$A$13:$B$234,2,FALSE))) -> 27.453 | U50: 0 | V50: 0 | Y50: =VLOOKUP(AW50,'Cenové indexy '!$D$7:$E$200,2,FALSE) -> 99.5 | Z50: =W50/Y50*'Cenové indexy '!$E$149 -> 0 | AA50: 0 | AB50: 2014 | AE50: 2013-11-30 | AF50: Áno | AG50: Áno | AH50: ERDF | AI50: Nie | AJ50: 24 mesiacov zadarmo, potom (?) | AN50: Zmluva 2_MS | AT50: =VLOOKUP(M50,Adresy!$A$4:$C$156,2,FALSE) -> Praha | AU50: =VLOOKUP(M50,Adresy!$A$4:$C$156,3,FALSE) -> V úvalu 84 | AV50: M | AW50: 2014M06 | BC50: =VLOOKUP(M50,Adresy!$A$3:$C$122,2,FALSE) -> Praha | BD50: =VLOOKUP(M50,Adresy!$A$3:$C$122,3,FALSE) -> V úvalu 84 | BE50: 0 | BF50: 0 | BG50: 0 | BH50: 0
A51: SPECT/CT | C51: Celá zostava | G51: GE Optima NM/CT640 | K51: sumárna cena | L51: HW/SW | M51: Institut klinické a experimentální medicíny | N51: ČR | O51: Aceso Praha s.r.o. | Q51: 1 | R51: 11330000 | S51: 13709300 | T51: =IF(N51="SR",1,IF(AC51="",VLOOKUP(AW51,'CZKEUR Xchange rate'!$D$13:$E$234,2,FALSE),VLOOKUP(AW51,'CZKEUR Xchange rate'!$A$13:$B$234,2,FALSE))) -> 27.253 | U51: 415734.0476 | V51: 503038.1976 | W51: =U51/Q51 -> 415734.0476 | X51: =V51/Q51 -> 503038.1976 | Y51: =VLOOKUP(AW51,'Cenové indexy '!$D$7:$E$200,2,FALSE) -> 99.88 | Z51: =W51/Y51*'Cenové indexy '!$E$149 -> 429261.6373 | AA51: 515113.9647 | AB51: 2015 | AE51: 2014-11-30 | AF51: Áno | AG51: Áno | AH51: Neurčené | AI51: Nie | AJ51: 24 mesiacov zadarmo, potom (?) | AN51: Zmluva 3_MS | AT51: =VLOOKUP(M51,Adresy!$A$4:$C$156,2,FALSE) -> Praha | AU51: =VLOOKUP(M51,Adresy!$A$4:$C$156,3,FALSE) -> Vídeňská 1959/9 | AV51: M | AW51: 2015M06 | BC51: =VLOOKUP(M51,Adresy!$A$3:$C$122,2,FALSE) -> Praha | BD51: =VLOOKUP(M51,Adresy!$A$3:$C$122,3,FALSE) -> Vídeňská 1959/9 | BE51: 0 | BF51: 0 | BG51: 0 | BH51: 0
A52: SPECT/CT | C52: Detektory 3/8 s nízkym profilom | G52: GE Optima NM/CT640 | K52: bez položkovej identifikácie ceny (v rámci sumárnej ceny) | L52: HW | M52: Institut klinické a experimentální medicíny | N52: ČR | O52: Aceso Praha s.r.o. | Q52: 1 | T52: =IF(N52="SR",1,IF(AC52="",VLOOKUP(AW52,'CZKEUR Xchange rate'!$D$13:$E$234,2,FALSE),VLOOKUP(AW52,'CZKEUR Xchange rate'!$A$13:$B$234,2,FALSE))) -> 27.253 | U52: 0 | V52: 0 | Y52: =VLOOKUP(AW52,'Cenové indexy '!$D$7:$E$200,2,FALSE) -> 99.88 | Z52: =W52/Y52*'Cenové indexy '!$E$149 -> 0 | AA52: 0 | AB52: 2015 | AE52: 2014-11-30 | AF52: Áno | AG52: Áno | AH52: Neurčené | AI52: Nie | AJ52: 24 mesiacov zadarmo, potom (?) | AN52: Zmluva 3_MS | AT52: =VLOOKUP(M52,Adresy!$A$4:$C$156,2,FALSE) -> Praha | AU52: =VLOOKUP(M52,Adresy!$A$4:$C$156,3,FALSE) -> Vídeňská 1959/9 | AV52: M | AW52: 2015M06 | BC52: =VLOOKUP(M52,Adresy!$A$3:$C$122,2,FALSE) -> Praha | BD52: =VLOOKUP(M52,Adresy!$A$3:$C$122,3,FALSE) -> Vídeňská 1959/9 | BE52: 0 | BF52: 0 | BG52: 0 | BH52: 0
A53: SPECT/CT | C53: Pacientský stôl | G53: GE Optima NM/CT640 | K53: bez položkovej identifikácie ceny (v rámci sumárnej ceny) | L53: HW | M53: Institut klinické a experimentální medicíny | N53: ČR | O53: Aceso Praha s.r.o. | Q53: 1 | T53: =IF(N53="SR",1,IF(AC53="",VLOOKUP(AW53,'CZKEUR Xchange rate'!$D$13:$E$234,2,FALSE),VLOOKUP(AW53,'CZKEUR Xchange rate'!$A$13:$B$234,2,FALSE))) -> 27.253 | U53: 0 | V53: 0 | Y53: =VLOOKUP(AW53,'Cenové indexy '!$D$7:$E$200,2,FALSE) -> 99.88 | Z53: =W53/Y53*'Cenové indexy '!$E$149 -> 0 | AA53: 0 | AB53: 2015 | AE53: 2014-11-30 | AF53: Áno | AG53: Áno | AH53: Neurčené | AI53: Nie | AJ53: 24 mesiacov zadarmo, potom (?) | AN53: Zmluva 3_MS | AT53: =VLOOKUP(M53,Adresy!$A$4:$C$156,2,FALSE) -> Praha | AU53: =VLOOKUP(M53,Adresy!$A$4:$C$156,3,FALSE) -> Vídeňská 1959/9 | AV53: M | AW53: 2015M06 | BC53: =VLOOKUP(M53,Adresy!$A$3:$C$122,2,FALSE) -> Praha | BD53: =VLOOKUP(M53,Adresy!$A$3:$C$122,3,FALSE) -> Vídeňská 1959/9 | BE53: 0 | BF53: 0 | BG53: 0 | BH53: 0
A54: SPECT/CT | C54: Akvizičná konzola | G54: GE Optima NM/CT640 | K54: bez položkovej identifikácie ceny (v rámci sumárnej ceny) | L54: HW | M54: Institut klinické a experimentální medicíny | N54: ČR | O54: Aceso Praha s.r.o. | Q54: 1 | T54: =IF(N54="SR",1,IF(AC54="",VLOOKUP(AW54,'CZKEUR Xchange rate'!$D$13:$E$234,2,FALSE),VLOOKUP(AW54,'CZKEUR Xchange rate'!$A$13:$B$234,2,FALSE))) -> 27.253 | U54: 0 | V54: 0 | Y54: =VLOOKUP(AW54,'Cenové indexy '!$D$7:$E$200,2,FALSE) -> 99.88 | Z54: =W54/Y54*'Cenové indexy '!$E$149 -> 0 | AA54: 0 | AB54: 2015 | AE54: 2014-11-30 | AF54: Áno | AG54: Áno | AH54: Neurčené | AI54: Nie | AJ54: 24 mesiacov zadarmo, potom (?) | AN54: Zmluva 3_MS | AT54: =VLOOKUP(M54,Adresy!$A$4:$C$156,2,FALSE) -> Praha | AU54: =VLOOKUP(M54,Adresy!$A$4:$C$156,3,FALSE) -> Vídeňská 1959/9 | AV54: M | AW54: 2015M06 | BC54: =VLOOKUP(M54,Adresy!$A$3:$C$122,2,FALSE) -> Praha | BD54: =VLOOKUP(M54,Adresy!$A$3:$C$122,3,FALSE) -> Vídeňská 1959/9 | BE54: 0 | BF54: 0 | BG54: 0 | BH54: 0
A55: SPECT/CT | C55: Akvizičná stanica Otpima | G55: GE Optima NM/CT640 | K55: bez položkovej identifikácie ceny (v rámci sumárnej ceny) | L55: HW | M55: Institut klinické a experimentální medicíny | N55: ČR | O55: Aceso Praha s.r.o. | Q55: 1 | T55: =IF(N55="SR",1,IF(AC55="",VLOOKUP(AW55,'CZKEUR Xchange rate'!$D$13:$E$234,2,FALSE),VLOOKUP(AW55,'CZKEUR Xchange rate'!$A$13:$B$234,2,FALSE))) -> 27.253 | U55: 0 | V55: 0 | Y55: =VLOOKUP(AW55,'Cenové indexy '!$D$7:$E$200,2,FALSE) -> 99.88 | Z55: =W55/Y55*'Cenové indexy '!$E$149 -> 0 | AA55: 0 | AB55: 2015 | AE55: 2014-11-30 | AF55: Áno | AG55: Áno | AH55: Neurčené | AI55: Nie | AJ55: 24 mesiacov zadarmo, potom (?) | AN55: Zmluva 3_MS | AT55: =VLOOKUP(M55,Adresy!$A$4:$C$156,2,FALSE) -> Praha | AU55: =VLOOKUP(M55,Adresy!$A$4:$C$156,3,FALSE) -> Vídeňská 1959/9 | AV55: M | AW55: 2015M06 | BC55: =VLOOKUP(M55,Adresy!$A$3:$C$122,2,FALSE) -> Praha | BD55: =VLOOKUP(M55,Adresy!$A$3:$C$122,3,FALSE) -> Vídeňská 1959/9 | BE55: 0 | BF55: 0 | BG55: 0 | BH55: 0
A56: SPECT/CT | C56: Kolimátor pre nízke energie, vysoké rozlíšenie | G56: GE Optima NM/CT640 | K56: bez položkovej identifikácie ceny (v rámci sumárnej ceny) | L56: HW | M56: Institut klinické a experimentální medicíny | N56: ČR | O56: Aceso Praha s.r.o. | Q56: 2 | T56: =IF(N56="SR",1,IF(AC56="",VLOOKUP(AW56,'CZKEUR Xchange rate'!$D$13:$E$234,2,FALSE),VLOOKUP(AW56,'CZKEUR Xchange rate'!$A$13:$B$234,2,FALSE))) -> 27.253 | U56: 0 | V56: 0 | Y56: =VLOOKUP(AW56,'Cenové indexy '!$D$7:$E$200,2,FALSE) -> 99.88 | Z56: =W56/Y56*'Cenové indexy '!$E$149 -> 0 | AA56: 0 | AB56: 2015 | AE56: 2014-11-30 | AF56: Áno | AG56: Áno | AH56: Neurčené | AI56: Nie | AJ56: 24 mesiacov zadarmo, potom (?) | AN56: Zmluva 3_MS | AT56: =VLOOKUP(M56,Adresy!$A$4:$C$156,2,FALSE) -> Praha | AU56: =VLOOKUP(M56,Adresy!$A$4:$C$156,3,FALSE) -> Vídeňská 1959/9 | AV56: M | AW56: 2015M06 | BC56: =VLOOKUP(M56,Adresy!$A$3:$C$122,2,FALSE) -> Praha | BD56: =VLOOKUP(M56,Adresy!$A$3:$C$122,3,FALSE) -> Vídeňská 1959/9 | BE56: 0 | BF56: 0 | BG56: 0 | BH56: 0
A57: SPECT/CT | C57: Kolimátor pre stredné energie | G57: GE Optima NM/CT640 | K57: bez položkovej identifikácie ceny (v rámci sumárnej ceny) | L57: HW | M57: Institut klinické a experimentální medicíny | N57: ČR | O57: Aceso Praha s.r.o. | Q57: 2 | T57: =IF(N57="SR",1,IF(AC57="",VLOOKUP(AW57,'CZKEUR Xchange rate'!$D$13:$E$234,2,FALSE),VLOOKUP(AW57,'CZKEUR Xchange rate'!$A$13:$B$234,2,FALSE))) -> 27.253 | U57: 0 | V57: 0 | Y57: =VLOOKUP(AW57,'Cenové indexy '!$D$7:$E$200,2,FALSE) -> 99.88 | Z57: =W57/Y57*'Cenové indexy '!$E$149 -> 0 | AA57: 0 | AB57: 2015 | AE57: 2014-11-30 | AF57: Áno | AG57: Áno | AH57: Neurčené | AI57: Nie | AJ57: 24 mesiacov zadarmo, potom (?) | AN57: Zmluva 3_MS | AT57: =VLOOKUP(M57,Adresy!$A$4:$C$156,2,FALSE) -> Praha | AU57: =VLOOKUP(M57,Adresy!$A$4:$C$156,3,FALSE) -> Vídeňská 1959/9 | AV57: M | AW57: 2015M06 | BC57: =VLOOKUP(M57,Adresy!$A$3:$C$122,2,FALSE) -> Praha | BD57: =VLOOKUP(M57,Adresy!$A$3:$C$122,3,FALSE) -> Vídeňská 1959/9 | BE57: 0 | BF57: 0 | BG57: 0 | BH57: 0
A58: SPECT/CT | C58: Postprocesingový systém Xeleris 3.1 | G58: GE Optima NM/CT640 | K58: bez položkovej identifikácie ceny (v rámci sumárnej ceny) | L58: SW | M58: Institut klinické a experimentální medicíny | N58: ČR | O58: Aceso Praha s.r.o. | Q58: 1 | T58: =IF(N58="SR",1,IF(AC58="",VLOOKUP(AW58,'CZKEUR Xchange rate'!$D$13:$E$234,2,FALSE),VLOOKUP(AW58,'CZKEUR Xchange rate'!$A$13:$B$234,2,FALSE))) -> 27.253 | U58: 0 | V58: 0 | Y58: =VLOOKUP(AW58,'Cenové indexy '!$D$7:$E$200,2,FALSE) -> 99.88 | Z58: =W58/Y58*'Cenové indexy '!$E$149 -> 0 | AA58: 0 | AB58: 2015 | AE58: 2014-11-30 | AF58: Áno | AG58: Áno | AH58: Neurčené | AI58: Nie | AJ58: 24 mesiacov zadarmo, potom (?) | AN58: Zmluva 3_MS | AT58: =VLOOKUP(M58,Adresy!$A$4:$C$156,2,FALSE) -> Praha | AU58: =VLOOKUP(M58,Adresy!$A$4:$C$156,3,FALSE) -> Vídeňská 1959/9 | AV58: M | AW58: 2015M06 | BC58: =VLOOKUP(M58,Adresy!$A$3:$C$122,2,FALSE) -> Praha | BD58: =VLOOKUP(M58,Adresy!$A$3:$C$122,3,FALSE) -> Vídeňská 1959/9 | BE58: 0 | BF58: 0 | BG58: 0 | BH58: 0
A59: SPECT/CT | C59: Služby diaľkovej diagnostiky / licensie | G59: GE Optima NM/CT640 | K59: bez položkovej identifikácie ceny (v rámci sumárnej ceny) | L59: SW | M59: Institut klinické a experimentální medicíny | N59: ČR | O59: Aceso Praha s.r.o. | Q59: 4 | T59: =IF(N59="SR",1,IF(AC59="",VLOOKUP(AW59,'CZKEUR Xchange rate'!$D$13:$E$234,2,FALSE),VLOOKUP(AW59,'CZKEUR Xchange rate'!$A$13:$B$234,2,FALSE))) -> 27.253 | U59: 0 | V59: 0 | Y59: =VLOOKUP(AW59,'Cenové indexy '!$D$7:$E$200,2,FALSE) -> 99.88 | Z59: =W59/Y59*'Cenové indexy '!$E$149 -> 0 | AA59: 0 | AB59: 2015 | AE59: 2014-11-30 | AF59: Áno | AG59: Áno | AH59: Neurčené | AI59: Nie | AJ59: 24 mesiacov zadarmo, potom (?) | AN59: Zmluva 3_MS | AT59: =VLOOKUP(M59,Adresy!$A$4:$C$156,2,FALSE) -> Praha | AU59: =VLOOKUP(M59,Adresy!$A$4:$C$156,3,FALSE) -> Vídeňská 1959/9 | AV59: M | AW59: 2015M06 | BC59: =VLOOKUP(M59,Adresy!$A$3:$C$122,2,FALSE) -> Praha | BD59: =VLOOKUP(M59,Adresy!$A$3:$C$122,3,FALSE) -> Vídeňská 1959/9 | BE59: 0 | BF59: 0 | BG59: 0 | BH59: 0
A60: SPECT/CT | C60: Licensia pre dual monitor | G60: GE Optima NM/CT640 | K60: bez položkovej identifikácie ceny (v rámci sumárnej ceny) | L60: SW | M60: Institut klinické a experimentální medicíny | N60: ČR | O60: Aceso Praha s.r.o. | Q60: 1 | T60: =IF(N60="SR",1,IF(AC60="",VLOOKUP(AW60,'CZKEUR Xchange rate'!$D$13:$E$234,2,FALSE),VLOOKUP(AW60,'CZKEUR Xchange rate'!$A$13:$B$234,2,FALSE))) -> 27.253 | U60: 0 | V60: 0 | Y60: =VLOOKUP(AW60,'Cenové indexy '!$D$7:$E$200,2,FALSE) -> 99.88 | Z60: =W60/Y60*'Cenové indexy '!$E$149 -> 0 | AA60: 0 | AB60: 2015 | AE60: 2014-11-30 | AF60: Áno | AG60: Áno | AH60: Neurčené | AI60: Nie | AJ60: 24 mesiacov zadarmo, potom (?) | AN60: Zmluva 3_MS | AT60: =VLOOKUP(M60,Adresy!$A$4:$C$156,2,FALSE) -> Praha | AU60: =VLOOKUP(M60,Adresy!$A$4:$C$156,3,FALSE) -> Vídeňská 1959/9 | AV60: M | AW60: 2015M06 | BC60: =VLOOKUP(M60,Adresy!$A$3:$C$122,2,FALSE) -> Praha | BD60: =VLOOKUP(M60,Adresy!$A$3:$C$122,3,FALSE) -> Vídeňská 1959/9 | BE60: 0 | BF60: 0 | BG60: 0 | BH60: 0
A61: SPECT/CT | C61: Licensia pre Xeleris 3 server | G61: GE Optima NM/CT640 | K61: bez položkovej identifikácie ceny (v rámci sumárnej ceny) | L61: SW | M61: Institut klinické a experimentální medicíny | N61: ČR | O61: Aceso Praha s.r.o. | Q61: 1 | T61: =IF(N61="SR",1,IF(AC61="",VLOOKUP(AW61,'CZKEUR Xchange rate'!$D$13:$E$234,2,FALSE),VLOOKUP(AW61,'CZKEUR Xchange rate'!$A$13:$B$234,2,FALSE))) -> 27.253 | U61: 0 | V61: 0 | Y61: =VLOOKUP(AW61,'Cenové indexy '!$D$7:$E$200,2,FALSE) -> 99.88 | Z61: =W61/Y61*'Cenové indexy '!$E$149 -> 0 | AA61: 0 | AB61: 2015 | AE61: 2014-11-30 | AF61: Áno | AG61: Áno | AH61: Neurčené | AI61: Nie | AJ61: 24 mesiacov zadarmo, potom (?) | AN61: Zmluva 3_MS | AT61: =VLOOKUP(M61,Adresy!$A$4:$C$156,2,FALSE) -> Praha | AU61: =VLOOKUP(M61,Adresy!$A$4:$C$156,3,FALSE) -> Vídeňská 1959/9 | AV61: M | AW61: 2015M06 | BC61: =VLOOKUP(M61,Adresy!$A$3:$C$122,2,FALSE) -> Praha | BD61: =VLOOKUP(M61,Adresy!$A$3:$C$122,3,FALSE) -> Vídeňská 1959/9 | BE61: 0 | BF61: 0 | BG61: 0 | BH61: 0
A62: SPECT/CT | C62: Licensia evolution for bone a cardiac | G62: GE Optima NM/CT640 | K62: bez položkovej identifikácie ceny (v rámci sumárnej ceny) | L62: SW | M62: Institut klinické a experimentální medicíny | N62: ČR | O62: Aceso Praha s.r.o. | Q62: 1 | T62: =IF(N62="SR",1,IF(AC62="",VLOOKUP(AW62,'CZKEUR Xchange rate'!$D$13:$E$234,2,FALSE),VLOOKUP(AW62,'CZKEUR Xchange rate'!$A$13:$B$234,2,FALSE))) -> 27.253 | U62: 0 | V62: 0 | Y62: =VLOOKUP(AW62,'Cenové indexy '!$D$7:$E$200,2,FALSE) -> 99.88 | Z62: =W62/Y62*'Cenové indexy '!$E$149 -> 0 | AA62: 0 | AB62: 2015 | AE62: 2014-11-30 | AF62: Áno | AG62: Áno | AH62: Neurčené | AI62: Nie | AJ62: 24 mesiacov zadarmo, potom (?) | AN62: Zmluva 3_MS | AT62: =VLOOKUP(M62,Adresy!$A$4:$C$156,2,FALSE) -> Praha | AU62: =VLOOKUP(M62,Adresy!$A$4:$C$156,3,FALSE) -> Vídeňská 1959/9 | AV62: M | AW62: 2015M06 | BC62: =VLOOKUP(M62,Adresy!$A$3:$C$122,2,FALSE) -> Praha | BD62: =VLOOKUP(M62,Adresy!$A$3:$C$122,3,FALSE) -> Vídeňská 1959/9 | BE62: 0 | BF62: 0 | BG62: 0 | BH62: 0
A63: SPECT/CT | C63: Licensia 4D-MSPECT a 4DM-CT | G63: GE Optima NM/CT640 | K63: bez položkovej identifikácie ceny (v rámci sumárnej ceny) | L63: SW | M63: Institut klinické a experimentální medicíny | N63: ČR | O63: Aceso Praha s.r.o. | Q63: 1 | T63: =IF(N63="SR",1,IF(AC63="",VLOOKUP(AW63,'CZKEUR Xchange rate'!$D$13:$E$234,2,FALSE),VLOOKUP(AW63,'CZKEUR Xchange rate'!$A$13:$B$234,2,FALSE))) -> 27.253 | U63: 0 | V63: 0 | Y63: =VLOOKUP(AW63,'Cenové indexy '!$D$7:$E$200,2,FALSE) -> 99.88 | Z63: =W63/Y63*'Cenové indexy '!$E$149 -> 0 | AA63: 0 | AB63: 2015 | AE63: 2014-11-30 | AF63: Áno | AG63: Áno | AH63: Neurčené | AI63: Nie | AJ63: 24 mesiacov zadarmo, potom (?) | AN63: Zmluva 3_MS | AT63: =VLOOKUP(M63,Adresy!$A$4:$C$156,2,FALSE) -> Praha | AU63: =VLOOKUP(M63,Adresy!$A$4:$C$156,3,FALSE) -> Vídeňská 1959/9 | AV63: M | AW63: 2015M06 | BC63: =VLOOKUP(M63,Adresy!$A$3:$C$122,2,FALSE) -> Praha | BD63: =VLOOKUP(M63,Adresy!$A$3:$C$122,3,FALSE) -> Vídeňská 1959/9 | BE63: 0 | BF63: 0 | BG63: 0 | BH63: 0
A64: SPECT/CT | C64: Volumetrix 3D | G64: GE Optima NM/CT640 | K64: bez položkovej identifikácie ceny (v rámci sumárnej ceny) | L64: SW | M64: Institut klinické a experimentální medicíny | N64: ČR | O64: Aceso Praha s.r.o. | Q64: 1 | T64: =IF(N64="SR",1,IF(AC64="",VLOOKUP(AW64,'CZKEUR Xchange rate'!$D$13:$E$234,2,FALSE),VLOOKUP(AW64,'CZKEUR Xchange rate'!$A$13:$B$234,2,FALSE))) -> 27.253 | U64: 0 | V64: 0 | Y64: =VLOOKUP(AW64,'Cenové indexy '!$D$7:$E$200,2,FALSE) -> 99.88 | Z64: =W64/Y64*'Cenové indexy '!$E$149 -> 0 | AA64: 0 | AB64: 2015 | AE64: 2014-11-30 | AF64: Áno | AG64: Áno | AH64: Neurčené | AI64: Nie | AJ64: 24 mesiacov zadarmo, potom (?) | AN64: Zmluva 3_MS | AT64: =VLOOKUP(M64,Adresy!$A$4:$C$156,2,FALSE) -> Praha | AU64: =VLOOKUP(M64,Adresy!$A$4:$C$156,3,FALSE) -> Vídeňská 1959/9 | AV64: M | AW64: 2015M06 | BC64: =VLOOKUP(M64,Adresy!$A$3:$C$122,2,FALSE) -> Praha | BD64: =VLOOKUP(M64,Adresy!$A$3:$C$122,3,FALSE) -> Vídeňská 1959/9 | BE64: 0 | BF64: 0 | BG64: 0 | BH64: 0
A65: SPECT/CT | C65: Software NeuroGam a NeuroMatch | G65: GE Optima NM/CT640 | K65: bez položkovej identifikácie ceny (v rámci sumárnej ceny) | L65: SW | M65: Institut klinické a experimentální medicíny | N65: ČR | O65: Aceso Praha s.r.o. | Q65: 1 | T65: =IF(N65="SR",1,IF(AC65="",VLOOKUP(AW65,'CZKEUR Xchange rate'!$D$13:$E$234,2,FALSE),VLOOKUP(AW65,'CZKEUR Xchange rate'!$A$13:$B$234,2,FALSE))) -> 27.253 | U65: 0 | V65: 0 | Y65: =VLOOKUP(AW65,'Cenové indexy '!$D$7:$E$200,2,FALSE) -> 99.88 | Z65: =W65/Y65*'Cenové indexy '!$E$149 -> 0 | AA65: 0 | AB65: 2015 | AE65: 2014-11-30 | AF65: Áno | AG65: Áno | AH65: Neurčené | AI65: Nie | AJ65: 24 mesiacov zadarmo, potom (?) | AN65: Zmluva 3_MS | AT65: =VLOOKUP(M65,Adresy!$A$4:$C$156,2,FALSE) -> Praha | AU65: =VLOOKUP(M65,Adresy!$A$4:$C$156,3,FALSE) -> Vídeňská 1959/9 | AV65: M | AW65: 2015M06 | BC65: =VLOOKUP(M65,Adresy!$A$3:$C$122,2,FALSE) -> Praha | BD65: =VLOOKUP(M65,Adresy!$A$3:$C$122,3,FALSE) -> Vídeňská 1959/9 | BE65: 0 | BF65: 0 | BG65: 0 | BH65: 0
A66: SPECT/CT | C66: Ivy 7600 cardiac trigger monitor | G66: GE Optima NM/CT640 | K66: bez položkovej identifikácie ceny (v rámci sumárnej ceny) | L66: HW | M66: Institut klinické a experimentální medicíny | N66: ČR | O66: Aceso Praha s.r.o. | Q66: 1 | T66: =IF(N66="SR",1,IF(AC66="",VLOOKUP(AW66,'CZKEUR Xchange rate'!$D$13:$E$234,2,FALSE),VLOOKUP(AW66,'CZKEUR Xchange rate'!$A$13:$B$234,2,FALSE))) -> 27.253 | U66: 0 | V66: 0 | Y66: =VLOOKUP(AW66,'Cenové indexy '!$D$7:$E$200,2,FALSE) -> 99.88 | Z66: =W66/Y66*'Cenové indexy '!$E$149 -> 0 | AA66: =Z66*1.2 -> 0 | AB66: 2015 | AE66: =DATE(AB66,AC66,AD66) -> 2014-11-30 | AF66: Áno | AG66: Áno | AH66: Neurčené | AI66: Nie | AJ66: 24 mesiacov zadarmo, potom (?) | AN66: Zmluva 3_MS | AT66: =VLOOKUP(M66,Adresy!$A$4:$C$156,2,FALSE) -> Praha | AU66: =VLOOKUP(M66,Adresy!$A$4:$C$156,3,FALSE) -> Vídeňská 1959/9 | AV66: M | AW66: 2015M06 | BC66: =VLOOKUP(M66,Adresy!$A$3:$C$122,2,FALSE) -> Praha | BD66: =VLOOKUP(M66,Adresy!$A$3:$C$122,3,FALSE) -> Vídeňská 1959/9 | BE66: =IF(BC66<>AT66,1,0) -> 0 | BF66: 0 | BG66: 0 | BH66: 0
A67: SPECT/CT | C67: Ostatné stacionárne vybavenie | G67: GE Optima NM/CT640 | K67: bez položkovej identifikácie ceny (v rámci sumárnej ceny) | L67: HW | M67: Institut klinické a experimentální medicíny | N67: ČR | O67: Aceso Praha s.r.o. | Q67: 1 | T67: =IF(N67="SR",1,IF(AC67="",VLOOKUP(AW67,'CZKEUR Xchange rate'!$D$13:$E$234,2,FALSE),VLOOKUP(AW67,'CZKEUR Xchange rate'!$A$13:$B$234,2,FALSE))) -> 27.253 | U67: 0 | V67: 0 | Y67: =VLOOKUP(AW67,'Cenové indexy '!$D$7:$E$200,2,FALSE) -> 99.88 | Z67: =W67/Y67*'Cenové indexy '!$E$149 -> 0 | AA67: 0 | AB67: 2015 | AE67: 2014-11-30 | AF67: Áno | AG67: Áno | AH67: Neurčené | AI67: Nie | AJ67: 24 mesiacov zadarmo, potom (?) | AN67: Zmluva 3_MS | AT67: =VLOOKUP(M67,Adresy!$A$4:$C$156,2,FALSE) -> Praha | AU67: =VLOOKUP(M67,Adresy!$A$4:$C$156,3,FALSE) -> Vídeňská 1959/9 | AV67: M | AW67: =IF(AC67="",CONCATENATE(AB67,AV67,"06"),IF(LEN(AC67)=1,CONCATENATE(AB67,AV67,"0"&AC67),CONCATENATE(AB67,AV67,AC67))) -> 2015M06 | BC67: =VLOOKUP(M67,Adresy!$A$3:$C$122,2,FALSE) -> Praha | BD67: =VLOOKUP(M67,Adresy!$A$3:$C$122,3,FALSE) -> Vídeňská 1959/9 | BE67: 0 | BF67: 0 | BG67: 0 | BH67: 0
A68: SPECT/CT | C68: Diagnostický monitor | E68: Mdview 243 | G68: GE Optima NM/CT640 | K68: bez položkovej identifikácie ceny (v rámci sumárnej ceny) | L68: HW | M68: Institut klinické a experimentální medicíny | N68: ČR | O68: Aceso Praha s.r.o. | Q68: 1 | T68: =IF(N68="SR",1,IF(AC68="",VLOOKUP(AW68,'CZKEUR Xchange rate'!$D$13:$E$234,2,FALSE),VLOOKUP(AW68,'CZKEUR Xchange rate'!$A$13:$B$234,2,FALSE))) -> 27.253 | U68: 0 | V68: 0 | Y68: =VLOOKUP(AW68,'Cenové indexy '!$D$7:$E$200,2,FALSE) -> 99.88 | Z68: =W68/Y68*'Cenové indexy '!$E$149 -> 0 | AA68: 0 | AB68: 2015 | AE68: 2014-11-30 | AF68: Áno | AG68: Áno | AH68: Neurčené | AI68: Nie | AJ68: 24 mesiacov zadarmo, potom (?) | AN68: Zmluva 3_MS | AT68: =VLOOKUP(M68,Adresy!$A$4:$C$156,2,FALSE) -> Praha | AU68: =VLOOKUP(M68,Adresy!$A$4:$C$156,3,FALSE) -> Vídeňská 1959/9 | AV68: M | AW68: 2015M06 | BC68: =VLOOKUP(M68,Adresy!$A$3:$C$122,2,FALSE) -> Praha | BD68: =VLOOKUP(M68,Adresy!$A$3:$C$122,3,FALSE) -> Vídeňská 1959/9 | BE68: 0 | BF68: 0 | BG68: 0 | BH68: 0
A69: SPECT/CT | C69: Klinický monitor | E69: MD242C2 | G69: GE Optima NM/CT640 | K69: bez položkovej identifikácie ceny (v rámci sumárnej ceny) | L69: HW | M69: Institut klinické a experimentální medicíny | N69: ČR | O69: Aceso Praha s.r.o. | Q69: 1 | T69: =IF(N69="SR",1,IF(AC69="",VLOOKUP(AW69,'CZKEUR Xchange rate'!$D$13:$E$234,2,FALSE),VLOOKUP(AW69,'CZKEUR Xchange rate'!$A$13:$B$234,2,FALSE))) -> 27.253 | U69: 0 | V69: 0 | Y69: =VLOOKUP(AW69,'Cenové indexy '!$D$7:$E$200,2,FALSE) -> 99.88 | Z69: =W69/Y69*'Cenové indexy '!$E$149 -> 0 | AA69: 0 | AB69: 2015 | AE69: 2014-11-30 | AF69: Áno | AG69: Áno | AH69: Neurčené | AI69: Nie | AJ69: 24 mesiacov zadarmo, potom (?) | AN69: Zmluva 3_MS | AT69: =VLOOKUP(M69,Adresy!$A$4:$C$156,2,FALSE) -> Praha | AU69: =VLOOKUP(M69,Adresy!$A$4:$C$156,3,FALSE) -> Vídeňská 1959/9 | AV69: M | AW69: 2015M06 | BC69: =VLOOKUP(M69,Adresy!$A$3:$C$122,2,FALSE) -> Praha | BD69: =VLOOKUP(M69,Adresy!$A$3:$C$122,3,FALSE) -> Vídeňská 1959/9 | BE69: 0 | BF69: 0 | BG69: 0 | BH69: 0
A70: SPECT/CT | C70: PC pracovná stanica pre nukleárnu medicínu | E70: Z230 | G70: GE Optima NM/CT640 | K70: bez položkovej identifikácie ceny (v rámci sumárnej ceny) | L70: HW | M70: Institut klinické a experimentální medicíny | N70: ČR | O70: Aceso Praha s.r.o. | Q70: 1 | T70: =IF(N70="SR",1,IF(AC70="",VLOOKUP(AW70,'CZKEUR Xchange rate'!$D$13:$E$234,2,FALSE),VLOOKUP(AW70,'CZKEUR Xchange rate'!$A$13:$B$234,2,FALSE))) -> 27.253 | U70: 0 | V70: 0 | Y70: =VLOOKUP(AW70,'Cenové indexy '!$D$7:$E$200,2,FALSE) -> 99.88 | Z70: =W70/Y70*'Cenové indexy '!$E$149 -> 0 | AA70: 0 | AB70: 2015 | AE70: 2014-11-30 | AF70: Áno | AG70: Áno | AH70: Neurčené | AI70: Nie | AJ70: 24 mesiacov zadarmo, potom (?) | AN70: Zmluva 3_MS | AT70: =VLOOKUP(M70,Adresy!$A$4:$C$156,2,FALSE) -> Praha | AU70: =VLOOKUP(M70,Adresy!$A$4:$C$156,3,FALSE) -> Vídeňská 1959/9 | AV70: M | AW70: 2015M06 | BC70: =VLOOKUP(M70,Adresy!$A$3:$C$122,2,FALSE) -> Praha | BD70: =VLOOKUP(M70,Adresy!$A$3:$C$122,3,FALSE) -> Vídeňská 1959/9 | BE70: 0 | BF70: 0 | BG70: 0 | BH70: 0
A71: SPECT/CT | C71: Celá zostava | G71: Siemens symbia Intevo Excel | K71: sumárna cena | L71: HW/SW | M71: Nemocnice Znojmo | N71: ČR | O71: EDOMED a.s. | Q71: 1 | R71: 13392000 | S71: =R71*1.21 -> 16204320 | T71: =IF(N71="SR",1,IF(AC71="",VLOOKUP(AW71,'CZKEUR Xchange rate'!$D$13:$E$234,2,FALSE),VLOOKUP(AW71,'CZKEUR Xchange rate'!$A$13:$B$234,2,FALSE))) -> 27.453 | U71: 487815.5393 | V71: 590256.8025 | W71: =U71/Q71 -> 487815.5393 | X71: =V71/Q71 -> 590256.8025 | Y71: =VLOOKUP(AW71,'Cenové indexy '!$D$7:$E$200,2,FALSE) -> 99.5 | Z71: =W71/Y71*'Cenové indexy '!$E$149 -> 505612.2268 | AA71: 606734.6722 | AB71: 2014 | AE71: 2013-11-30 | AF71: Nie | AG71: Áno / nie | AH71: Neurčené | AI71: Nie | AJ71: 24 mesiacov zadarmo, potom 8 rokov podľa zmluvy | AN71: Zmluva 4_MS | AT71: =VLOOKUP(M71,Adresy!$A$4:$C$156,2,FALSE) -> Znojmo | AU71: =VLOOKUP(M71,Adresy!$A$4:$C$156,3,FALSE) -> MUDr. Jana Janského 2675/11 | AV71: M | AW71: 2014M06 | BC71: =VLOOKUP(M71,Adresy!$A$3:$C$122,2,FALSE) -> Znojmo | BD71: =VLOOKUP(M71,Adresy!$A$3:$C$122,3,FALSE) -> MUDr. Jana Janského 2675/11 | BE71: 0 | BF71: 0 | BG71: 0 | BH71: 0
A72: SPECT/CT | C72: Detektory 3/8 s nízkym profilom | G72: Siemens symbia Intevo Excel | K72: bez položkovej identifikácie ceny (v rámci sumárnej ceny) | L72: HW | M72: Nemocnice Znojmo | N72: ČR | O72: EDOMED a.s. | Q72: 2 | T72: =IF(N72="SR",1,IF(AC72="",VLOOKUP(AW72,'CZKEUR Xchange rate'!$D$13:$E$234,2,FALSE),VLOOKUP(AW72,'CZKEUR Xchange rate'!$A$13:$B$234,2,FALSE))) -> 27.453 | U72: 0 | V72: 0 | Y72: =VLOOKUP(AW72,'Cenové indexy '!$D$7:$E$200,2,FALSE) -> 99.5 | Z72: =W72/Y72*'Cenové indexy '!$E$149 -> 0 | AA72: 0 | AB72: 2014 | AE72: 2013-11-30 | AF72: Nie | AG72: Áno / nie | AH72: Neurčené | AI72: Nie | AJ72: 24 mesiacov zadarmo, potom 8 rokov podľa zmluvy | AN72: Zmluva 4_MS | AT72: =VLOOKUP(M72,Adresy!$A$4:$C$156,2,FALSE) -> Znojmo | AU72: =VLOOKUP(M72,Adresy!$A$4:$C$156,3,FALSE) -> MUDr. Jana Janského 2675/11 | AV72: M | AW72: 2014M06 | BC72: =VLOOKUP(M72,Adresy!$A$3:$C$122,2,FALSE) -> Znojmo | BD72: =VLOOKUP(M72,Adresy!$A$3:$C$122,3,FALSE) -> MUDr. Jana Janského 2675/11 | BE72: 0 | BF72: 0 | BG72: 0 | BH72: 0
A73: SPECT/CT | C73: Kaudálne naklápanie | G73: Siemens symbia Intevo Excel | K73: bez položkovej identifikácie ceny (v rámci sumárnej ceny) | L73: HW | M73: Nemocnice Znojmo | N73: ČR | O73: EDOMED a.s. | Q73: 1 | T73: =IF(N73="SR",1,IF(AC73="",VLOOKUP(AW73,'CZKEUR Xchange rate'!$D$13:$E$234,2,FALSE),VLOOKUP(AW73,'CZKEUR Xchange rate'!$A$13:$B$234,2,FALSE))) -> 27.453 | U73: 0 | V73: 0 | Y73: =VLOOKUP(AW73,'Cenové indexy '!$D$7:$E$200,2,FALSE) -> 99.5 | Z73: =W73/Y73*'Cenové indexy '!$E$149 -> 0 | AA73: 0 | AB73: 2014 | AE73: 2013-11-30 | AF73: Nie | AG73: Áno / nie | AH73: Neurčené | AI73: Nie | AJ73: 24 mesiacov zadarmo, potom 8 rokov podľa zmluvy | AN73: Zmluva 4_MS | AT73: =VLOOKUP(M73,Adresy!$A$4:$C$156,2,FALSE) -> Znojmo | AU73: =VLOOKUP(M73,Adresy!$A$4:$C$156,3,FALSE) -> MUDr. Jana Janského 2675/11 | AV73: M | AW73: 2014M06 | BC73: =VLOOKUP(M73,Adresy!$A$3:$C$122,2,FALSE) -> Znojmo | BD73: =VLOOKUP(M73,Adresy!$A$3:$C$122,3,FALSE) -> MUDr. Jana Janského 2675/11 | BE73: 0 | BF73: 0 | BG73: 0 | BH73: 0
A74: SPECT/CT | C74: Kolimátor pre nízke energie, vysoké rozlíšenie | G74: Siemens symbia Intevo Excel | K74: bez položkovej identifikácie ceny (v rámci sumárnej ceny) | L74: HW | M74: Nemocnice Znojmo | N74: ČR | O74: EDOMED a.s. | Q74: 2 | T74: =IF(N74="SR",1,IF(AC74="",VLOOKUP(AW74,'CZKEUR Xchange rate'!$D$13:$E$234,2,FALSE),VLOOKUP(AW74,'CZKEUR Xchange rate'!$A$13:$B$234,2,FALSE))) -> 27.453 | U74: 0 | V74: 0 | Y74: =VLOOKUP(AW74,'Cenové indexy '!$D$7:$E$200,2,FALSE) -> 99.5 | Z74: =W74/Y74*'Cenové indexy '!$E$149 -> 0 | AA74: 0 | AB74: 2014 | AE74: 2013-11-30 | AF74: Nie | AG74: Áno / nie | AH74: Neurčené | AI74: Nie | AJ74: 24 mesiacov zadarmo, potom 8 rokov podľa zmluvy | AN74: Zmluva 4_MS | AT74: =VLOOKUP(M74,Adresy!$A$4:$C$156,2,FALSE) -> Znojmo | AU74: =VLOOKUP(M74,Adresy!$A$4:$C$156,3,FALSE) -> MUDr. Jana Janského 2675/11 | AV74: M | AW74: 2014M06 | BC74: =VLOOKUP(M74,Adresy!$A$3:$C$122,2,FALSE) -> Znojmo | BD74: =VLOOKUP(M74,Adresy!$A$3:$C$122,3,FALSE) -> MUDr. Jana Janského 2675/11 | BE74: 0 | BF74: 0 | BG74: 0 | BH74: 0
A75: SPECT/CT | C75: Kolimátor pre stredné energie | G75: Siemens symbia Intevo Excel | K75: bez položkovej identifikácie ceny (v rámci sumárnej ceny) | L75: HW | M75: Nemocnice Znojmo | N75: ČR | O75: EDOMED a.s. | Q75: 2 | T75: =IF(N75="SR",1,IF(AC75="",VLOOKUP(AW75,'CZKEUR Xchange rate'!$D$13:$E$234,2,FALSE),VLOOKUP(AW75,'CZKEUR Xchange rate'!$A$13:$B$234,2,FALSE))) -> 27.453 | U75: 0 | V75: 0 | Y75: =VLOOKUP(AW75,'Cenové indexy '!$D$7:$E$200,2,FALSE) -> 99.5 | Z75: =W75/Y75*'Cenové indexy '!$E$149 -> 0 | AA75: 0 | AB75: 2014 | AE75: 2013-11-30 | AF75: Nie | AG75: Áno / nie | AH75: Neurčené | AI75: Nie | AJ75: 24 mesiacov zadarmo, potom 8 rokov podľa zmluvy | AN75: Zmluva 4_MS | AT75: =VLOOKUP(M75,Adresy!$A$4:$C$156,2,FALSE) -> Znojmo | AU75: =VLOOKUP(M75,Adresy!$A$4:$C$156,3,FALSE) -> MUDr. Jana Janského 2675/11 | AV75: M | AW75: 2014M06 | BC75: =VLOOKUP(M75,Adresy!$A$3:$C$122,2,FALSE) -> Znojmo | BD75: =VLOOKUP(M75,Adresy!$A$3:$C$122,3,FALSE) -> MUDr. Jana Janského 2675/11 | BE75: 0 | BF75: 0 | BG75: 0 | BH75: 0
A76: SPECT/CT | C76: Vozík pre kolimátor | G76: Siemens symbia Intevo Excel | K76: bez položkovej identifikácie ceny (v rámci sumárnej ceny) | L76: HW | M76: Nemocnice Znojmo | N76: ČR | O76: EDOMED a.s. | Q76: 1 | T76: =IF(N76="SR",1,IF(AC76="",VLOOKUP(AW76,'CZKEUR Xchange rate'!$D$13:$E$234,2,FALSE),VLOOKUP(AW76,'CZKEUR Xchange rate'!$A$13:$B$234,2,FALSE))) -> 27.453 | U76: 0 | V76: 0 | Y76: =VLOOKUP(AW76,'Cenové indexy '!$D$7:$E$200,2,FALSE) -> 99.5 | Z76: =W76/Y76*'Cenové indexy '!$E$149 -> 0 | AA76: 0 | AB76: 2014 | AE76: 2013-11-30 | AF76: Nie | AG76: Áno / nie | AH76: Neurčené | AI76: Nie | AJ76: 24 mesiacov zadarmo, potom 8 rokov podľa zmluvy | AN76: Zmluva 4_MS | AT76: =VLOOKUP(M76,Adresy!$A$4:$C$156,2,FALSE) -> Znojmo | AU76: =VLOOKUP(M76,Adresy!$A$4:$C$156,3,FALSE) -> MUDr. Jana Janského 2675/11 | AV76: M | AW76: 2014M06 | BC76: =VLOOKUP(M76,Adresy!$A$3:$C$122,2,FALSE) -> Znojmo | BD76: =VLOOKUP(M76,Adresy!$A$3:$C$122,3,FALSE) -> MUDr. Jana Janského 2675/11 | BE76: 0 | BF76: 0 | BG76: 0 | BH76: 0
A77: SPECT/CT | C77: Interný EKG pre systém Symbia | G77: Siemens symbia Intevo Excel | K77: bez položkovej identifikácie ceny (v rámci sumárnej ceny) | L77: HW | M77: Nemocnice Znojmo | N77: ČR | O77: EDOMED a.s. | Q77: 1 | T77: =IF(N77="SR",1,IF(AC77="",VLOOKUP(AW77,'CZKEUR Xchange rate'!$D$13:$E$234,2,FALSE),VLOOKUP(AW77,'CZKEUR Xchange rate'!$A$13:$B$234,2,FALSE))) -> 27.453 | U77: 0 | V77: 0 | Y77: =VLOOKUP(AW77,'Cenové indexy '!$D$7:$E$200,2,FALSE) -> 99.5 | Z77: =W77/Y77*'Cenové indexy '!$E$149 -> 0 | AA77: 0 | AB77: 2014 | AE77: 2013-11-30 | AF77: Nie | AG77: Áno / nie | AH77: Neurčené | AI77: Nie | AJ77: 24 mesiacov zadarmo, potom 8 rokov podľa zmluvy | AN77: Zmluva 4_MS | AT77: =VLOOKUP(M77,Adresy!$A$4:$C$156,2,FALSE) -> Znojmo | AU77: =VLOOKUP(M77,Adresy!$A$4:$C$156,3,FALSE) -> MUDr. Jana Janského 2675/11 | AV77: M | AW77: 2014M06 | BC77: =VLOOKUP(M77,Adresy!$A$3:$C$122,2,FALSE) -> Znojmo | BD77: =VLOOKUP(M77,Adresy!$A$3:$C$122,3,FALSE) -> MUDr. Jana Janského 2675/11 | BE77: 0 | BF77: 0 | BG77: 0 | BH77: 0
A78: SPECT/CT | C78: Kábel PHS pod podlahou | G78: Siemens symbia Intevo Excel | K78: bez položkovej identifikácie ceny (v rámci sumárnej ceny) | L78: HW | M78: Nemocnice Znojmo | N78: ČR | O78: EDOMED a.s. | Q78: 1 | T78: =IF(N78="SR",1,IF(AC78="",VLOOKUP(AW78,'CZKEUR Xchange rate'!$D$13:$E$234,2,FALSE),VLOOKUP(AW78,'CZKEUR Xchange rate'!$A$13:$B$234,2,FALSE))) -> 27.453 | U78: 0 | V78: 0 | Y78: =VLOOKUP(AW78,'Cenové indexy '!$D$7:$E$200,2,FALSE) -> 99.5 | Z78: =W78/Y78*'Cenové indexy '!$E$149 -> 0 | AA78: 0 | AB78: 2014 | AE78: 2013-11-30 | AF78: Nie | AG78: Áno / nie | AH78: Neurčené | AI78: Nie | AJ78: 24 mesiacov zadarmo, potom 8 rokov podľa zmluvy | AN78: Zmluva 4_MS | AT78: =VLOOKUP(M78,Adresy!$A$4:$C$156,2,FALSE) -> Znojmo | AU78: =VLOOKUP(M78,Adresy!$A$4:$C$156,3,FALSE) -> MUDr. Jana Janského 2675/11 | AV78: M | AW78: 2014M06 | BC78: =VLOOKUP(M78,Adresy!$A$3:$C$122,2,FALSE) -> Znojmo | BD78: =VLOOKUP(M78,Adresy!$A$3:$C$122,3,FALSE) -> MUDr. Jana Janského 2675/11 | BE78: 0 | BF78: 0 | BG78: 0 | BH78: 0
A79: SPECT/CT | C79: Služby diaľkovej diagnostiky | G79: Siemens symbia Intevo Excel | K79: bez položkovej identifikácie ceny (v rámci sumárnej ceny) | L79: SW | M79: Nemocnice Znojmo | N79: ČR | O79: EDOMED a.s. | Q79: 1 | T79: =IF(N79="SR",1,IF(AC79="",VLOOKUP(AW79,'CZKEUR Xchange rate'!$D$13:$E$234,2,FALSE),VLOOKUP(AW79,'CZKEUR Xchange rate'!$A$13:$B$234,2,FALSE))) -> 27.453 | U79: 0 | V79: 0 | Y79: =VLOOKUP(AW79,'Cenové indexy '!$D$7:$E$200,2,FALSE) -> 99.5 | Z79: =W79/Y79*'Cenové indexy '!$E$149 -> 0 | AA79: 0 | AB79: 2014 | AE79: 2013-11-30 | AF79: Nie | AG79: Áno / nie | AH79: Neurčené | AI79: Nie | AJ79: 24 mesiacov zadarmo, potom 8 rokov podľa zmluvy | AN79: Zmluva 4_MS | AT79: =VLOOKUP(M79,Adresy!$A$4:$C$156,2,FALSE) -> Znojmo | AU79: =VLOOKUP(M79,Adresy!$A$4:$C$156,3,FALSE) -> MUDr. Jana Janského 2675/11 | AV79: M | AW79: 2014M06 | BC79: =VLOOKUP(M79,Adresy!$A$3:$C$122,2,FALSE) -> Znojmo | BD79: =VLOOKUP(M79,Adresy!$A$3:$C$122,3,FALSE) -> MUDr. Jana Janského 2675/11 | BE79: 0 | BF79: 0 | BG79: 0 | BH79: 0
A80: SPECT/CT | C80: Symbia.net | G80: Siemens symbia Intevo Excel | K80: bez položkovej identifikácie ceny (v rámci sumárnej ceny) | L80: SW | M80: Nemocnice Znojmo | N80: ČR | O80: EDOMED a.s. | Q80: 1 | T80: =IF(N80="SR",1,IF(AC80="",VLOOKUP(AW80,'CZKEUR Xchange rate'!$D$13:$E$234,2,FALSE),VLOOKUP(AW80,'CZKEUR Xchange rate'!$A$13:$B$234,2,FALSE))) -> 27.453 | U80: 0 | V80: 0 | Y80: =VLOOKUP(AW80,'Cenové indexy '!$D$7:$E$200,2,FALSE) -> 99.5 | Z80: =W80/Y80*'Cenové indexy '!$E$149 -> 0 | AA80: 0 | AB80: 2014 | AE80: 2013-11-30 | AF80: Nie | AG80: Áno / nie | AH80: Neurčené | AI80: Nie | AJ80: 24 mesiacov zadarmo, potom 8 rokov podľa zmluvy | AN80: Zmluva 4_MS | AT80: =VLOOKUP(M80,Adresy!$A$4:$C$156,2,FALSE) -> Znojmo | AU80: =VLOOKUP(M80,Adresy!$A$4:$C$156,3,FALSE) -> MUDr. Jana Janského 2675/11 | AV80: M | AW80: 2014M06 | BC80: =VLOOKUP(M80,Adresy!$A$3:$C$122,2,FALSE) -> Znojmo | BD80: =VLOOKUP(M80,Adresy!$A$3:$C$122,3,FALSE) -> MUDr. Jana Janského 2675/11 | BE80: 0 | BF80: 0 | BG80: 0 | BH80: 0
A81: SPECT/CT | C81: Server management | G81: Siemens symbia Intevo Excel | K81: bez položkovej identifikácie ceny (v rámci sumárnej ceny) | L81: SW | M81: Nemocnice Znojmo | N81: ČR | O81: EDOMED a.s. | Q81: 1 | T81: =IF(N81="SR",1,IF(AC81="",VLOOKUP(AW81,'CZKEUR Xchange rate'!$D$13:$E$234,2,FALSE),VLOOKUP(AW81,'CZKEUR Xchange rate'!$A$13:$B$234,2,FALSE))) -> 27.453 | U81: 0 | V81: 0 | Y81: =VLOOKUP(AW81,'Cenové indexy '!$D$7:$E$200,2,FALSE) -> 99.5 | Z81: =W81/Y81*'Cenové indexy '!$E$149 -> 0 | AA81: 0 | AB81: 2014 | AE81: 2013-11-30 | AF81: Nie | AG81: Áno / nie | AH81: Neurčené | AI81: Nie | AJ81: 24 mesiacov zadarmo, potom 8 rokov podľa zmluvy | AN81: Zmluva 4_MS | AT81: =VLOOKUP(M81,Adresy!$A$4:$C$156,2,FALSE) -> Znojmo | AU81: =VLOOKUP(M81,Adresy!$A$4:$C$156,3,FALSE) -> MUDr. Jana Janského 2675/11 | AV81: M | AW81: 2014M06 | BC81: =VLOOKUP(M81,Adresy!$A$3:$C$122,2,FALSE) -> Znojmo | BD81: =VLOOKUP(M81,Adresy!$A$3:$C$122,3,FALSE) -> MUDr. Jana Janského 2675/11 | BE81: 0 | BF81: 0 | BG81: 0 | BH81: 0
A82: SPECT/CT | C82: Symbia.net, klient | G82: Siemens symbia Intevo Excel | K82: bez položkovej identifikácie ceny (v rámci sumárnej ceny) | L82: SW | M82: Nemocnice Znojmo | N82: ČR | O82: EDOMED a.s. | Q82: 1 | T82: =IF(N82="SR",1,IF(AC82="",VLOOKUP(AW82,'CZKEUR Xchange rate'!$D$13:$E$234,2,FALSE),VLOOKUP(AW82,'CZKEUR Xchange rate'!$A$13:$B$234,2,FALSE))) -> 27.453 | U82: 0 | V82: 0 | Y82: =VLOOKUP(AW82,'Cenové indexy '!$D$7:$E$200,2,FALSE) -> 99.5 | Z82: =W82/Y82*'Cenové indexy '!$E$149 -> 0 | AA82: 0 | AB82: 2014 | AE82: 2013-11-30 | AF82: Nie | AG82: Áno / nie | AH82: Neurčené | AI82: Nie | AJ82: 24 mesiacov zadarmo, potom 8 rokov podľa zmluvy | AN82: Zmluva 4_MS | AT82: =VLOOKUP(M82,Adresy!$A$4:$C$156,2,FALSE) -> Znojmo | AU82: =VLOOKUP(M82,Adresy!$A$4:$C$156,3,FALSE) -> MUDr. Jana Janského 2675/11 | AV82: M | AW82: 2014M06 | BC82: =VLOOKUP(M82,Adresy!$A$3:$C$122,2,FALSE) -> Znojmo | BD82: =VLOOKUP(M82,Adresy!$A$3:$C$122,3,FALSE) -> MUDr. Jana Janského 2675/11 | BE82: 0 | BF82: 0 | BG82: 0 | BH82: 0
A83: SPECT/CT | C83: Pokročilý engine pre onkológiu | G83: Siemens symbia Intevo Excel | K83: bez položkovej identifikácie ceny (v rámci sumárnej ceny) | L83: SW | M83: Nemocnice Znojmo | N83: ČR | O83: EDOMED a.s. | Q83: 1 | T83: =IF(N83="SR",1,IF(AC83="",VLOOKUP(AW83,'CZKEUR Xchange rate'!$D$13:$E$234,2,FALSE),VLOOKUP(AW83,'CZKEUR Xchange rate'!$A$13:$B$234,2,FALSE))) -> 27.453 | U83: 0 | V83: 0 | Y83: =VLOOKUP(AW83,'Cenové indexy '!$D$7:$E$200,2,FALSE) -> 99.5 | Z83: =W83/Y83*'Cenové indexy '!$E$149 -> 0 | AA83: 0 | AB83: 2014 | AE83: 2013-11-30 | AF83: Nie | AG83: Áno / nie | AH83: Neurčené | AI83: Nie | AJ83: 24 mesiacov zadarmo, potom 8 rokov podľa zmluvy | AN83: Zmluva 4_MS | AT83: =VLOOKUP(M83,Adresy!$A$4:$C$156,2,FALSE) -> Znojmo | AU83: =VLOOKUP(M83,Adresy!$A$4:$C$156,3,FALSE) -> MUDr. Jana Janského 2675/11 | AV83: M | AW83: 2014M06 | BC83: =VLOOKUP(M83,Adresy!$A$3:$C$122,2,FALSE) -> Znojmo | BD83: =VLOOKUP(M83,Adresy!$A$3:$C$122,3,FALSE) -> MUDr. Jana Janského 2675/11 | BE83: 0 | BF83: 0 | BG83: 0 | BH83: 0
A84: SPECT/CT | C84: + pokročilý engine pre onkológiu | G84: Siemens symbia Intevo Excel | K84: bez položkovej identifikácie ceny (v rámci sumárnej ceny) | L84: SW | M84: Nemocnice Znojmo | N84: ČR | O84: EDOMED a.s. | Q84: 1 | T84: =IF(N84="SR",1,IF(AC84="",VLOOKUP(AW84,'CZKEUR Xchange rate'!$D$13:$E$234,2,FALSE),VLOOKUP(AW84,'CZKEUR Xchange rate'!$A$13:$B$234,2,FALSE))) -> 27.453 | U84: 0 | V84: 0 | Y84: =VLOOKUP(AW84,'Cenové indexy '!$D$7:$E$200,2,FALSE) -> 99.5 | Z84: =W84/Y84*'Cenové indexy '!$E$149 -> 0 | AA84: 0 | AB84: 2014 | AE84: 2013-11-30 | AF84: Nie | AG84: Áno / nie | AH84: Neurčené | AI84: Nie | AJ84: 24 mesiacov zadarmo, potom 8 rokov podľa zmluvy | AN84: Zmluva 4_MS | AT84: =VLOOKUP(M84,Adresy!$A$4:$C$156,2,FALSE) -> Znojmo | AU84: =VLOOKUP(M84,Adresy!$A$4:$C$156,3,FALSE) -> MUDr. Jana Janského 2675/11 | AV84: M | AW84: 2014M06 | BC84: =VLOOKUP(M84,Adresy!$A$3:$C$122,2,FALSE) -> Znojmo | BD84: =VLOOKUP(M84,Adresy!$A$3:$C$122,3,FALSE) -> MUDr. Jana Janského 2675/11 | BE84: 0 | BF84: 0 | BG84: 0 | BH84: 0
A85: SPECT/CT | C85: Kardiologický engine 4DM | G85: Siemens symbia Intevo Excel | K85: bez položkovej identifikácie ceny (v rámci sumárnej ceny) | L85: SW | M85: Nemocnice Znojmo | N85: ČR | O85: EDOMED a.s. | Q85: 1 | T85: =IF(N85="SR",1,IF(AC85="",VLOOKUP(AW85,'CZKEUR Xchange rate'!$D$13:$E$234,2,FALSE),VLOOKUP(AW85,'CZKEUR Xchange rate'!$A$13:$B$234,2,FALSE))) -> 27.453 | U85: 0 | V85: 0 | Y85: =VLOOKUP(AW85,'Cenové indexy '!$D$7:$E$200,2,FALSE) -> 99.5 | Z85: =W85/Y85*'Cenové indexy '!$E$149 -> 0 | AA85: 0 | AB85: 2014 | AE85: 2013-11-30 | AF85: Nie | AG85: Áno / nie | AH85: Neurčené | AI85: Nie | AJ85: 24 mesiacov zadarmo, potom 8 rokov podľa zmluvy | AN85: Zmluva 4_MS | AT85: =VLOOKUP(M85,Adresy!$A$4:$C$156,2,FALSE) -> Znojmo | AU85: =VLOOKUP(M85,Adresy!$A$4:$C$156,3,FALSE) -> MUDr. Jana Janského 2675/11 | AV85: M | AW85: 2014M06 | BC85: =VLOOKUP(M85,Adresy!$A$3:$C$122,2,FALSE) -> Znojmo | BD85: =VLOOKUP(M85,Adresy!$A$3:$C$122,3,FALSE) -> MUDr. Jana Janského 2675/11 | BE85: 0 | BF85: 0 | BG85: 0 | BH85: 0
A86: SPECT/CT | C86: + kardiologický engine 4DM | G86: Siemens symbia Intevo Excel | K86: bez položkovej identifikácie ceny (v rámci sumárnej ceny) | L86: SW | M86: Nemocnice Znojmo | N86: ČR | O86: EDOMED a.s. | Q86: 1 | T86: =IF(N86="SR",1,IF(AC86="",VLOOKUP(AW86,'CZKEUR Xchange rate'!$D$13:$E$234,2,FALSE),VLOOKUP(AW86,'CZKEUR Xchange rate'!$A$13:$B$234,2,FALSE))) -> 27.453 | U86: 0 | V86: 0 | Y86: =VLOOKUP(AW86,'Cenové indexy '!$D$7:$E$200,2,FALSE) -> 99.5 | Z86: =W86/Y86*'Cenové indexy '!$E$149 -> 0 | AA86: 0 | AB86: 2014 | AE86: 2013-11-30 | AF86: Nie | AG86: Áno / nie | AH86: Neurčené | AI86: Nie | AJ86: 24 mesiacov zadarmo, potom 8 rokov podľa zmluvy | AN86: Zmluva 4_MS | AT86: =VLOOKUP(M86,Adresy!$A$4:$C$156,2,FALSE) -> Znojmo | AU86: =VLOOKUP(M86,Adresy!$A$4:$C$156,3,FALSE) -> MUDr. Jana Janského 2675/11 | AV86: M | AW86: 2014M06 | BC86: =VLOOKUP(M86,Adresy!$A$3:$C$122,2,FALSE) -> Znojmo | BD86: =VLOOKUP(M86,Adresy!$A$3:$C$122,3,FALSE) -> MUDr. Jana Janského 2675/11 | BE86: 0 | BF86: 0 | BG86: 0 | BH86: 0
A87: SPECT/CT | C87: Spracovanie zamerané na určitý orgán | G87: Siemens symbia Intevo Excel | K87: bez položkovej identifikácie ceny (v rámci sumárnej ceny) | L87: SW | M87: Nemocnice Znojmo | N87: ČR | O87: EDOMED a.s. | Q87: 1 | T87: =IF(N87="SR",1,IF(AC87="",VLOOKUP(AW87,'CZKEUR Xchange rate'!$D$13:$E$234,2,FALSE),VLOOKUP(AW87,'CZKEUR Xchange rate'!$A$13:$B$234,2,FALSE))) -> 27.453 | U87: 0 | V87: 0 | Y87: =VLOOKUP(AW87,'Cenové indexy '!$D$7:$E$200,2,FALSE) -> 99.5 | Z87: =W87/Y87*'Cenové indexy '!$E$149 -> 0 | AA87: 0 | AB87: 2014 | AE87: 2013-11-30 | AF87: Nie | AG87: Áno / nie | AH87: Neurčené | AI87: Nie | AJ87: 24 mesiacov zadarmo, potom 8 rokov podľa zmluvy | AN87: Zmluva 4_MS | AT87: =VLOOKUP(M87,Adresy!$A$4:$C$156,2,FALSE) -> Znojmo | AU87: =VLOOKUP(M87,Adresy!$A$4:$C$156,3,FALSE) -> MUDr. Jana Janského 2675/11 | AV87: M | AW87: 2014M06 | BC87: =VLOOKUP(M87,Adresy!$A$3:$C$122,2,FALSE) -> Znojmo | BD87: =VLOOKUP(M87,Adresy!$A$3:$C$122,3,FALSE) -> MUDr. Jana Janského 2675/11 | BE87: 0 | BF87: 0 | BG87: 0 | BH87: 0
A88: SPECT/CT | C88: + spracovanie zamerané na určitý orgán | G88: Siemens symbia Intevo Excel | K88: bez položkovej identifikácie ceny (v rámci sumárnej ceny) | L88: SW | M88: Nemocnice Znojmo | N88: ČR | O88: EDOMED a.s. | Q88: 1 | T88: =IF(N88="SR",1,IF(AC88="",VLOOKUP(AW88,'CZKEUR Xchange rate'!$D$13:$E$234,2,FALSE),VLOOKUP(AW88,'CZKEUR Xchange rate'!$A$13:$B$234,2,FALSE))) -> 27.453 | U88: 0 | V88: 0 | Y88: =VLOOKUP(AW88,'Cenové indexy '!$D$7:$E$200,2,FALSE) -> 99.5 | Z88: =W88/Y88*'Cenové indexy '!$E$149 -> 0 | AA88: 0 | AB88: 2014 | AE88: 2013-11-30 | AF88: Nie | AG88: Áno / nie | AH88: Neurčené | AI88: Nie | AJ88: 24 mesiacov zadarmo, potom 8 rokov podľa zmluvy | AN88: Zmluva 4_MS | AT88: =VLOOKUP(M88,Adresy!$A$4:$C$156,2,FALSE) -> Znojmo | AU88: =VLOOKUP(M88,Adresy!$A$4:$C$156,3,FALSE) -> MUDr. Jana Janského 2675/11 | AV88: M | AW88: 2014M06 | BC88: =VLOOKUP(M88,Adresy!$A$3:$C$122,2,FALSE) -> Znojmo | BD88: =VLOOKUP(M88,Adresy!$A$3:$C$122,3,FALSE) -> MUDr. Jana Janského 2675/11 | BE88: 0 | BF88: 0 | BG88: 0 | BH88: 0
A89: SPECT/CT | C89: Pokročilý enigine "reconstruction" | G89: Siemens symbia Intevo Excel | K89: bez položkovej identifikácie ceny (v rámci sumárnej ceny) | L89: SW | M89: Nemocnice Znojmo | N89: ČR | O89: EDOMED a.s. | Q89: 1 | T89: =IF(N89="SR",1,IF(AC89="",VLOOKUP(AW89,'CZKEUR Xchange rate'!$D$13:$E$234,2,FALSE),VLOOKUP(AW89,'CZKEUR Xchange rate'!$A$13:$B$234,2,FALSE))) -> 27.453 | U89: 0 | V89: 0 | Y89: =VLOOKUP(AW89,'Cenové indexy '!$D$7:$E$200,2,FALSE) -> 99.5 | Z89: =W89/Y89*'Cenové indexy '!$E$149 -> 0 | AA89: 0 | AB89: 2014 | AE89: 2013-11-30 | AF89: Nie | AG89: Áno / nie | AH89: Neurčené | AI89: Nie | AJ89: 24 mesiacov zadarmo, potom 8 rokov podľa zmluvy | AN89: Zmluva 4_MS | AT89: =VLOOKUP(M89,Adresy!$A$4:$C$156,2,FALSE) -> Znojmo | AU89: =VLOOKUP(M89,Adresy!$A$4:$C$156,3,FALSE) -> MUDr. Jana Janského 2675/11 | AV89: M | AW89: 2014M06 | BC89: =VLOOKUP(M89,Adresy!$A$3:$C$122,2,FALSE) -> Znojmo | BD89: =VLOOKUP(M89,Adresy!$A$3:$C$122,3,FALSE) -> MUDr. Jana Janského 2675/11 | BE89: 0 | BF89: 0 | BG89: 0 | BH89: 0
A90: SPECT/CT | C90: + pokročilá rekonštrukcia | G90: Siemens symbia Intevo Excel | K90: bez položkovej identifikácie ceny (v rámci sumárnej ceny) | L90: SW | M90: Nemocnice Znojmo | N90: ČR | O90: EDOMED a.s. | Q90: 1 | T90: =IF(N90="SR",1,IF(AC90="",VLOOKUP(AW90,'CZKEUR Xchange rate'!$D$13:$E$234,2,FALSE),VLOOKUP(AW90,'CZKEUR Xchange rate'!$A$13:$B$234,2,FALSE))) -> 27.453 | U90: 0 | V90: 0 | Y90: =VLOOKUP(AW90,'Cenové indexy '!$D$7:$E$200,2,FALSE) -> 99.5 | Z90: =W90/Y90*'Cenové indexy '!$E$149 -> 0 | AA90: 0 | AB90: 2014 | AE90: 2013-11-30 | AF90: Nie | AG90: Áno / nie | AH90: Neurčené | AI90: Nie | AJ90: 24 mesiacov zadarmo, potom 8 rokov podľa zmluvy | AN90: Zmluva 4_MS | AT90: =VLOOKUP(M90,Adresy!$A$4:$C$156,2,FALSE) -> Znojmo | AU90: =VLOOKUP(M90,Adresy!$A$4:$C$156,3,FALSE) -> MUDr. Jana Janského 2675/11 | AV90: M | AW90: 2014M06 | BC90: =VLOOKUP(M90,Adresy!$A$3:$C$122,2,FALSE) -> Znojmo | BD90: =VLOOKUP(M90,Adresy!$A$3:$C$122,3,FALSE) -> MUDr. Jana Janského 2675/11 | BE90: 0 | BF90: 0 | BG90: 0 | BH90: 0
A91: SPECT/CT | C91: Monitor LCD 19 | G91: Siemens symbia Intevo Excel | K91: bez položkovej identifikácie ceny (v rámci sumárnej ceny) | L91: HW | M91: Nemocnice Znojmo | N91: ČR | O91: EDOMED a.s. | Q91: 2 | T91: =IF(N91="SR",1,IF(AC91="",VLOOKUP(AW91,'CZKEUR Xchange rate'!$D$13:$E$234,2,FALSE),VLOOKUP(AW91,'CZKEUR Xchange rate'!$A$13:$B$234,2,FALSE))) -> 27.453 | U91: 0 | V91: 0 | Y91: =VLOOKUP(AW91,'Cenové indexy '!$D$7:$E$200,2,FALSE) -> 99.5 | Z91: =W91/Y91*'Cenové indexy '!$E$149 -> 0 | AA91: 0 | AB91: 2014 | AE91: 2013-11-30 | AF91: Nie | AG91: Áno / nie | AH91: Neurčené | AI91: Nie | AJ91: 24 mesiacov zadarmo, potom 8 rokov podľa zmluvy | AN91: Zmluva 4_MS | AT91: =VLOOKUP(M91,Adresy!$A$4:$C$156,2,FALSE) -> Znojmo | AU91: =VLOOKUP(M91,Adresy!$A$4:$C$156,3,FALSE) -> MUDr. Jana Janského 2675/11 | AV91: M | AW91: 2014M06 | BC91: =VLOOKUP(M91,Adresy!$A$3:$C$122,2,FALSE) -> Znojmo | BD91: =VLOOKUP(M91,Adresy!$A$3:$C$122,3,FALSE) -> MUDr. Jana Janského 2675/11 | BE91: 0 | BF91: 0 | BG91: 0 | BH91: 0
A92: SPECT/CT | C92: PC pre vyhodocovaciu stanicu | G92: Siemens symbia Intevo Excel | K92: bez položkovej identifikácie ceny (v rámci sumárnej ceny) | L92: HW | M92: Nemocnice Znojmo | N92: ČR | O92: EDOMED a.s. | Q92: 1 | T92: =IF(N92="SR",1,IF(AC92="",VLOOKUP(AW92,'CZKEUR Xchange rate'!$D$13:$E$234,2,FALSE),VLOOKUP(AW92,'CZKEUR Xchange rate'!$A$13:$B$234,2,FALSE))) -> 27.453 | U92: 0 | V92: 0 | Y92: =VLOOKUP(AW92,'Cenové indexy '!$D$7:$E$200,2,FALSE) -> 99.5 | Z92: =W92/Y92*'Cenové indexy '!$E$149 -> 0 | AA92: 0 | AB92: 2014 | AE92: 2013-11-30 | AF92: Nie | AG92: Áno / nie | AH92: Neurčené | AI92: Nie | AJ92: 24 mesiacov zadarmo, potom 8 rokov podľa zmluvy | AN92: Zmluva 4_MS | AT92: =VLOOKUP(M92,Adresy!$A$4:$C$156,2,FALSE) -> Znojmo | AU92: =VLOOKUP(M92,Adresy!$A$4:$C$156,3,FALSE) -> MUDr. Jana Janského 2675/11 | AV92: M | AW92: 2014M06 | BC92: =VLOOKUP(M92,Adresy!$A$3:$C$122,2,FALSE) -> Znojmo | BD92: =VLOOKUP(M92,Adresy!$A$3:$C$122,3,FALSE) -> MUDr. Jana Janského 2675/11 | BE92: 0 | BF92: 0 | BG92: 0 | BH92: 0
A93: SPECT/CT | C93: UPS APC | G93: Siemens symbia Intevo Excel | K93: bez položkovej identifikácie ceny (v rámci sumárnej ceny) | L93: HW | M93: Nemocnice Znojmo | N93: ČR | O93: EDOMED a.s. | Q93: 1 | T93: =IF(N93="SR",1,IF(AC93="",VLOOKUP(AW93,'CZKEUR Xchange rate'!$D$13:$E$234,2,FALSE),VLOOKUP(AW93,'CZKEUR Xchange rate'!$A$13:$B$234,2,FALSE))) -> 27.453 | U93: 0 | V93: 0 | Y93: =VLOOKUP(AW93,'Cenové indexy '!$D$7:$E$200,2,FALSE) -> 99.5 | Z93: =W93/Y93*'Cenové indexy '!$E$149 -> 0 | AA93: 0 | AB93: 2014 | AE93: 2013-11-30 | AF93: Nie | AG93: Áno / nie | AH93: Neurčené | AI93: Nie | AJ93: 24 mesiacov zadarmo, potom 8 rokov podľa zmluvy | AN93: Zmluva 4_MS | AT93: =VLOOKUP(M93,Adresy!$A$4:$C$156,2,FALSE) -> Znojmo | AU93: =VLOOKUP(M93,Adresy!$A$4:$C$156,3,FALSE) -> MUDr. Jana Janského 2675/11 | AV93: M | AW93: 2014M06 | BC93: =VLOOKUP(M93,Adresy!$A$3:$C$122,2,FALSE) -> Znojmo | BD93: =VLOOKUP(M93,Adresy!$A$3:$C$122,3,FALSE) -> MUDr. Jana Janského 2675/11 | BE93: 0 | BF93: 0 | BG93: 0 | BH93: 0
A94: SPECT/CT | C94: 25 Neurology Engine | G94: Siemens symbia Intevo Excel | K94: bez položkovej identifikácie ceny (v rámci sumárnej ceny) | L94: SW | M94: Nemocnice Znojmo | N94: ČR | O94: EDOMED a.s. | Q94: 1 | T94: =IF(N94="SR",1,IF(AC94="",VLOOKUP(AW94,'CZKEUR Xchange rate'!$D$13:$E$234,2,FALSE),VLOOKUP(AW94,'CZKEUR Xchange rate'!$A$13:$B$234,2,FALSE))) -> 27.453 | U94: 0 | V94: 0 | Y94: =VLOOKUP(AW94,'Cenové indexy '!$D$7:$E$200,2,FALSE) -> 99.5 | Z94: =W94/Y94*'Cenové indexy '!$E$149 -> 0 | AA94: 0 | AB94: 2014 | AE94: 2013-11-30 | AF94: Nie | AG94: Áno / nie | AH94: Neurčené | AI94: Nie | AJ94: 24 mesiacov zadarmo, potom 8 rokov podľa zmluvy | AN94: Zmluva 4_MS | AT94: =VLOOKUP(M94,Adresy!$A$4:$C$156,2,FALSE) -> Znojmo | AU94: =VLOOKUP(M94,Adresy!$A$4:$C$156,3,FALSE) -> MUDr. Jana Janského 2675/11 | AV94: M | AW94: 2014M06 | BC94: =VLOOKUP(M94,Adresy!$A$3:$C$122,2,FALSE) -> Znojmo | BD94: =VLOOKUP(M94,Adresy!$A$3:$C$122,3,FALSE) -> MUDr. Jana Janského 2675/11 | BE94: 0 | BF94: 0 | BG94: 0 | BH94: 0
A95: SPECT/CT | C95: 26+ Neurology engine | G95: Siemens symbia Intevo Excel | K95: bez položkovej identifikácie ceny (v rámci sumárnej ceny) | L95: SW | M95: Nemocnice Znojmo | N95: ČR | O95: EDOMED a.s. | Q95: 1 | T95: =IF(N95="SR",1,IF(AC95="",VLOOKUP(AW95,'CZKEUR Xchange rate'!$D$13:$E$234,2,FALSE),VLOOKUP(AW95,'CZKEUR Xchange rate'!$A$13:$B$234,2,FALSE))) -> 27.453 | U95: 0 | V95: 0 | Y95: =VLOOKUP(AW95,'Cenové indexy '!$D$7:$E$200,2,FALSE) -> 99.5 | Z95: =W95/Y95*'Cenové indexy '!$E$149 -> 0 | AA95: 0 | AB95: 2014 | AE95: 2013-11-30 | AF95: Nie | AG95: Áno / nie | AH95: Neurčené | AI95: Nie | AJ95: 24 mesiacov zadarmo, potom 8 rokov podľa zmluvy | AN95: Zmluva 4_MS | AT95: =VLOOKUP(M95,Adresy!$A$4:$C$156,2,FALSE) -> Znojmo | AU95: =VLOOKUP(M95,Adresy!$A$4:$C$156,3,FALSE) -> MUDr. Jana Janského 2675/11 | AV95: M | AW95: 2014M06 | BC95: =VLOOKUP(M95,Adresy!$A$3:$C$122,2,FALSE) -> Znojmo | BD95: =VLOOKUP(M95,Adresy!$A$3:$C$122,3,FALSE) -> MUDr. Jana Janského 2675/11 | BE95: 0 | BF95: 0 | BG95: 0 | BH95: 0
A96: SPECT/CT | C96: Demontáž a likvidácia | G96: Siemens symbia Intevo Excel | K96: položková cena (súčasť sumárnej ceny) | L96: služby | M96: Nemocnice Znojmo | N96: ČR | O96: EDOMED a.s. | Q96: 1 | R96: 50000 | S96: =R96*1.21 -> 60500 | T96: =IF(N96="SR",1,IF(AC96="",VLOOKUP(AW96,'CZKEUR Xchange rate'!$D$13:$E$234,2,FALSE),VLOOKUP(AW96,'CZKEUR Xchange rate'!$A$13:$B$234,2,FALSE))) -> 27.453 | U96: 1821.294576 | V96: 2203.766437 | W96: =U96/Q96 -> 1821.294576 | X96: =V96/Q96 -> 2203.766437 | Y96: =VLOOKUP(AW96,'Cenové indexy '!$D$7:$E$200,2,FALSE) -> 99.5 | Z96: =W96/Y96*'Cenové indexy '!$E$149 -> 1887.739795 | AA96: 2265.287754 | AB96: 2014 | AE96: 2013-11-30 | AF96: Nie | AG96: Áno / nie | AH96: Neurčené | AI96: Nie | AJ96: 24 mesiacov zadarmo, potom 8 rokov podľa zmluvy | AN96: Zmluva 4_MS | AT96: =VLOOKUP(M96,Adresy!$A$4:$C$156,2,FALSE) -> Znojmo | AU96: =VLOOKUP(M96,Adresy!$A$4:$C$156,3,FALSE) -> MUDr. Jana Janského 2675/11 | AV96: M | AW96: 2014M06 | BC96: =VLOOKUP(M96,Adresy!$A$3:$C$122,2,FALSE) -> Znojmo | BD96: =VLOOKUP(M96,Adresy!$A$3:$C$122,3,FALSE) -> MUDr. Jana Janského 2675/11 | BE96: 0 | BF96: 0 | BG96: 0 | BH96: 0
A97: SPECT/CT | C97: Predinštalačná príprava | G97: Siemens symbia Intevo Excel | K97: položková cena (súčasť sumárnej ceny) | L97: služby | M97: Nemocnice Znojmo | N97: ČR | O97: EDOMED a.s. | Q97: 1 | R97: 540000 | S97: =R97*1.21 -> 653400 | T97: =IF(N97="SR",1,IF(AC97="",VLOOKUP(AW97,'CZKEUR Xchange rate'!$D$13:$E$234,2,FALSE),VLOOKUP(AW97,'CZKEUR Xchange rate'!$A$13:$B$234,2,FALSE))) -> 27.453 | U97: 19669.98142 | V97: 23800.67752 | W97: 19669.98142 | X97: 23800.67752 | Y97: =VLOOKUP(AW97,'Cenové indexy '!$D$7:$E$200,2,FALSE) -> 99.5 | Z97: =W97/Y97*'Cenové indexy '!$E$149 -> 20387.58979 | AA97: 24465.10775 | AB97: 2014 | AE97: 2013-11-30 | AF97: Nie | AG97: Áno / nie | AH97: Neurčené | AI97: Nie | AJ97: 24 mesiacov zadarmo, potom 8 rokov podľa zmluvy | AN97: Zmluva 4_MS | AT97: =VLOOKUP(M97,Adresy!$A$4:$C$156,2,FALSE) -> Znojmo | AU97: =VLOOKUP(M97,Adresy!$A$4:$C$156,3,FALSE) -> MUDr. Jana Janského 2675/11 | AV97: M | AW97: 2014M06 | BC97: =VLOOKUP(M97,Adresy!$A$3:$C$122,2,FALSE) -> Znojmo | BD97: =VLOOKUP(M97,Adresy!$A$3:$C$122,3,FALSE) -> MUDr. Jana Janského 2675/11 | BE97: 0 | BF97: 0 | BG97: 0 | BH97: 0
A98: SPECT/CT | C98: Montáž a napojenie do PACS a NUS | G98: Siemens symbia Intevo Excel | K98: položková cena (súčasť sumárnej ceny) | L98: služby | M98: Nemocnice Znojmo | N98: ČR | O98: EDOMED a.s. | Q98: 1 | R98: 100000 | S98: =R98*1.21 -> 121000 | T98: =IF(N98="SR",1,IF(AC98="",VLOOKUP(AW98,'CZKEUR Xchange rate'!$D$13:$E$234,2,FALSE),VLOOKUP(AW98,'CZKEUR Xchange rate'!$A$13:$B$234,2,FALSE))) -> 27.453 | U98: 3642.589152 | V98: 4407.532874 | W98: 3642.589152 | X98: 4407.532874 | Y98: =VLOOKUP(AW98,'Cenové indexy '!$D$7:$E$200,2,FALSE) -> 99.5 | Z98: =W98/Y98*'Cenové indexy '!$E$149 -> 3775.479591 | AA98: 4530.575509 | AB98: 2014 | AE98: 2013-11-30 | AF98: Nie | AG98: Áno / nie | AH98: Neurčené | AI98: Nie | AJ98: 24 mesiacov zadarmo, potom 8 rokov podľa zmluvy | AN98: Zmluva 4_MS | AT98: =VLOOKUP(M98,Adresy!$A$4:$C$156,2,FALSE) -> Znojmo | AU98: =VLOOKUP(M98,Adresy!$A$4:$C$156,3,FALSE) -> MUDr. Jana Janského 2675/11 | AV98: M | AW98: 2014M06 | BC98: =VLOOKUP(M98,Adresy!$A$3:$C$122,2,FALSE) -> Znojmo | BD98: =VLOOKUP(M98,Adresy!$A$3:$C$122,3,FALSE) -> MUDr. Jana Janského 2675/11 | BE98: 0 | BF98: 0 | BG98: 0 | BH98: 0
A99: SPECT/CT | C99: Zaškolenie personálu a dodanie dokumentácie | G99: Siemens symbia Intevo Excel | K99: položková cena (súčasť sumárnej ceny) | L99: služby | M99: Nemocnice Znojmo | N99: ČR | O99: EDOMED a.s. | Q99: 1 | R99: 50000 | S99: =R99*1.21 -> 60500 | T99: =IF(N99="SR",1,IF(AC99="",VLOOKUP(AW99,'CZKEUR Xchange rate'!$D$13:$E$234,2,FALSE),VLOOKUP(AW99,'CZKEUR Xchange rate'!$A$13:$B$234,2,FALSE))) -> 27.453 | U99: 1821.294576 | V99: 2203.766437 | W99: 1821.294576 | X99: 2203.766437 | Y99: =VLOOKUP(AW99,'Cenové indexy '!$D$7:$E$200,2,FALSE) -> 99.5 | Z99: =W99/Y99*'Cenové indexy '!$E$149 -> 1887.739795 | AA99: 2265.287754 | AB99: 2014 | AE99: 2013-11-30 | AF99: Nie | AG99: Áno / nie | AH99: Neurčené | AI99: Nie | AJ99: 24 mesiacov zadarmo, potom 8 rokov podľa zmluvy | AN99: Zmluva 4_MS | AT99: =VLOOKUP(M99,Adresy!$A$4:$C$156,2,FALSE) -> Znojmo | AU99: =VLOOKUP(M99,Adresy!$A$4:$C$156,3,FALSE) -> MUDr. Jana Janského 2675/11 | AV99: M | AW99: 2014M06 | BC99: =VLOOKUP(M99,Adresy!$A$3:$C$122,2,FALSE) -> Znojmo | BD99: =VLOOKUP(M99,Adresy!$A$3:$C$122,3,FALSE) -> MUDr. Jana Janského 2675/11 | BE99: 0 | BF99: 0 | BG99: 0 | BH99: 0
A100: SPECT/CT | C100: Skúška dlhodobej stability | G100: Siemens symbia Intevo Excel | K100: položková cena (súčasť sumárnej ceny) | L100: služby | M100: Nemocnice Znojmo | N100: ČR | O100: EDOMED a.s. | Q100: 1 | R100: 40000 | S100: =R100*1.21 -> 48400 | T100: =IF(N100="SR",1,IF(AC100="",VLOOKUP(AW100,'CZKEUR Xchange rate'!$D$13:$E$234,2,FALSE),VLOOKUP(AW100,'CZKEUR Xchange rate'!$A$13:$B$234,2,FALSE))) -> 27.453 | U100: 1457.035661 | V100: 1763.01315 | W100: 1457.035661 | X100: 1763.01315 | Y100: =VLOOKUP(AW100,'Cenové indexy '!$D$7:$E$200,2,FALSE) -> 99.5 | Z100: =W100/Y100*'Cenové indexy '!$E$149 -> 1510.191836 | AA100: 1812.230204 | AB100: 2014 | AE100: 2013-11-30 | AF100: Nie | AG100: Áno / nie | AH100: Neurčené | AI100: Nie | AJ100: 24 mesiacov zadarmo, potom 8 rokov podľa zmluvy | AN100: Zmluva 4_MS | AT100: =VLOOKUP(M100,Adresy!$A$4:$C$156,2,FALSE) -> Znojmo | AU100: =VLOOKUP(M100,Adresy!$A$4:$C$156,3,FALSE) -> MUDr. Jana Janského 2675/11 | AV100: M | AW100: 2014M06 | BC100: =VLOOKUP(M100,Adresy!$A$3:$C$122,2,FALSE) -> Znojmo | BD100: =VLOOKUP(M100,Adresy!$A$3:$C$122,3,FALSE) -> MUDr. Jana Janského 2675/11 | BE100: 0 | BF100: 0 | BG100: 0 | BH100: 0
A101: SPECT/CT | C101: Pozáručný servis (8 rokov po záruke) | E101: 8 rokov po záručnej dobe | G101: Siemens symbia Intevo Excel | K101: sumárna cena | L101: služby | M101: Nemocnice Znojmo | N101: ČR | O101: EDOMED a.s. | Q101: 1 | R101: 7358000 | S101: 8903180 | T101: =IF(N101="SR",1,IF(AC101="",VLOOKUP(AW101,'CZKEUR Xchange rate'!$D$13:$E$234,2,FALSE),VLOOKUP(AW101,'CZKEUR Xchange rate'!$A$13:$B$234,2,FALSE))) -> 27.253 | U101: 269988.6251 | V101: 326686.2364 | W101: 269988.6251 | X101: 326686.2364 | Y101: =VLOOKUP(AW101,'Cenové indexy '!$D$7:$E$200,2,FALSE) -> 99.88 | Z101: =W101/Y101*'Cenové indexy '!$E$149 -> 278773.7976 | AA101: 334528.5572 | AB101: 2015 | AE101: 2014-11-30 | AI101: Nie | AJ101: 8 ročná zmluva | AN101: Zmluva 6_MS | AT101: =VLOOKUP(M101,Adresy!$A$4:$C$156,2,FALSE) -> Znojmo | AU101: =VLOOKUP(M101,Adresy!$A$4:$C$156,3,FALSE) -> MUDr. Jana Janského 2675/11 | AV101: M | AW101: 2015M06 | BC101: =VLOOKUP(M101,Adresy!$A$3:$C$122,2,FALSE) -> Znojmo | BD101: =VLOOKUP(M101,Adresy!$A$3:$C$122,3,FALSE) -> MUDr. Jana Janského 2675/11 | BE101: 0 | BF101: 0 | BG101: 0 | BH101: 0
A102: SPECT/CT | C102: Celá zostava | G102: PHILIPS BrightView XCT | J102: Philips | K102: sumárna cena | L102: HW/SW | M102: Inštitút nukleárnej a molekulárnej medicíny | N102: SR | O102: S&T | Q102: 1 | R102: 574990 | S102: 689988 | T102: =IF(N102="SR",1,IF(AC102="",VLOOKUP(AW102,'CZKEUR Xchange rate'!$D$13:$E$234,2,FALSE),VLOOKUP(AW102,'CZKEUR Xchange rate'!$A$13:$B$234,2,FALSE))) -> 1 | U102: 574990 | V102: 689988 | W102: 574990 | X102: 689988 | Y102: =VLOOKUP(AW102,'Cenové indexy '!$D$7:$E$200,2,FALSE) -> 89.51 | Z102: =W102/Y102*'Cenové indexy '!$E$149 -> 662481.4959 | AA102: 794977.7951 | AB102: 2011 | AE102: 2010-11-30 | AF102: Áno | AG102: Áno | AH102: Neurčené | AI102: Nie | AJ102: 24 mesiacov zadarmo, potom 6 rokov podľa zmluvy | AN102: Zmluva 5_MS | AT102: =VLOOKUP(M102,Adresy!$A$4:$C$156,2,FALSE) -> Košice | AU102: =VLOOKUP(M102,Adresy!$A$4:$C$156,3,FALSE) -> Rastislavova 785/43 | AV102: M | AW102: 2011M06 | BC102: =VLOOKUP(M102,Adresy!$A$3:$C$122,2,FALSE) -> Košice | BD102: =VLOOKUP(M102,Adresy!$A$3:$C$122,3,FALSE) -> Rastislavova 785/43 | BE102: 0 | BF102: 0 | BG102: 0 | BH102: 0
A103: SPECT/CT | C103: Detektory 3/8 s nízkym profilom | G103: PHILIPS BrightView XCT | J103: Philips | K103: bez položkovej identifikácie ceny (v rámci sumárnej ceny) | L103: HW | M103: Inštitút nukleárnej a molekulárnej medicíny | N103: SR | O103: S&T | Q103: 1 | T103: =IF(N103="SR",1,IF(AC103="",VLOOKUP(AW103,'CZKEUR Xchange rate'!$D$13:$E$234,2,FALSE),VLOOKUP(AW103,'CZKEUR Xchange rate'!$A$13:$B$234,2,FALSE))) -> 1 | U103: 0 | V103: 0 | Y103: =VLOOKUP(AW103,'Cenové indexy '!$D$7:$E$200,2,FALSE) -> 89.51 | Z103: =W103/Y103*'Cenové indexy '!$E$149 -> 0 | AA103: 0 | AB103: 2011 | AE103: 2010-11-30 | AF103: Áno | AG103: Áno | AH103: Neurčené | AI103: Nie | AJ103: 24 mesiacov zadarmo, potom 6 rokov podľa zmluvy | AN103: Zmluva 5_MS | AT103: =VLOOKUP(M103,Adresy!$A$4:$C$156,2,FALSE) -> Košice | AU103: =VLOOKUP(M103,Adresy!$A$4:$C$156,3,FALSE) -> Rastislavova 785/43 | AV103: M | AW103: 2011M06 | BC103: =VLOOKUP(M103,Adresy!$A$3:$C$122,2,FALSE) -> Košice | BD103: =VLOOKUP(M103,Adresy!$A$3:$C$122,3,FALSE) -> Rastislavova 785/43 | BE103: 0 | BF103: 0 | BG103: 0 | BH103: 0
A104: SPECT/CT | C104: Kolimátor pre nízke energie, vysoké rozlíšenie | G104: PHILIPS BrightView XCT | J104: Philips | K104: bez položkovej identifikácie ceny (v rámci sumárnej ceny) | L104: HW | M104: Inštitút nukleárnej a molekulárnej medicíny | N104: SR | O104: S&T | Q104: 1 | T104: =IF(N104="SR",1,IF(AC104="",VLOOKUP(AW104,'CZKEUR Xchange rate'!$D$13:$E$234,2,FALSE),VLOOKUP(AW104,'CZKEUR Xchange rate'!$A$13:$B$234,2,FALSE))) -> 1 | U104: 0 | V104: 0 | Y104: =VLOOKUP(AW104,'Cenové indexy '!$D$7:$E$200,2,FALSE) -> 89.51 | Z104: =W104/Y104*'Cenové indexy '!$E$149 -> 0 | AA104: 0 | AB104: 2011 | AE104: 2010-11-30 | AF104: Áno | AG104: Áno | AH104: Neurčené | AI104: Nie | AJ104: 24 mesiacov zadarmo, potom 6 rokov podľa zmluvy | AN104: Zmluva 5_MS | AT104: =VLOOKUP(M104,Adresy!$A$4:$C$156,2,FALSE) -> Košice | AU104: =VLOOKUP(M104,Adresy!$A$4:$C$156,3,FALSE) -> Rastislavova 785/43 | AV104: M | AW104: 2011M06 | BC104: =VLOOKUP(M104,Adresy!$A$3:$C$122,2,FALSE) -> Košice | BD104: =VLOOKUP(M104,Adresy!$A$3:$C$122,3,FALSE) -> Rastislavova 785/43 | BE104: 0 | BF104: 0 | BG104: 0 | BH104: 0
A105: SPECT/CT | C105: Kolimátor pre stredné energie | G105: PHILIPS BrightView XCT | J105: Philips | K105: bez položkovej identifikácie ceny (v rámci sumárnej ceny) | L105: HW | M105: Inštitút nukleárnej a molekulárnej medicíny | N105: SR | O105: S&T | Q105: 1 | T105: =IF(N105="SR",1,IF(AC105="",VLOOKUP(AW105,'CZKEUR Xchange rate'!$D$13:$E$234,2,FALSE),VLOOKUP(AW105,'CZKEUR Xchange rate'!$A$13:$B$234,2,FALSE))) -> 1 | U105: =R105/T105 -> 0 | V105: =S105/T105 -> 0 | Y105: =VLOOKUP(AW105,'Cenové indexy '!$D$7:$E$200,2,FALSE) -> 89.51 | Z105: =W105/Y105*'Cenové indexy '!$E$149 -> 0 | AA105: 0 | AB105: 2011 | AE105: 2010-11-30 | AF105: Áno | AG105: Áno | AH105: Neurčené | AI105: Nie | AJ105: 24 mesiacov zadarmo, potom 6 rokov podľa zmluvy | AN105: Zmluva 5_MS | AT105: =VLOOKUP(M105,Adresy!$A$4:$C$156,2,FALSE) -> Košice | AU105: =VLOOKUP(M105,Adresy!$A$4:$C$156,3,FALSE) -> Rastislavova 785/43 | AV105: M | AW105: 2011M06 | BC105: =VLOOKUP(M105,Adresy!$A$3:$C$122,2,FALSE) -> Košice | BD105: =VLOOKUP(M105,Adresy!$A$3:$C$122,3,FALSE) -> Rastislavova 785/43 | BE105: 0 | BF105: 0 | BG105: 0 | BH105: 0
A106: SPECT/CT | C106: Počítačový systém pre akvizíciu | G106: PHILIPS BrightView XCT | J106: Philips | K106: bez položkovej identifikácie ceny (v rámci sumárnej ceny) | L106: HW/SW | M106: Inštitút nukleárnej a molekulárnej medicíny | N106: SR | O106: S&T | Q106: 1 | T106: =IF(N106="SR",1,IF(AC106="",VLOOKUP(AW106,'CZKEUR Xchange rate'!$D$13:$E$234,2,FALSE),VLOOKUP(AW106,'CZKEUR Xchange rate'!$A$13:$B$234,2,FALSE))) -> 1 | U106: 0 | V106: 0 | Y106: =VLOOKUP(AW106,'Cenové indexy '!$D$7:$E$200,2,FALSE) -> 89.51 | Z106: =W106/Y106*'Cenové indexy '!$E$149 -> 0 | AA106: 0 | AB106: 2011 | AE106: 2010-11-30 | AF106: Áno | AG106: Áno | AH106: Neurčené | AI106: Nie | AJ106: 24 mesiacov zadarmo, potom 6 rokov podľa zmluvy | AN106: Zmluva 5_MS | AT106: =VLOOKUP(M106,Adresy!$A$4:$C$156,2,FALSE) -> Košice | AU106: =VLOOKUP(M106,Adresy!$A$4:$C$156,3,FALSE) -> Rastislavova 785/43 | AV106: M | AW106: 2011M06 | BC106: =VLOOKUP(M106,Adresy!$A$3:$C$122,2,FALSE) -> Košice | BD106: =VLOOKUP(M106,Adresy!$A$3:$C$122,3,FALSE) -> Rastislavova 785/43 | BE106: 0 | BF106: 0 | BG106: 0 | BH106: 0
A107: SPECT/CT | C107: Počítačový systém pre spracovanie údajov | G107: PHILIPS BrightView XCT | J107: Philips | K107: bez položkovej identifikácie ceny (v rámci sumárnej ceny) | L107: SW | M107: Inštitút nukleárnej a molekulárnej medicíny | N107: SR | O107: S&T | Q107: 2 | T107: =IF(N107="SR",1,IF(AC107="",VLOOKUP(AW107,'CZKEUR Xchange rate'!$D$13:$E$234,2,FALSE),VLOOKUP(AW107,'CZKEUR Xchange rate'!$A$13:$B$234,2,FALSE))) -> 1 | U107: 0 | V107: 0 | Y107: =VLOOKUP(AW107,'Cenové indexy '!$D$7:$E$200,2,FALSE) -> 89.51 | Z107: =W107/Y107*'Cenové indexy '!$E$149 -> 0 | AA107: 0 | AB107: 2011 | AE107: 2010-11-30 | AF107: Áno | AG107: Áno | AH107: Neurčené | AI107: Nie | AJ107: 24 mesiacov zadarmo, potom 6 rokov podľa zmluvy | AN107: Zmluva 5_MS | AT107: =VLOOKUP(M107,Adresy!$A$4:$C$156,2,FALSE) -> Košice | AU107: =VLOOKUP(M107,Adresy!$A$4:$C$156,3,FALSE) -> Rastislavova 785/43 | AV107: M | AW107: 2011M06 | BC107: =VLOOKUP(M107,Adresy!$A$3:$C$122,2,FALSE) -> Košice | BD107: =VLOOKUP(M107,Adresy!$A$3:$C$122,3,FALSE) -> Rastislavova 785/43 | BE107: 0 | BF107: 0 | BG107: 0 | BH107: 0
A108: SPECT/CT | C108: Software (cardio, neuro) | G108: PHILIPS BrightView XCT | J108: Philips | K108: bez položkovej identifikácie ceny (v rámci sumárnej ceny) | L108: SW | M108: Inštitút nukleárnej a molekulárnej medicíny | N108: SR | O108: S&T | Q108: 1 | T108: =IF(N108="SR",1,IF(AC108="",VLOOKUP(AW108,'CZKEUR Xchange rate'!$D$13:$E$234,2,FALSE),VLOOKUP(AW108,'CZKEUR Xchange rate'!$A$13:$B$234,2,FALSE))) -> 1 | U108: 0 | V108: 0 | Y108: =VLOOKUP(AW108,'Cenové indexy '!$D$7:$E$200,2,FALSE) -> 89.51 | Z108: =W108/Y108*'Cenové indexy '!$E$149 -> 0 | AA108: 0 | AB108: 2011 | AE108: 2010-11-30 | AF108: Áno | AG108: Áno | AH108: Neurčené | AI108: Nie | AJ108: 24 mesiacov zadarmo, potom 6 rokov podľa zmluvy | AN108: Zmluva 5_MS | AT108: =VLOOKUP(M108,Adresy!$A$4:$C$156,2,FALSE) -> Košice | AU108: =VLOOKUP(M108,Adresy!$A$4:$C$156,3,FALSE) -> Rastislavova 785/43 | AV108: M | AW108: 2011M06 | BC108: =VLOOKUP(M108,Adresy!$A$3:$C$122,2,FALSE) -> Košice | BD108: =VLOOKUP(M108,Adresy!$A$3:$C$122,3,FALSE) -> Rastislavova 785/43 | BE108: 0 | BF108: 0 | BG108: 0 | BH108: 0
A109: SPECT/CT | C109: Pozáručný servis (6 rokov po záruke) | E109: 6 rokov po záručnej dobe | G109: PHILIPS BrightView XCT | J109: Philips | K109: položková cena (súčasť sumárnej ceny) | L109: služby | M109: Inštitút nukleárnej a molekulárnej medicíny | N109: SR | O109: S&T | Q109: 1 | R109: 194580 | S109: 233496 | T109: =IF(N109="SR",1,IF(AC109="",VLOOKUP(AW109,'CZKEUR Xchange rate'!$D$13:$E$234,2,FALSE),VLOOKUP(AW109,'CZKEUR Xchange rate'!$A$13:$B$234,2,FALSE))) -> 1 | U109: 194580 | V109: 233496 | W109: =U109/Q109 -> 194580 | X109: =V109/Q109 -> 233496 | Y109: =VLOOKUP(AW109,'Cenové indexy '!$D$7:$E$200,2,FALSE) -> 89.51 | Z109: =W109/Y109*'Cenové indexy '!$E$149 -> 224187.6371 | AA109: 269025.1646 | AB109: 2011 | AE109: 2010-11-30 | AI109: Nie | AJ109: 6 ročná zmluva | AN109: Zmluva 5_MS | AT109: =VLOOKUP(M109,Adresy!$A$4:$C$156,2,FALSE) -> Košice | AU109: =VLOOKUP(M109,Adresy!$A$4:$C$156,3,FALSE) -> Rastislavova 785/43 | AV109: M | AW109: 2011M06 | BC109: =VLOOKUP(M109,Adresy!$A$3:$C$122,2,FALSE) -> Košice | BD109: =VLOOKUP(M109,Adresy!$A$3:$C$122,3,FALSE) -> Rastislavova 785/43 | BE109: 0 | BF109: 0 | BG109: 0 | BH109: 0
A110: kamera SPECT | C110: Celá zostava | G110: Siemens Symbia S | K110: sumárna cena | L110: HW/SW | M110: Fakultní nemocnice v Motole | N110: ČR | O110: Siemens Healthcare s.r.o. | Q110: 1 | R110: 6400000 | S110: 7744000 | T110: =IF(N110="SR",1,IF(AC110="",VLOOKUP(AW110,'CZKEUR Xchange rate'!$D$13:$E$234,2,FALSE),VLOOKUP(AW110,'CZKEUR Xchange rate'!$A$13:$B$234,2,FALSE))) -> 27.453 | U110: 233125.7058 | V110: 282082.104 | W110: =U110/Q110 -> 233125.7058 | X110: =V110/Q110 -> 282082.104 | Y110: =VLOOKUP(AW110,'Cenové indexy '!$D$7:$E$200,2,FALSE) -> 99.5 | Z110: =W110/Y110*'Cenové indexy '!$E$149 -> 241630.6938 | AA110: 289956.8326 | AB110: 2014 | AE110: 2013-11-30 | AF110: Áno | AG110: Áno | AH110: ERDF | AI110: Nie | AJ110: 24 mesiacov zadarmo | AN110: Zmluva 1_DG | AT110: =VLOOKUP(M110,Adresy!$A$4:$C$156,2,FALSE) -> Praha | AU110: =VLOOKUP(M110,Adresy!$A$4:$C$156,3,FALSE) -> V úvalu 84 | AV110: M | AW110: 2014M06 | BC110: =VLOOKUP(M110,Adresy!$A$3:$C$122,2,FALSE) -> Praha | BD110: =VLOOKUP(M110,Adresy!$A$3:$C$122,3,FALSE) -> V úvalu 84 | BE110: 0 | BF110: 0 | BG110: 0 | BH110: 0
A111: kamera SPECT | C111: Symbia S Series | G111: Siemens Symbia S | K111: bez položkovej identifikácie ceny (v rámci sumárnej ceny) | L111: HW | M111: Fakultní nemocnice v Motole | N111: ČR | O111: Siemens Healthcare s.r.o. | Q111: 1 | T111: =IF(N111="SR",1,IF(AC111="",VLOOKUP(AW111,'CZKEUR Xchange rate'!$D$13:$E$234,2,FALSE),VLOOKUP(AW111,'CZKEUR Xchange rate'!$A$13:$B$234,2,FALSE))) -> 27.453 | U111: 0 | V111: 0 | Y111: =VLOOKUP(AW111,'Cenové indexy '!$D$7:$E$200,2,FALSE) -> 99.5 | Z111: =W111/Y111*'Cenové indexy '!$E$149 -> 0 | AA111: 0 | AB111: 2014 | AE111: 2013-11-30 | AF111: Áno | AG111: Áno | AH111: ERDF | AI111: Nie | AJ111: 24 mesiacov zadarmo | AN111: Zmluva 1_DG | AT111: =VLOOKUP(M111,Adresy!$A$4:$C$156,2,FALSE) -> Praha | AU111: =VLOOKUP(M111,Adresy!$A$4:$C$156,3,FALSE) -> V úvalu 84 | AV111: M | AW111: 2014M06 | BC111: =VLOOKUP(M111,Adresy!$A$3:$C$122,2,FALSE) -> Praha | BD111: =VLOOKUP(M111,Adresy!$A$3:$C$122,3,FALSE) -> V úvalu 84 | BE111: 0 | BF111: 0 | BG111: 0 | BH111: 0
A112: kamera SPECT | C112: Symbia S | G112: Siemens Symbia S | K112: bez položkovej identifikácie ceny (v rámci sumárnej ceny) | L112: HW | M112: Fakultní nemocnice v Motole | N112: ČR | O112: Siemens Healthcare s.r.o. | Q112: 1 | T112: =IF(N112="SR",1,IF(AC112="",VLOOKUP(AW112,'CZKEUR Xchange rate'!$D$13:$E$234,2,FALSE),VLOOKUP(AW112,'CZKEUR Xchange rate'!$A$13:$B$234,2,FALSE))) -> 27.453 | U112: 0 | V112: 0 | Y112: =VLOOKUP(AW112,'Cenové indexy '!$D$7:$E$200,2,FALSE) -> 99.5 | Z112: =W112/Y112*'Cenové indexy '!$E$149 -> 0 | AA112: 0 | AB112: 2014 | AE112: 2013-11-30 | AF112: Áno | AG112: Áno | AH112: ERDF | AI112: Nie | AJ112: 24 mesiacov zadarmo | AN112: Zmluva 1_DG | AT112: =VLOOKUP(M112,Adresy!$A$4:$C$156,2,FALSE) -> Praha | AU112: =VLOOKUP(M112,Adresy!$A$4:$C$156,3,FALSE) -> V úvalu 84 | AV112: M | AW112: 2014M06 | BC112: =VLOOKUP(M112,Adresy!$A$3:$C$122,2,FALSE) -> Praha | BD112: =VLOOKUP(M112,Adresy!$A$3:$C$122,3,FALSE) -> V úvalu 84 | BE112: 0 | BF112: 0 | BG112: 0 | BH112: 0
A113: kamera SPECT | C113: Detektor 5/8 | G113: Siemens Symbia S | K113: bez položkovej identifikácie ceny (v rámci sumárnej ceny) | L113: HW | M113: Fakultní nemocnice v Motole | N113: ČR | O113: Siemens Healthcare s.r.o. | Q113: 2 | T113: =IF(N113="SR",1,IF(AC113="",VLOOKUP(AW113,'CZKEUR Xchange rate'!$D$13:$E$234,2,FALSE),VLOOKUP(AW113,'CZKEUR Xchange rate'!$A$13:$B$234,2,FALSE))) -> 27.453 | U113: 0 | V113: 0 | Y113: =VLOOKUP(AW113,'Cenové indexy '!$D$7:$E$200,2,FALSE) -> 99.5 | Z113: =W113/Y113*'Cenové indexy '!$E$149 -> 0 | AA113: 0 | AB113: 2014 | AE113: 2013-11-30 | AF113: Áno | AG113: Áno | AH113: ERDF | AI113: Nie | AJ113: 24 mesiacov zadarmo | AN113: Zmluva 1_DG | AT113: =VLOOKUP(M113,Adresy!$A$4:$C$156,2,FALSE) -> Praha | AU113: =VLOOKUP(M113,Adresy!$A$4:$C$156,3,FALSE) -> V úvalu 84 | AV113: M | AW113: 2014M06 | BC113: =VLOOKUP(M113,Adresy!$A$3:$C$122,2,FALSE) -> Praha | BD113: =VLOOKUP(M113,Adresy!$A$3:$C$122,3,FALSE) -> V úvalu 84 | BE113: 0 | BF113: 0 | BG113: 0 | BH113: 0
A114: kamera SPECT | C114: Držiak detektoru s kaudálnym naklápaním | G114: Siemens Symbia S | K114: bez položkovej identifikácie ceny (v rámci sumárnej ceny) | L114: HW | M114: Fakultní nemocnice v Motole | N114: ČR | O114: Siemens Healthcare s.r.o. | Q114: 1 | T114: =IF(N114="SR",1,IF(AC114="",VLOOKUP(AW114,'CZKEUR Xchange rate'!$D$13:$E$234,2,FALSE),VLOOKUP(AW114,'CZKEUR Xchange rate'!$A$13:$B$234,2,FALSE))) -> 27.453 | U114: 0 | V114: 0 | Y114: =VLOOKUP(AW114,'Cenové indexy '!$D$7:$E$200,2,FALSE) -> 99.5 | Z114: =W114/Y114*'Cenové indexy '!$E$149 -> 0 | AA114: 0 | AB114: 2014 | AE114: 2013-11-30 | AF114: Áno | AG114: Áno | AH114: ERDF | AI114: Nie | AJ114: 24 mesiacov zadarmo | AN114: Zmluva 1_DG | AT114: =VLOOKUP(M114,Adresy!$A$4:$C$156,2,FALSE) -> Praha | AU114: =VLOOKUP(M114,Adresy!$A$4:$C$156,3,FALSE) -> V úvalu 84 | AV114: M | AW114: 2014M06 | BC114: =VLOOKUP(M114,Adresy!$A$3:$C$122,2,FALSE) -> Praha | BD114: =VLOOKUP(M114,Adresy!$A$3:$C$122,3,FALSE) -> V úvalu 84 | BE114: 0 | BF114: 0 | BG114: 0 | BH114: 0
A115: kamera SPECT | C115: Kolimátor pre nízke energie, vysoké rozlíšenie | G115: Siemens Symbia S | K115: bez položkovej identifikácie ceny (v rámci sumárnej ceny) | L115: HW | M115: Fakultní nemocnice v Motole | N115: ČR | O115: Siemens Healthcare s.r.o. | Q115: 2 | T115: =IF(N115="SR",1,IF(AC115="",VLOOKUP(AW115,'CZKEUR Xchange rate'!$D$13:$E$234,2,FALSE),VLOOKUP(AW115,'CZKEUR Xchange rate'!$A$13:$B$234,2,FALSE))) -> 27.453 | U115: 0 | V115: 0 | Y115: =VLOOKUP(AW115,'Cenové indexy '!$D$7:$E$200,2,FALSE) -> 99.5 | Z115: =W115/Y115*'Cenové indexy '!$E$149 -> 0 | AA115: 0 | AB115: 2014 | AE115: 2013-11-30 | AF115: Áno | AG115: Áno | AH115: ERDF | AI115: Nie | AJ115: 24 mesiacov zadarmo | AN115: Zmluva 1_DG | AT115: =VLOOKUP(M115,Adresy!$A$4:$C$156,2,FALSE) -> Praha | AU115: =VLOOKUP(M115,Adresy!$A$4:$C$156,3,FALSE) -> V úvalu 84 | AV115: M | AW115: 2014M06 | BC115: =VLOOKUP(M115,Adresy!$A$3:$C$122,2,FALSE) -> Praha | BD115: =VLOOKUP(M115,Adresy!$A$3:$C$122,3,FALSE) -> V úvalu 84 | BE115: 0 | BF115: 0 | BG115: 0 | BH115: 0
A116: kamera SPECT | C116: Kolimátor pre vysoké energie | G116: Siemens Symbia S | K116: bez položkovej identifikácie ceny (v rámci sumárnej ceny) | L116: HW | M116: Fakultní nemocnice v Motole | N116: ČR | O116: Siemens Healthcare s.r.o. | Q116: 2 | T116: =IF(N116="SR",1,IF(AC116="",VLOOKUP(AW116,'CZKEUR Xchange rate'!$D$13:$E$234,2,FALSE),VLOOKUP(AW116,'CZKEUR Xchange rate'!$A$13:$B$234,2,FALSE))) -> 27.453 | U116: 0 | V116: 0 | Y116: =VLOOKUP(AW116,'Cenové indexy '!$D$7:$E$200,2,FALSE) -> 99.5 | Z116: =W116/Y116*'Cenové indexy '!$E$149 -> 0 | AA116: 0 | AB116: 2014 | AE116: 2013-11-30 | AF116: Áno | AG116: Áno | AH116: ERDF | AI116: Nie | AJ116: 24 mesiacov zadarmo | AN116: Zmluva 1_DG | AT116: =VLOOKUP(M116,Adresy!$A$4:$C$156,2,FALSE) -> Praha | AU116: =VLOOKUP(M116,Adresy!$A$4:$C$156,3,FALSE) -> V úvalu 84 | AV116: M | AW116: 2014M06 | BC116: =VLOOKUP(M116,Adresy!$A$3:$C$122,2,FALSE) -> Praha | BD116: =VLOOKUP(M116,Adresy!$A$3:$C$122,3,FALSE) -> V úvalu 84 | BE116: 0 | BF116: 0 | BG116: 0 | BH116: 0
A117: kamera SPECT | C117: Interný EKG pre systém Symbia | G117: Siemens Symbia S | K117: bez položkovej identifikácie ceny (v rámci sumárnej ceny) | L117: HW | M117: Fakultní nemocnice v Motole | N117: ČR | O117: Siemens Healthcare s.r.o. | Q117: 1 | T117: =IF(N117="SR",1,IF(AC117="",VLOOKUP(AW117,'CZKEUR Xchange rate'!$D$13:$E$234,2,FALSE),VLOOKUP(AW117,'CZKEUR Xchange rate'!$A$13:$B$234,2,FALSE))) -> 27.453 | U117: 0 | V117: 0 | Y117: =VLOOKUP(AW117,'Cenové indexy '!$D$7:$E$200,2,FALSE) -> 99.5 | Z117: =W117/Y117*'Cenové indexy '!$E$149 -> 0 | AA117: 0 | AB117: 2014 | AE117: 2013-11-30 | AF117: Áno | AG117: Áno | AH117: ERDF | AI117: Nie | AJ117: 24 mesiacov zadarmo | AN117: Zmluva 1_DG | AT117: =VLOOKUP(M117,Adresy!$A$4:$C$156,2,FALSE) -> Praha | AU117: =VLOOKUP(M117,Adresy!$A$4:$C$156,3,FALSE) -> V úvalu 84 | AV117: M | AW117: 2014M06 | BC117: =VLOOKUP(M117,Adresy!$A$3:$C$122,2,FALSE) -> Praha | BD117: =VLOOKUP(M117,Adresy!$A$3:$C$122,3,FALSE) -> V úvalu 84 | BE117: 0 | BF117: 0 | BG117: 0 | BH117: 0
A118: kamera SPECT | C118: Monitor LCD 19 | G118: Siemens Symbia S | K118: bez položkovej identifikácie ceny (v rámci sumárnej ceny) | L118: HW | M118: Fakultní nemocnice v Motole | N118: ČR | O118: Siemens Healthcare s.r.o. | Q118: 1 | T118: =IF(N118="SR",1,IF(AC118="",VLOOKUP(AW118,'CZKEUR Xchange rate'!$D$13:$E$234,2,FALSE),VLOOKUP(AW118,'CZKEUR Xchange rate'!$A$13:$B$234,2,FALSE))) -> 27.453 | U118: 0 | V118: 0 | Y118: =VLOOKUP(AW118,'Cenové indexy '!$D$7:$E$200,2,FALSE) -> 99.5 | Z118: =W118/Y118*'Cenové indexy '!$E$149 -> 0 | AA118: 0 | AB118: 2014 | AE118: 2013-11-30 | AF118: Áno | AG118: Áno | AH118: ERDF | AI118: Nie | AJ118: 24 mesiacov zadarmo | AN118: Zmluva 1_DG | AT118: =VLOOKUP(M118,Adresy!$A$4:$C$156,2,FALSE) -> Praha | AU118: =VLOOKUP(M118,Adresy!$A$4:$C$156,3,FALSE) -> V úvalu 84 | AV118: M | AW118: 2014M06 | BC118: =VLOOKUP(M118,Adresy!$A$3:$C$122,2,FALSE) -> Praha | BD118: =VLOOKUP(M118,Adresy!$A$3:$C$122,3,FALSE) -> V úvalu 84 | BE118: 0 | BF118: 0 | BG118: 0 | BH118: 0
A119: kamera SPECT | C119: Služby diaľkovej diagnostiky | G119: Siemens Symbia S | K119: bez položkovej identifikácie ceny (v rámci sumárnej ceny) | L119: SW | M119: Fakultní nemocnice v Motole | N119: ČR | O119: Siemens Healthcare s.r.o. | Q119: 1 | T119: =IF(N119="SR",1,IF(AC119="",VLOOKUP(AW119,'CZKEUR Xchange rate'!$D$13:$E$234,2,FALSE),VLOOKUP(AW119,'CZKEUR Xchange rate'!$A$13:$B$234,2,FALSE))) -> 27.453 | U119: 0 | V119: 0 | Y119: =VLOOKUP(AW119,'Cenové indexy '!$D$7:$E$200,2,FALSE) -> 99.5 | Z119: =W119/Y119*'Cenové indexy '!$E$149 -> 0 | AA119: 0 | AB119: 2014 | AE119: 2013-11-30 | AF119: Áno | AG119: Áno | AH119: ERDF | AI119: Nie | AJ119: 24 mesiacov zadarmo | AN119: Zmluva 1_DG | AT119: =VLOOKUP(M119,Adresy!$A$4:$C$156,2,FALSE) -> Praha | AU119: =VLOOKUP(M119,Adresy!$A$4:$C$156,3,FALSE) -> V úvalu 84 | AV119: M | AW119: 2014M06 | BC119: =VLOOKUP(M119,Adresy!$A$3:$C$122,2,FALSE) -> Praha | BD119: =VLOOKUP(M119,Adresy!$A$3:$C$122,3,FALSE) -> V úvalu 84 | BE119: 0 | BF119: 0 | BG119: 0 | BH119: 0
A120: kamera SPECT | C120: Vozík pre kolimátor | G120: Siemens Symbia S | K120: bez položkovej identifikácie ceny (v rámci sumárnej ceny) | L120: HW | M120: Fakultní nemocnice v Motole | N120: ČR | O120: Siemens Healthcare s.r.o. | Q120: 1 | T120: =IF(N120="SR",1,IF(AC120="",VLOOKUP(AW120,'CZKEUR Xchange rate'!$D$13:$E$234,2,FALSE),VLOOKUP(AW120,'CZKEUR Xchange rate'!$A$13:$B$234,2,FALSE))) -> 27.453 | U120: 0 | V120: 0 | Y120: =VLOOKUP(AW120,'Cenové indexy '!$D$7:$E$200,2,FALSE) -> 99.5 | Z120: =W120/Y120*'Cenové indexy '!$E$149 -> 0 | AA120: 0 | AB120: 2014 | AE120: 2013-11-30 | AF120: Áno | AG120: Áno | AH120: ERDF | AI120: Nie | AJ120: 24 mesiacov zadarmo | AN120: Zmluva 1_DG | AT120: =VLOOKUP(M120,Adresy!$A$4:$C$156,2,FALSE) -> Praha | AU120: =VLOOKUP(M120,Adresy!$A$4:$C$156,3,FALSE) -> V úvalu 84 | AV120: M | AW120: 2014M06 | BC120: =VLOOKUP(M120,Adresy!$A$3:$C$122,2,FALSE) -> Praha | BD120: =VLOOKUP(M120,Adresy!$A$3:$C$122,3,FALSE) -> V úvalu 84 | BE120: 0 | BF120: 0 | BG120: 0 | BH120: 0
A121: kamera SPECT | C121: Symbia.net | G121: Siemens Symbia S | K121: bez položkovej identifikácie ceny (v rámci sumárnej ceny) | L121: SW | M121: Fakultní nemocnice v Motole | N121: ČR | O121: Siemens Healthcare s.r.o. | Q121: 1 | T121: =IF(N121="SR",1,IF(AC121="",VLOOKUP(AW121,'CZKEUR Xchange rate'!$D$13:$E$234,2,FALSE),VLOOKUP(AW121,'CZKEUR Xchange rate'!$A$13:$B$234,2,FALSE))) -> 27.453 | U121: 0 | V121: 0 | Y121: =VLOOKUP(AW121,'Cenové indexy '!$D$7:$E$200,2,FALSE) -> 99.5 | Z121: =W121/Y121*'Cenové indexy '!$E$149 -> 0 | AA121: 0 | AB121: 2014 | AE121: 2013-11-30 | AF121: Áno | AG121: Áno | AH121: ERDF | AI121: Nie | AJ121: 24 mesiacov zadarmo | AN121: Zmluva 1_DG | AT121: =VLOOKUP(M121,Adresy!$A$4:$C$156,2,FALSE) -> Praha | AU121: =VLOOKUP(M121,Adresy!$A$4:$C$156,3,FALSE) -> V úvalu 84 | AV121: M | AW121: 2014M06 | BC121: =VLOOKUP(M121,Adresy!$A$3:$C$122,2,FALSE) -> Praha | BD121: =VLOOKUP(M121,Adresy!$A$3:$C$122,3,FALSE) -> V úvalu 84 | BE121: 0 | BF121: 0 | BG121: 0 | BH121: 0
A122: kamera SPECT | C122: Monitor LCD 19 | G122: Siemens Symbia S | K122: bez položkovej identifikácie ceny (v rámci sumárnej ceny) | L122: HW | M122: Fakultní nemocnice v Motole | N122: ČR | O122: Siemens Healthcare s.r.o. | Q122: 2 | T122: =IF(N122="SR",1,IF(AC122="",VLOOKUP(AW122,'CZKEUR Xchange rate'!$D$13:$E$234,2,FALSE),VLOOKUP(AW122,'CZKEUR Xchange rate'!$A$13:$B$234,2,FALSE))) -> 27.453 | U122: 0 | V122: 0 | Y122: =VLOOKUP(AW122,'Cenové indexy '!$D$7:$E$200,2,FALSE) -> 99.5 | Z122: =W122/Y122*'Cenové indexy '!$E$149 -> 0 | AA122: 0 | AB122: 2014 | AE122: 2013-11-30 | AF122: Áno | AG122: Áno | AH122: ERDF | AI122: Nie | AJ122: 24 mesiacov zadarmo | AN122: Zmluva 1_DG | AT122: =VLOOKUP(M122,Adresy!$A$4:$C$156,2,FALSE) -> Praha | AU122: =VLOOKUP(M122,Adresy!$A$4:$C$156,3,FALSE) -> V úvalu 84 | AV122: M | AW122: 2014M06 | BC122: =VLOOKUP(M122,Adresy!$A$3:$C$122,2,FALSE) -> Praha | BD122: =VLOOKUP(M122,Adresy!$A$3:$C$122,3,FALSE) -> V úvalu 84 | BE122: 0 | BF122: 0 | BG122: 0 | BH122: 0
A123: kamera SPECT | C123: Engine pre onkológiu | G123: Siemens Symbia S | K123: bez položkovej identifikácie ceny (v rámci sumárnej ceny) | L123: SW | M123: Fakultní nemocnice v Motole | N123: ČR | O123: Siemens Healthcare s.r.o. | Q123: 1 | T123: =IF(N123="SR",1,IF(AC123="",VLOOKUP(AW123,'CZKEUR Xchange rate'!$D$13:$E$234,2,FALSE),VLOOKUP(AW123,'CZKEUR Xchange rate'!$A$13:$B$234,2,FALSE))) -> 27.453 | U123: 0 | V123: 0 | Y123: =VLOOKUP(AW123,'Cenové indexy '!$D$7:$E$200,2,FALSE) -> 99.5 | Z123: =W123/Y123*'Cenové indexy '!$E$149 -> 0 | AA123: 0 | AB123: 2014 | AE123: 2013-11-30 | AF123: Áno | AG123: Áno | AH123: ERDF | AI123: Nie | AJ123: 24 mesiacov zadarmo | AN123: Zmluva 1_DG | AT123: =VLOOKUP(M123,Adresy!$A$4:$C$156,2,FALSE) -> Praha | AU123: =VLOOKUP(M123,Adresy!$A$4:$C$156,3,FALSE) -> V úvalu 84 | AV123: M | AW123: 2014M06 | BC123: =VLOOKUP(M123,Adresy!$A$3:$C$122,2,FALSE) -> Praha | BD123: =VLOOKUP(M123,Adresy!$A$3:$C$122,3,FALSE) -> V úvalu 84 | BE123: 0 | BF123: 0 | BG123: 0 | BH123: 0
A124: kamera SPECT | C124: Spracovanie zamerané na určitý orgán | G124: Siemens Symbia S | K124: bez položkovej identifikácie ceny (v rámci sumárnej ceny) | L124: SW | M124: Fakultní nemocnice v Motole | N124: ČR | O124: Siemens Healthcare s.r.o. | Q124: 1 | T124: =IF(N124="SR",1,IF(AC124="",VLOOKUP(AW124,'CZKEUR Xchange rate'!$D$13:$E$234,2,FALSE),VLOOKUP(AW124,'CZKEUR Xchange rate'!$A$13:$B$234,2,FALSE))) -> 27.453 | U124: 0 | V124: 0 | Y124: =VLOOKUP(AW124,'Cenové indexy '!$D$7:$E$200,2,FALSE) -> 99.5 | Z124: =W124/Y124*'Cenové indexy '!$E$149 -> 0 | AA124: 0 | AB124: 2014 | AE124: 2013-11-30 | AF124: Áno | AG124: Áno | AH124: ERDF | AI124: Nie | AJ124: 24 mesiacov zadarmo | AN124: Zmluva 1_DG | AT124: =VLOOKUP(M124,Adresy!$A$4:$C$156,2,FALSE) -> Praha | AU124: =VLOOKUP(M124,Adresy!$A$4:$C$156,3,FALSE) -> V úvalu 84 | AV124: M | AW124: 2014M06 | BC124: =VLOOKUP(M124,Adresy!$A$3:$C$122,2,FALSE) -> Praha | BD124: =VLOOKUP(M124,Adresy!$A$3:$C$122,3,FALSE) -> V úvalu 84 | BE124: 0 | BF124: 0 | BG124: 0 | BH124: 0
A125: kamera SPECT | C125: Kvadrantový barfantom | G125: Siemens Symbia S | K125: bez položkovej identifikácie ceny (v rámci sumárnej ceny) | L125: HW | M125: Fakultní nemocnice v Motole | N125: ČR | O125: Siemens Healthcare s.r.o. | Q125: 1 | T125: =IF(N125="SR",1,IF(AC125="",VLOOKUP(AW125,'CZKEUR Xchange rate'!$D$13:$E$234,2,FALSE),VLOOKUP(AW125,'CZKEUR Xchange rate'!$A$13:$B$234,2,FALSE))) -> 27.453 | U125: 0 | V125: 0 | Y125: =VLOOKUP(AW125,'Cenové indexy '!$D$7:$E$200,2,FALSE) -> 99.5 | Z125: =W125/Y125*'Cenové indexy '!$E$149 -> 0 | AA125: 0 | AB125: 2014 | AE125: 2013-11-30 | AF125: Áno | AG125: Áno | AH125: ERDF | AI125: Nie | AJ125: 24 mesiacov zadarmo | AN125: Zmluva 1_DG | AT125: =VLOOKUP(M125,Adresy!$A$4:$C$156,2,FALSE) -> Praha | AU125: =VLOOKUP(M125,Adresy!$A$4:$C$156,3,FALSE) -> V úvalu 84 | AV125: M | AW125: 2014M06 | BC125: =VLOOKUP(M125,Adresy!$A$3:$C$122,2,FALSE) -> Praha | BD125: =VLOOKUP(M125,Adresy!$A$3:$C$122,3,FALSE) -> V úvalu 84 | BE125: 0 | BF125: 0 | BG125: 0 | BH125: 0
A126: SPECT/CT | C126: Celá zostava | H126: Siemens symbia Intevo Excel | K126: sumárna cena | L126: HW/SW | M126: Fakultní nemocnice Brno | N126: ČR | O126: Siemens Healthcare s.r.o. | Q126: 1 | R126: 10750000 | S126: 13007500 | T126: =IF(N126="SR",1,IF(AC126="",VLOOKUP(AW126,'CZKEUR Xchange rate'!$D$13:$E$234,2,FALSE),VLOOKUP(AW126,'CZKEUR Xchange rate'!$A$13:$B$234,2,FALSE))) -> 27.453 | U126: 391578.3339 | V126: 473809.784 | W126: =U126/Q126 -> 391578.3339 | X126: =V126/Q126 -> 473809.784 | Y126: =VLOOKUP(AW126,'Cenové indexy '!$D$7:$E$200,2,FALSE) -> 99.5 | Z126: =W126/Y126*'Cenové indexy '!$E$149 -> 405864.056 | AA126: 487036.8672 | AB126: 2014 | AE126: 2013-11-30 | AF126: Áno | AG126: Áno | AH126: ERDF | AI126: Nie | AJ126: 24 mesiacov zadarmo, potom (?) | AN126: Zmluva 1_AT | AT126: =VLOOKUP(M126,Adresy!$A$4:$C$156,2,FALSE) -> Brno | AU126: =VLOOKUP(M126,Adresy!$A$4:$C$156,3,FALSE) -> Jihlavská 340/20 | AV126: M | AW126: 2014M06 | BC126: =VLOOKUP(M126,Adresy!$A$3:$C$122,2,FALSE) -> Brno | BD126: =VLOOKUP(M126,Adresy!$A$3:$C$122,3,FALSE) -> Jihlavská 340/20 | BE126: 0 | BF126: 0 | BG126: 0 | BH126: 0
A127: SPECT/CT | C127: Detektory 3/8 s nízkym profilom | H127: Siemens symbia Intevo Excel | K127: bez položkovej identifikácie ceny (v rámci sumárnej ceny) | L127: HW | M127: Fakultní nemocnice Brno | N127: ČR | O127: Siemens Healthcare s.r.o. | Q127: 1 | T127: =IF(N127="SR",1,IF(AC127="",VLOOKUP(AW127,'CZKEUR Xchange rate'!$D$13:$E$234,2,FALSE),VLOOKUP(AW127,'CZKEUR Xchange rate'!$A$13:$B$234,2,FALSE))) -> 27.453 | U127: 0 | V127: 0 | Y127: =VLOOKUP(AW127,'Cenové indexy '!$D$7:$E$200,2,FALSE) -> 99.5 | Z127: =W127/Y127*'Cenové indexy '!$E$149 -> 0 | AA127: 0 | AB127: 2014 | AE127: 2013-11-30 | AF127: Áno | AG127: Áno | AH127: ERDF | AI127: Nie | AJ127: 24 mesiacov zadarmo, potom (?) | AN127: Zmluva 1_AT | AT127: =VLOOKUP(M127,Adresy!$A$4:$C$156,2,FALSE) -> Brno | AU127: =VLOOKUP(M127,Adresy!$A$4:$C$156,3,FALSE) -> Jihlavská 340/20 | AV127: M | AW127: 2014M06 | BC127: =VLOOKUP(M127,Adresy!$A$3:$C$122,2,FALSE) -> Brno | BD127: =VLOOKUP(M127,Adresy!$A$3:$C$122,3,FALSE) -> Jihlavská 340/20 | BE127: 0 | BF127: 0 | BG127: 0 | BH127: 0
A128: SPECT/CT | C128: Kaudálne naklápanie | H128: Siemens symbia Intevo Excel | K128: bez položkovej identifikácie ceny (v rámci sumárnej ceny) | L128: HW | M128: Fakultní nemocnice Brno | N128: ČR | O128: Siemens Healthcare s.r.o. | Q128: 2 | T128: =IF(N128="SR",1,IF(AC128="",VLOOKUP(AW128,'CZKEUR Xchange rate'!$D$13:$E$234,2,FALSE),VLOOKUP(AW128,'CZKEUR Xchange rate'!$A$13:$B$234,2,FALSE))) -> 27.453 | U128: 0 | V128: 0 | Y128: =VLOOKUP(AW128,'Cenové indexy '!$D$7:$E$200,2,FALSE) -> 99.5 | Z128: =W128/Y128*'Cenové indexy '!$E$149 -> 0 | AA128: 0 | AB128: 2014 | AE128: 2013-11-30 | AF128: Áno | AG128: Áno | AH128: ERDF | AI128: Nie | AJ128: 24 mesiacov zadarmo, potom (?) | AN128: Zmluva 1_AT | AT128: =VLOOKUP(M128,Adresy!$A$4:$C$156,2,FALSE) -> Brno | AU128: =VLOOKUP(M128,Adresy!$A$4:$C$156,3,FALSE) -> Jihlavská 340/20 | AV128: M | AW128: 2014M06 | BC128: =VLOOKUP(M128,Adresy!$A$3:$C$122,2,FALSE) -> Brno | BD128: =VLOOKUP(M128,Adresy!$A$3:$C$122,3,FALSE) -> Jihlavská 340/20 | BE128: 0 | BF128: 0 | BG128: 0 | BH128: 0
A129: SPECT/CT | C129: Kolimátor pre nízke energie, vysoké rozlíšenie | H129: Siemens symbia Intevo Excel | K129: bez položkovej identifikácie ceny (v rámci sumárnej ceny) | L129: HW | M129: Fakultní nemocnice Brno | N129: ČR | O129: Siemens Healthcare s.r.o. | Q129: 1 | T129: =IF(N129="SR",1,IF(AC129="",VLOOKUP(AW129,'CZKEUR Xchange rate'!$D$13:$E$234,2,FALSE),VLOOKUP(AW129,'CZKEUR Xchange rate'!$A$13:$B$234,2,FALSE))) -> 27.453 | U129: 0 | V129: 0 | Y129: =VLOOKUP(AW129,'Cenové indexy '!$D$7:$E$200,2,FALSE) -> 99.5 | Z129: =W129/Y129*'Cenové indexy '!$E$149 -> 0 | AA129: 0 | AB129: 2014 | AE129: 2013-11-30 | AF129: Áno | AG129: Áno | AH129: ERDF | AI129: Nie | AJ129: 24 mesiacov zadarmo, potom (?) | AN129: Zmluva 1_AT | AT129: =VLOOKUP(M129,Adresy!$A$4:$C$156,2,FALSE) -> Brno | AU129: =VLOOKUP(M129,Adresy!$A$4:$C$156,3,FALSE) -> Jihlavská 340/20 | AV129: M | AW129: 2014M06 | BC129: =VLOOKUP(M129,Adresy!$A$3:$C$122,2,FALSE) -> Brno | BD129: =VLOOKUP(M129,Adresy!$A$3:$C$122,3,FALSE) -> Jihlavská 340/20 | BE129: 0 | BF129: 0 | BG129: 0 | BH129: 0
A130: SPECT/CT | C130: Vozík pre kolimátor | H130: Siemens symbia Intevo Excel | K130: bez položkovej identifikácie ceny (v rámci sumárnej ceny) | L130: HW | M130: Fakultní nemocnice Brno | N130: ČR | O130: Siemens Healthcare s.r.o. | Q130: 1 | T130: =IF(N130="SR",1,IF(AC130="",VLOOKUP(AW130,'CZKEUR Xchange rate'!$D$13:$E$234,2,FALSE),VLOOKUP(AW130,'CZKEUR Xchange rate'!$A$13:$B$234,2,FALSE))) -> 27.453 | U130: 0 | V130: 0 | Y130: =VLOOKUP(AW130,'Cenové indexy '!$D$7:$E$200,2,FALSE) -> 99.5 | Z130: =W130/Y130*'Cenové indexy '!$E$149 -> 0 | AA130: =Z130*1.2 -> 0 | AB130: 2014 | AE130: =DATE(AB130,AC130,AD130) -> 2013-11-30 | AF130: Áno | AG130: Áno | AH130: ERDF | AI130: Nie | AJ130: 24 mesiacov zadarmo, potom (?) | AN130: Zmluva 1_AT | AT130: =VLOOKUP(M130,Adresy!$A$4:$C$156,2,FALSE) -> Brno | AU130: =VLOOKUP(M130,Adresy!$A$4:$C$156,3,FALSE) -> Jihlavská 340/20 | AV130: M | AW130: 2014M06 | BC130: =VLOOKUP(M130,Adresy!$A$3:$C$122,2,FALSE) -> Brno | BD130: =VLOOKUP(M130,Adresy!$A$3:$C$122,3,FALSE) -> Jihlavská 340/20 | BE130: =IF(BC130<>AT130,1,0) -> 0 | BF130: 0 | BG130: 0 | BH130: 0
A131: SPECT/CT | C131: Interný EKG pre systém Symbia | H131: Siemens symbia Intevo Excel | K131: bez položkovej identifikácie ceny (v rámci sumárnej ceny) | L131: HW | M131: Fakultní nemocnice Brno | N131: ČR | O131: Siemens Healthcare s.r.o. | Q131: 1 | T131: =IF(N131="SR",1,IF(AC131="",VLOOKUP(AW131,'CZKEUR Xchange rate'!$D$13:$E$234,2,FALSE),VLOOKUP(AW131,'CZKEUR Xchange rate'!$A$13:$B$234,2,FALSE))) -> 27.453 | U131: 0 | V131: 0 | Y131: =VLOOKUP(AW131,'Cenové indexy '!$D$7:$E$200,2,FALSE) -> 99.5 | Z131: =W131/Y131*'Cenové indexy '!$E$149 -> 0 | AA131: 0 | AB131: 2014 | AE131: 2013-11-30 | AF131: Áno | AG131: Áno | AH131: ERDF | AI131: Nie | AJ131: 24 mesiacov zadarmo, potom (?) | AN131: Zmluva 1_AT | AT131: =VLOOKUP(M131,Adresy!$A$4:$C$156,2,FALSE) -> Brno | AU131: =VLOOKUP(M131,Adresy!$A$4:$C$156,3,FALSE) -> Jihlavská 340/20 | AV131: M | AW131: =IF(AC131="",CONCATENATE(AB131,AV131,"06"),IF(LEN(AC131)=1,CONCATENATE(AB131,AV131,"0"&AC131),CONCATENATE(AB131,AV131,AC131))) -> 2014M06 | BC131: =VLOOKUP(M131,Adresy!$A$3:$C$122,2,FALSE) -> Brno | BD131: =VLOOKUP(M131,Adresy!$A$3:$C$122,3,FALSE) -> Jihlavská 340/20 | BE131: 0 | BF131: 0 | BG131: 0 | BH131: 0
A132: SPECT/CT | C132: Kábel PHS pod podlahou | H132: Siemens symbia Intevo Excel | K132: bez položkovej identifikácie ceny (v rámci sumárnej ceny) | L132: HW | M132: Fakultní nemocnice Brno | N132: ČR | O132: Siemens Healthcare s.r.o. | Q132: 1 | T132: =IF(N132="SR",1,IF(AC132="",VLOOKUP(AW132,'CZKEUR Xchange rate'!$D$13:$E$234,2,FALSE),VLOOKUP(AW132,'CZKEUR Xchange rate'!$A$13:$B$234,2,FALSE))) -> 27.453 | U132: 0 | V132: 0 | Y132: =VLOOKUP(AW132,'Cenové indexy '!$D$7:$E$200,2,FALSE) -> 99.5 | Z132: =W132/Y132*'Cenové indexy '!$E$149 -> 0 | AA132: 0 | AB132: 2014 | AE132: 2013-11-30 | AF132: Áno | AG132: Áno | AH132: ERDF | AI132: Nie | AJ132: 24 mesiacov zadarmo, potom (?) | AN132: Zmluva 1_AT | AT132: =VLOOKUP(M132,Adresy!$A$4:$C$156,2,FALSE) -> Brno | AU132: =VLOOKUP(M132,Adresy!$A$4:$C$156,3,FALSE) -> Jihlavská 340/20 | AV132: M | AW132: 2014M06 | BC132: =VLOOKUP(M132,Adresy!$A$3:$C$122,2,FALSE) -> Brno | BD132: =VLOOKUP(M132,Adresy!$A$3:$C$122,3,FALSE) -> Jihlavská 340/20 | BE132: 0 | BF132: 0 | BG132: 0 | BH132: 0
A133: SPECT/CT | C133: Pediatrický držiak | H133: Siemens symbia Intevo Excel | K133: bez položkovej identifikácie ceny (v rámci sumárnej ceny) | L133: HW | M133: Fakultní nemocnice Brno | N133: ČR | O133: Siemens Healthcare s.r.o. | Q133: 1 | T133: =IF(N133="SR",1,IF(AC133="",VLOOKUP(AW133,'CZKEUR Xchange rate'!$D$13:$E$234,2,FALSE),VLOOKUP(AW133,'CZKEUR Xchange rate'!$A$13:$B$234,2,FALSE))) -> 27.453 | U133: 0 | V133: 0 | Y133: =VLOOKUP(AW133,'Cenové indexy '!$D$7:$E$200,2,FALSE) -> 99.5 | Z133: =W133/Y133*'Cenové indexy '!$E$149 -> 0 | AA133: 0 | AB133: 2014 | AE133: 2013-11-30 | AF133: Áno | AG133: Áno | AH133: ERDF | AI133: Nie | AJ133: 24 mesiacov zadarmo, potom (?) | AN133: Zmluva 1_AT | AT133: =VLOOKUP(M133,Adresy!$A$4:$C$156,2,FALSE) -> Brno | AU133: =VLOOKUP(M133,Adresy!$A$4:$C$156,3,FALSE) -> Jihlavská 340/20 | AV133: M | AW133: 2014M06 | BC133: =VLOOKUP(M133,Adresy!$A$3:$C$122,2,FALSE) -> Brno | BD133: =VLOOKUP(M133,Adresy!$A$3:$C$122,3,FALSE) -> Jihlavská 340/20 | BE133: 0 | BF133: 0 | BG133: 0 | BH133: 0
A134: SPECT/CT | C134: Služby diaľkovej diagnostiky | H134: Siemens symbia Intevo Excel | K134: bez položkovej identifikácie ceny (v rámci sumárnej ceny) | L134: SW | M134: Fakultní nemocnice Brno | N134: ČR | O134: Siemens Healthcare s.r.o. | Q134: 1 | T134: =IF(N134="SR",1,IF(AC134="",VLOOKUP(AW134,'CZKEUR Xchange rate'!$D$13:$E$234,2,FALSE),VLOOKUP(AW134,'CZKEUR Xchange rate'!$A$13:$B$234,2,FALSE))) -> 27.453 | U134: 0 | V134: 0 | Y134: =VLOOKUP(AW134,'Cenové indexy '!$D$7:$E$200,2,FALSE) -> 99.5 | Z134: =W134/Y134*'Cenové indexy '!$E$149 -> 0 | AA134: 0 | AB134: 2014 | AE134: 2013-11-30 | AF134: Áno | AG134: Áno | AH134: ERDF | AI134: Nie | AJ134: 24 mesiacov zadarmo, potom (?) | AN134: Zmluva 1_AT | AT134: =VLOOKUP(M134,Adresy!$A$4:$C$156,2,FALSE) -> Brno | AU134: =VLOOKUP(M134,Adresy!$A$4:$C$156,3,FALSE) -> Jihlavská 340/20 | AV134: M | AW134: 2014M06 | BC134: =VLOOKUP(M134,Adresy!$A$3:$C$122,2,FALSE) -> Brno | BD134: =VLOOKUP(M134,Adresy!$A$3:$C$122,3,FALSE) -> Jihlavská 340/20 | BE134: 0 | BF134: 0 | BG134: 0 | BH134: 0
A135: SPECT/CT | C135: Symbia.net | H135: Siemens symbia Intevo Excel | K135: bez položkovej identifikácie ceny (v rámci sumárnej ceny) | L135: SW | M135: Fakultní nemocnice Brno | N135: ČR | O135: Siemens Healthcare s.r.o. | Q135: 1 | T135: =IF(N135="SR",1,IF(AC135="",VLOOKUP(AW135,'CZKEUR Xchange rate'!$D$13:$E$234,2,FALSE),VLOOKUP(AW135,'CZKEUR Xchange rate'!$A$13:$B$234,2,FALSE))) -> 27.453 | U135: 0 | V135: 0 | Y135: =VLOOKUP(AW135,'Cenové indexy '!$D$7:$E$200,2,FALSE) -> 99.5 | Z135: =W135/Y135*'Cenové indexy '!$E$149 -> 0 | AA135: 0 | AB135: 2014 | AE135: 2013-11-30 | AF135: Áno | AG135: Áno | AH135: ERDF | AI135: Nie | AJ135: 24 mesiacov zadarmo, potom (?) | AN135: Zmluva 1_AT | AT135: =VLOOKUP(M135,Adresy!$A$4:$C$156,2,FALSE) -> Brno | AU135: =VLOOKUP(M135,Adresy!$A$4:$C$156,3,FALSE) -> Jihlavská 340/20 | AV135: M | AW135: 2014M06 | BC135: =VLOOKUP(M135,Adresy!$A$3:$C$122,2,FALSE) -> Brno | BD135: =VLOOKUP(M135,Adresy!$A$3:$C$122,3,FALSE) -> Jihlavská 340/20 | BE135: 0 | BF135: 0 | BG135: 0 | BH135: 0
A136: SPECT/CT | C136: Monitor 22, LCD DICOM | H136: Siemens symbia Intevo Excel | K136: bez položkovej identifikácie ceny (v rámci sumárnej ceny) | L136: HW | M136: Fakultní nemocnice Brno | N136: ČR | O136: Siemens Healthcare s.r.o. | Q136: 1 | T136: =IF(N136="SR",1,IF(AC136="",VLOOKUP(AW136,'CZKEUR Xchange rate'!$D$13:$E$234,2,FALSE),VLOOKUP(AW136,'CZKEUR Xchange rate'!$A$13:$B$234,2,FALSE))) -> 27.453 | U136: 0 | V136: 0 | Y136: =VLOOKUP(AW136,'Cenové indexy '!$D$7:$E$200,2,FALSE) -> 99.5 | Z136: =W136/Y136*'Cenové indexy '!$E$149 -> 0 | AA136: 0 | AB136: 2014 | AE136: 2013-11-30 | AF136: Áno | AG136: Áno | AH136: ERDF | AI136: Nie | AJ136: 24 mesiacov zadarmo, potom (?) | AN136: Zmluva 1_AT | AT136: =VLOOKUP(M136,Adresy!$A$4:$C$156,2,FALSE) -> Brno | AU136: =VLOOKUP(M136,Adresy!$A$4:$C$156,3,FALSE) -> Jihlavská 340/20 | AV136: M | AW136: 2014M06 | BC136: =VLOOKUP(M136,Adresy!$A$3:$C$122,2,FALSE) -> Brno | BD136: =VLOOKUP(M136,Adresy!$A$3:$C$122,3,FALSE) -> Jihlavská 340/20 | BE136: 0 | BF136: 0 | BG136: 0 | BH136: 0
A137: SPECT/CT | C137: Server management | H137: Siemens symbia Intevo Excel | K137: bez položkovej identifikácie ceny (v rámci sumárnej ceny) | L137: SW | M137: Fakultní nemocnice Brno | N137: ČR | O137: Siemens Healthcare s.r.o. | Q137: 1 | T137: =IF(N137="SR",1,IF(AC137="",VLOOKUP(AW137,'CZKEUR Xchange rate'!$D$13:$E$234,2,FALSE),VLOOKUP(AW137,'CZKEUR Xchange rate'!$A$13:$B$234,2,FALSE))) -> 27.453 | U137: 0 | V137: 0 | Y137: =VLOOKUP(AW137,'Cenové indexy '!$D$7:$E$200,2,FALSE) -> 99.5 | Z137: =W137/Y137*'Cenové indexy '!$E$149 -> 0 | AA137: 0 | AB137: 2014 | AE137: 2013-11-30 | AF137: Áno | AG137: Áno | AH137: ERDF | AI137: Nie | AJ137: 24 mesiacov zadarmo, potom (?) | AN137: Zmluva 1_AT | AT137: =VLOOKUP(M137,Adresy!$A$4:$C$156,2,FALSE) -> Brno | AU137: =VLOOKUP(M137,Adresy!$A$4:$C$156,3,FALSE) -> Jihlavská 340/20 | AV137: M | AW137: 2014M06 | BC137: =VLOOKUP(M137,Adresy!$A$3:$C$122,2,FALSE) -> Brno | BD137: =VLOOKUP(M137,Adresy!$A$3:$C$122,3,FALSE) -> Jihlavská 340/20 | BE137: 0 | BF137: 0 | BG137: 0 | BH137: 0
A138: SPECT/CT | C138: Symbia.net, klient | H138: Siemens symbia Intevo Excel | K138: bez položkovej identifikácie ceny (v rámci sumárnej ceny) | L138: SW | M138: Fakultní nemocnice Brno | N138: ČR | O138: Siemens Healthcare s.r.o. | Q138: 3 | T138: =IF(N138="SR",1,IF(AC138="",VLOOKUP(AW138,'CZKEUR Xchange rate'!$D$13:$E$234,2,FALSE),VLOOKUP(AW138,'CZKEUR Xchange rate'!$A$13:$B$234,2,FALSE))) -> 27.453 | U138: 0 | V138: 0 | Y138: =VLOOKUP(AW138,'Cenové indexy '!$D$7:$E$200,2,FALSE) -> 99.5 | Z138: =W138/Y138*'Cenové indexy '!$E$149 -> 0 | AA138: 0 | AB138: 2014 | AE138: 2013-11-30 | AF138: Áno | AG138: Áno | AH138: ERDF | AI138: Nie | AJ138: 24 mesiacov zadarmo, potom (?) | AN138: Zmluva 1_AT | AT138: =VLOOKUP(M138,Adresy!$A$4:$C$156,2,FALSE) -> Brno | AU138: =VLOOKUP(M138,Adresy!$A$4:$C$156,3,FALSE) -> Jihlavská 340/20 | AV138: M | AW138: 2014M06 | BC138: =VLOOKUP(M138,Adresy!$A$3:$C$122,2,FALSE) -> Brno | BD138: =VLOOKUP(M138,Adresy!$A$3:$C$122,3,FALSE) -> Jihlavská 340/20 | BE138: 0 | BF138: 0 | BG138: 0 | BH138: 0
A139: SPECT/CT | C139: Pokročilý engine pre onkológiu | H139: Siemens symbia Intevo Excel | K139: bez položkovej identifikácie ceny (v rámci sumárnej ceny) | L139: SW | M139: Fakultní nemocnice Brno | N139: ČR | O139: Siemens Healthcare s.r.o. | Q139: 1 | T139: =IF(N139="SR",1,IF(AC139="",VLOOKUP(AW139,'CZKEUR Xchange rate'!$D$13:$E$234,2,FALSE),VLOOKUP(AW139,'CZKEUR Xchange rate'!$A$13:$B$234,2,FALSE))) -> 27.453 | U139: 0 | V139: 0 | Y139: =VLOOKUP(AW139,'Cenové indexy '!$D$7:$E$200,2,FALSE) -> 99.5 | Z139: =W139/Y139*'Cenové indexy '!$E$149 -> 0 | AA139: 0 | AB139: 2014 | AE139: 2013-11-30 | AF139: Áno | AG139: Áno | AH139: ERDF | AI139: Nie | AJ139: 24 mesiacov zadarmo, potom (?) | AN139: Zmluva 1_AT | AT139: =VLOOKUP(M139,Adresy!$A$4:$C$156,2,FALSE) -> Brno | AU139: =VLOOKUP(M139,Adresy!$A$4:$C$156,3,FALSE) -> Jihlavská 340/20 | AV139: M | AW139: 2014M06 | BC139: =VLOOKUP(M139,Adresy!$A$3:$C$122,2,FALSE) -> Brno | BD139: =VLOOKUP(M139,Adresy!$A$3:$C$122,3,FALSE) -> Jihlavská 340/20 | BE139: 0 | BF139: 0 | BG139: 0 | BH139: 0
A140: SPECT/CT | C140: + pokročilý engine pre onkológiu | H140: Siemens symbia Intevo Excel | K140: bez položkovej identifikácie ceny (v rámci sumárnej ceny) | L140: SW | M140: Fakultní nemocnice Brno | N140: ČR | O140: Siemens Healthcare s.r.o. | Q140: 3 | T140: =IF(N140="SR",1,IF(AC140="",VLOOKUP(AW140,'CZKEUR Xchange rate'!$D$13:$E$234,2,FALSE),VLOOKUP(AW140,'CZKEUR Xchange rate'!$A$13:$B$234,2,FALSE))) -> 27.453 | U140: 0 | V140: 0 | Y140: =VLOOKUP(AW140,'Cenové indexy '!$D$7:$E$200,2,FALSE) -> 99.5 | Z140: =W140/Y140*'Cenové indexy '!$E$149 -> 0 | AA140: 0 | AB140: 2014 | AE140: 2013-11-30 | AF140: Áno | AG140: Áno | AH140: ERDF | AI140: Nie | AJ140: 24 mesiacov zadarmo, potom (?) | AN140: Zmluva 1_AT | AT140: =VLOOKUP(M140,Adresy!$A$4:$C$156,2,FALSE) -> Brno | AU140: =VLOOKUP(M140,Adresy!$A$4:$C$156,3,FALSE) -> Jihlavská 340/20 | AV140: M | AW140: 2014M06 | BC140: =VLOOKUP(M140,Adresy!$A$3:$C$122,2,FALSE) -> Brno | BD140: =VLOOKUP(M140,Adresy!$A$3:$C$122,3,FALSE) -> Jihlavská 340/20 | BE140: 0 | BF140: 0 | BG140: 0 | BH140: 0
A141: SPECT/CT | C141: Kardiologický engine 4DM | H141: Siemens symbia Intevo Excel | K141: bez položkovej identifikácie ceny (v rámci sumárnej ceny) | L141: SW | M141: Fakultní nemocnice Brno | N141: ČR | O141: Siemens Healthcare s.r.o. | Q141: 1 | T141: =IF(N141="SR",1,IF(AC141="",VLOOKUP(AW141,'CZKEUR Xchange rate'!$D$13:$E$234,2,FALSE),VLOOKUP(AW141,'CZKEUR Xchange rate'!$A$13:$B$234,2,FALSE))) -> 27.453 | U141: 0 | V141: 0 | Y141: =VLOOKUP(AW141,'Cenové indexy '!$D$7:$E$200,2,FALSE) -> 99.5 | Z141: =W141/Y141*'Cenové indexy '!$E$149 -> 0 | AA141: 0 | AB141: 2014 | AE141: 2013-11-30 | AF141: Áno | AG141: Áno | AH141: ERDF | AI141: Nie | AJ141: 24 mesiacov zadarmo, potom (?) | AN141: Zmluva 1_AT | AT141: =VLOOKUP(M141,Adresy!$A$4:$C$156,2,FALSE) -> Brno | AU141: =VLOOKUP(M141,Adresy!$A$4:$C$156,3,FALSE) -> Jihlavská 340/20 | AV141: M | AW141: 2014M06 | BC141: =VLOOKUP(M141,Adresy!$A$3:$C$122,2,FALSE) -> Brno | BD141: =VLOOKUP(M141,Adresy!$A$3:$C$122,3,FALSE) -> Jihlavská 340/20 | BE141: 0 | BF141: 0 | BG141: 0 | BH141: 0
A142: SPECT/CT | C142: + kardiologický engine 4DM | H142: Siemens symbia Intevo Excel | K142: bez položkovej identifikácie ceny (v rámci sumárnej ceny) | L142: SW | M142: Fakultní nemocnice Brno | N142: ČR | O142: Siemens Healthcare s.r.o. | Q142: 3 | T142: =IF(N142="SR",1,IF(AC142="",VLOOKUP(AW142,'CZKEUR Xchange rate'!$D$13:$E$234,2,FALSE),VLOOKUP(AW142,'CZKEUR Xchange rate'!$A$13:$B$234,2,FALSE))) -> 27.453 | U142: 0 | V142: 0 | Y142: =VLOOKUP(AW142,'Cenové indexy '!$D$7:$E$200,2,FALSE) -> 99.5 | Z142: =W142/Y142*'Cenové indexy '!$E$149 -> 0 | AA142: 0 | AB142: 2014 | AE142: 2013-11-30 | AF142: Áno | AG142: Áno | AH142: ERDF | AI142: Nie | AJ142: 24 mesiacov zadarmo, potom (?) | AN142: Zmluva 1_AT | AT142: =VLOOKUP(M142,Adresy!$A$4:$C$156,2,FALSE) -> Brno | AU142: =VLOOKUP(M142,Adresy!$A$4:$C$156,3,FALSE) -> Jihlavská 340/20 | AV142: M | AW142: 2014M06 | BC142: =VLOOKUP(M142,Adresy!$A$3:$C$122,2,FALSE) -> Brno | BD142: =VLOOKUP(M142,Adresy!$A$3:$C$122,3,FALSE) -> Jihlavská 340/20 | BE142: 0 | BF142: 0 | BG142: 0 | BH142: 0
A143: SPECT/CT | C143: Neurologický engine | H143: Siemens symbia Intevo Excel | K143: bez položkovej identifikácie ceny (v rámci sumárnej ceny) | L143: SW | M143: Fakultní nemocnice Brno | N143: ČR | O143: Siemens Healthcare s.r.o. | Q143: 1 | T143: =IF(N143="SR",1,IF(AC143="",VLOOKUP(AW143,'CZKEUR Xchange rate'!$D$13:$E$234,2,FALSE),VLOOKUP(AW143,'CZKEUR Xchange rate'!$A$13:$B$234,2,FALSE))) -> 27.453 | U143: 0 | V143: 0 | Y143: =VLOOKUP(AW143,'Cenové indexy '!$D$7:$E$200,2,FALSE) -> 99.5 | Z143: =W143/Y143*'Cenové indexy '!$E$149 -> 0 | AA143: 0 | AB143: 2014 | AE143: 2013-11-30 | AF143: Áno | AG143: Áno | AH143: ERDF | AI143: Nie | AJ143: 24 mesiacov zadarmo, potom (?) | AN143: Zmluva 1_AT | AT143: =VLOOKUP(M143,Adresy!$A$4:$C$156,2,FALSE) -> Brno | AU143: =VLOOKUP(M143,Adresy!$A$4:$C$156,3,FALSE) -> Jihlavská 340/20 | AV143: M | AW143: 2014M06 | BC143: =VLOOKUP(M143,Adresy!$A$3:$C$122,2,FALSE) -> Brno | BD143: =VLOOKUP(M143,Adresy!$A$3:$C$122,3,FALSE) -> Jihlavská 340/20 | BE143: 0 | BF143: 0 | BG143: 0 | BH143: 0
A144: SPECT/CT | C144: + neurologický engine | H144: Siemens symbia Intevo Excel | K144: bez položkovej identifikácie ceny (v rámci sumárnej ceny) | L144: SW | M144: Fakultní nemocnice Brno | N144: ČR | O144: Siemens Healthcare s.r.o. | Q144: 3 | T144: =IF(N144="SR",1,IF(AC144="",VLOOKUP(AW144,'CZKEUR Xchange rate'!$D$13:$E$234,2,FALSE),VLOOKUP(AW144,'CZKEUR Xchange rate'!$A$13:$B$234,2,FALSE))) -> 27.453 | U144: 0 | V144: 0 | Y144: =VLOOKUP(AW144,'Cenové indexy '!$D$7:$E$200,2,FALSE) -> 99.5 | Z144: =W144/Y144*'Cenové indexy '!$E$149 -> 0 | AA144: 0 | AB144: 2014 | AE144: 2013-11-30 | AF144: Áno | AG144: Áno | AH144: ERDF | AI144: Nie | AJ144: 24 mesiacov zadarmo, potom (?) | AN144: Zmluva 1_AT | AT144: =VLOOKUP(M144,Adresy!$A$4:$C$156,2,FALSE) -> Brno | AU144: =VLOOKUP(M144,Adresy!$A$4:$C$156,3,FALSE) -> Jihlavská 340/20 | AV144: M | AW144: 2014M06 | BC144: =VLOOKUP(M144,Adresy!$A$3:$C$122,2,FALSE) -> Brno | BD144: =VLOOKUP(M144,Adresy!$A$3:$C$122,3,FALSE) -> Jihlavská 340/20 | BE144: 0 | BF144: 0 | BG144: 0 | BH144: 0
A145: SPECT/CT | C145: Spracovanie zamerané na určitý orgán | H145: Siemens symbia Intevo Excel | K145: bez položkovej identifikácie ceny (v rámci sumárnej ceny) | L145: SW | M145: Fakultní nemocnice Brno | N145: ČR | O145: Siemens Healthcare s.r.o. | Q145: 1 | T145: =IF(N145="SR",1,IF(AC145="",VLOOKUP(AW145,'CZKEUR Xchange rate'!$D$13:$E$234,2,FALSE),VLOOKUP(AW145,'CZKEUR Xchange rate'!$A$13:$B$234,2,FALSE))) -> 27.453 | U145: 0 | V145: 0 | Y145: =VLOOKUP(AW145,'Cenové indexy '!$D$7:$E$200,2,FALSE) -> 99.5 | Z145: =W145/Y145*'Cenové indexy '!$E$149 -> 0 | AA145: 0 | AB145: 2014 | AE145: 2013-11-30 | AF145: Áno | AG145: Áno | AH145: ERDF | AI145: Nie | AJ145: 24 mesiacov zadarmo, potom (?) | AN145: Zmluva 1_AT | AT145: =VLOOKUP(M145,Adresy!$A$4:$C$156,2,FALSE) -> Brno | AU145: =VLOOKUP(M145,Adresy!$A$4:$C$156,3,FALSE) -> Jihlavská 340/20 | AV145: M | AW145: 2014M06 | BC145: =VLOOKUP(M145,Adresy!$A$3:$C$122,2,FALSE) -> Brno | BD145: =VLOOKUP(M145,Adresy!$A$3:$C$122,3,FALSE) -> Jihlavská 340/20 | BE145: 0 | BF145: 0 | BG145: 0 | BH145: 0
A146: SPECT/CT | C146: + spracovanie zamerané na určitý orgán | H146: Siemens symbia Intevo Excel | K146: bez položkovej identifikácie ceny (v rámci sumárnej ceny) | L146: SW | M146: Fakultní nemocnice Brno | N146: ČR | O146: Siemens Healthcare s.r.o. | Q146: 3 | T146: =IF(N146="SR",1,IF(AC146="",VLOOKUP(AW146,'CZKEUR Xchange rate'!$D$13:$E$234,2,FALSE),VLOOKUP(AW146,'CZKEUR Xchange rate'!$A$13:$B$234,2,FALSE))) -> 27.453 | U146: 0 | V146: 0 | Y146: =VLOOKUP(AW146,'Cenové indexy '!$D$7:$E$200,2,FALSE) -> 99.5 | Z146: =W146/Y146*'Cenové indexy '!$E$149 -> 0 | AA146: 0 | AB146: 2014 | AE146: 2013-11-30 | AF146: Áno | AG146: Áno | AH146: ERDF | AI146: Nie | AJ146: 24 mesiacov zadarmo, potom (?) | AN146: Zmluva 1_AT | AT146: =VLOOKUP(M146,Adresy!$A$4:$C$156,2,FALSE) -> Brno | AU146: =VLOOKUP(M146,Adresy!$A$4:$C$156,3,FALSE) -> Jihlavská 340/20 | AV146: M | AW146: 2014M06 | BC146: =VLOOKUP(M146,Adresy!$A$3:$C$122,2,FALSE) -> Brno | BD146: =VLOOKUP(M146,Adresy!$A$3:$C$122,3,FALSE) -> Jihlavská 340/20 | BE146: 0 | BF146: 0 | BG146: 0 | BH146: 0
A147: SPECT/CT | C147: Pokročilý enigine "reconstruction" | H147: Siemens symbia Intevo Excel | K147: bez položkovej identifikácie ceny (v rámci sumárnej ceny) | L147: SW | M147: Fakultní nemocnice Brno | N147: ČR | O147: Siemens Healthcare s.r.o. | Q147: 1 | T147: =IF(N147="SR",1,IF(AC147="",VLOOKUP(AW147,'CZKEUR Xchange rate'!$D$13:$E$234,2,FALSE),VLOOKUP(AW147,'CZKEUR Xchange rate'!$A$13:$B$234,2,FALSE))) -> 27.453 | U147: 0 | V147: 0 | Y147: =VLOOKUP(AW147,'Cenové indexy '!$D$7:$E$200,2,FALSE) -> 99.5 | Z147: =W147/Y147*'Cenové indexy '!$E$149 -> 0 | AA147: 0 | AB147: 2014 | AE147: 2013-11-30 | AF147: Áno | AG147: Áno | AH147: ERDF | AI147: Nie | AJ147: 24 mesiacov zadarmo, potom (?) | AN147: Zmluva 1_AT | AT147: =VLOOKUP(M147,Adresy!$A$4:$C$156,2,FALSE) -> Brno | AU147: =VLOOKUP(M147,Adresy!$A$4:$C$156,3,FALSE) -> Jihlavská 340/20 | AV147: M | AW147: 2014M06 | BC147: =VLOOKUP(M147,Adresy!$A$3:$C$122,2,FALSE) -> Brno | BD147: =VLOOKUP(M147,Adresy!$A$3:$C$122,3,FALSE) -> Jihlavská 340/20 | BE147: 0 | BF147: 0 | BG147: 0 | BH147: 0
A148: SPECT/CT | C148: + pokročilá rekonštrukcia | H148: Siemens symbia Intevo Excel | K148: bez položkovej identifikácie ceny (v rámci sumárnej ceny) | L148: SW | M148: Fakultní nemocnice Brno | N148: ČR | O148: Siemens Healthcare s.r.o. | Q148: 3 | T148: =IF(N148="SR",1,IF(AC148="",VLOOKUP(AW148,'CZKEUR Xchange rate'!$D$13:$E$234,2,FALSE),VLOOKUP(AW148,'CZKEUR Xchange rate'!$A$13:$B$234,2,FALSE))) -> 27.453 | U148: 0 | V148: 0 | Y148: =VLOOKUP(AW148,'Cenové indexy '!$D$7:$E$200,2,FALSE) -> 99.5 | Z148: =W148/Y148*'Cenové indexy '!$E$149 -> 0 | AA148: 0 | AB148: 2014 | AE148: 2013-11-30 | AF148: Áno | AG148: Áno | AH148: ERDF | AI148: Nie | AJ148: 24 mesiacov zadarmo, potom (?) | AN148: Zmluva 1_AT | AT148: =VLOOKUP(M148,Adresy!$A$4:$C$156,2,FALSE) -> Brno | AU148: =VLOOKUP(M148,Adresy!$A$4:$C$156,3,FALSE) -> Jihlavská 340/20 | AV148: M | AW148: 2014M06 | BC148: =VLOOKUP(M148,Adresy!$A$3:$C$122,2,FALSE) -> Brno | BD148: =VLOOKUP(M148,Adresy!$A$3:$C$122,3,FALSE) -> Jihlavská 340/20 | BE148: 0 | BF148: 0 | BG148: 0 | BH148: 0
A149: SPECT/CT | C149: HW popisovacia stanica | H149: Siemens symbia Intevo Excel | K149: bez položkovej identifikácie ceny (v rámci sumárnej ceny) | L149: HW | M149: Fakultní nemocnice Brno | N149: ČR | O149: Siemens Healthcare s.r.o. | Q149: 1 | T149: =IF(N149="SR",1,IF(AC149="",VLOOKUP(AW149,'CZKEUR Xchange rate'!$D$13:$E$234,2,FALSE),VLOOKUP(AW149,'CZKEUR Xchange rate'!$A$13:$B$234,2,FALSE))) -> 27.453 | U149: 0 | V149: 0 | Y149: =VLOOKUP(AW149,'Cenové indexy '!$D$7:$E$200,2,FALSE) -> 99.5 | Z149: =W149/Y149*'Cenové indexy '!$E$149 -> 0 | AA149: 0 | AB149: 2014 | AE149: 2013-11-30 | AF149: Áno | AG149: Áno | AH149: ERDF | AI149: Nie | AJ149: 24 mesiacov zadarmo, potom (?) | AN149: Zmluva 1_AT | AT149: =VLOOKUP(M149,Adresy!$A$4:$C$156,2,FALSE) -> Brno | AU149: =VLOOKUP(M149,Adresy!$A$4:$C$156,3,FALSE) -> Jihlavská 340/20 | AV149: M | AW149: 2014M06 | BC149: =VLOOKUP(M149,Adresy!$A$3:$C$122,2,FALSE) -> Brno | BD149: =VLOOKUP(M149,Adresy!$A$3:$C$122,3,FALSE) -> Jihlavská 340/20 | BE149: 0 | BF149: 0 | BG149: 0 | BH149: 0
A150: SPECT/CT | C150: Farebná laserová talčiareň | H150: Siemens symbia Intevo Excel | K150: bez položkovej identifikácie ceny (v rámci sumárnej ceny) | L150: HW | M150: Fakultní nemocnice Brno | N150: ČR | O150: Siemens Healthcare s.r.o. | Q150: 1 | T150: =IF(N150="SR",1,IF(AC150="",VLOOKUP(AW150,'CZKEUR Xchange rate'!$D$13:$E$234,2,FALSE),VLOOKUP(AW150,'CZKEUR Xchange rate'!$A$13:$B$234,2,FALSE))) -> 27.453 | U150: 0 | V150: 0 | Y150: =VLOOKUP(AW150,'Cenové indexy '!$D$7:$E$200,2,FALSE) -> 99.5 | Z150: =W150/Y150*'Cenové indexy '!$E$149 -> 0 | AA150: 0 | AB150: 2014 | AE150: 2013-11-30 | AF150: Áno | AG150: Áno | AH150: ERDF | AI150: Nie | AJ150: 24 mesiacov zadarmo, potom (?) | AN150: Zmluva 1_AT | AT150: =VLOOKUP(M150,Adresy!$A$4:$C$156,2,FALSE) -> Brno | AU150: =VLOOKUP(M150,Adresy!$A$4:$C$156,3,FALSE) -> Jihlavská 340/20 | AV150: M | AW150: 2014M06 | BC150: =VLOOKUP(M150,Adresy!$A$3:$C$122,2,FALSE) -> Brno | BD150: =VLOOKUP(M150,Adresy!$A$3:$C$122,3,FALSE) -> Jihlavská 340/20 | BE150: 0 | BF150: 0 | BG150: 0 | BH150: 0
A151: SPECT/CT | C151: Celá zostava | G151: GE Discovery NM/CT670 | K151: sumárna cena | L151: HW/SW | M151: Nemocnice České Budějovice, a.s. | N151: ČR | O151: GE Medical Systems s.r.o. | Q151: 1 | R151: 15958650 | S151: 19342637 | T151: =IF(N151="SR",1,IF(AC151="",VLOOKUP(AW151,'CZKEUR Xchange rate'!$D$13:$E$234,2,FALSE),VLOOKUP(AW151,'CZKEUR Xchange rate'!$A$13:$B$234,2,FALSE))) -> 27.453 | U151: 581308.0538 | V151: 704572.7971 | W151: =U151/Q151 -> 581308.0538 | X151: =V151/Q151 -> 704572.7971 | Y151: =VLOOKUP(AW151,'Cenové indexy '!$D$7:$E$200,2,FALSE) -> 99.5 | Z151: =W151/Y151*'Cenové indexy '!$E$149 -> 602515.5737 | AA151: 723018.6885 | AB151: 2014 | AE151: 2013-11-30 | AF151: Áno | AG151: Áno | AH151: Neurčené | AI151: Nie | AJ151: 24 mesiacov zadarmo, potom 8 rokov podľa zmluvy | AN151: Zmluva 7_MS | AT151: =VLOOKUP(M151,Adresy!$A$4:$C$156,2,FALSE) -> České Budějovice | AU151: =VLOOKUP(M151,Adresy!$A$4:$C$156,3,FALSE) -> B. Němcové 54 | AV151: M | AW151: 2014M06 | BC151: =VLOOKUP(M151,Adresy!$A$3:$C$122,2,FALSE) -> České Budějovice | BD151: =VLOOKUP(M151,Adresy!$A$3:$C$122,3,FALSE) -> B. Němcové 54 | BE151: 0 | BF151: 0 | BG151: 0 | BH151: 0
A152: SPECT/CT | C152: Detektory 3/8 s nízkym profilom | G152: GE Discovery NM/CT670 | K152: bez položkovej identifikácie ceny (v rámci sumárnej ceny) | L152: HW | M152: Nemocnice České Budějovice, a.s. | N152: ČR | O152: GE Medical Systems s.r.o. | Q152: 1 | T152: =IF(N152="SR",1,IF(AC152="",VLOOKUP(AW152,'CZKEUR Xchange rate'!$D$13:$E$234,2,FALSE),VLOOKUP(AW152,'CZKEUR Xchange rate'!$A$13:$B$234,2,FALSE))) -> 27.453 | U152: 0 | V152: 0 | Y152: =VLOOKUP(AW152,'Cenové indexy '!$D$7:$E$200,2,FALSE) -> 99.5 | Z152: =W152/Y152*'Cenové indexy '!$E$149 -> 0 | AA152: 0 | AB152: 2014 | AE152: 2013-11-30 | AF152: Áno | AG152: Áno | AH152: Neurčené | AI152: Nie | AJ152: 24 mesiacov zadarmo, potom 8 rokov podľa zmluvy | AN152: Zmluva 7_MS | AT152: =VLOOKUP(M152,Adresy!$A$4:$C$156,2,FALSE) -> České Budějovice | AU152: =VLOOKUP(M152,Adresy!$A$4:$C$156,3,FALSE) -> B. Němcové 54 | AV152: M | AW152: 2014M06 | BC152: =VLOOKUP(M152,Adresy!$A$3:$C$122,2,FALSE) -> České Budějovice | BD152: =VLOOKUP(M152,Adresy!$A$3:$C$122,3,FALSE) -> B. Němcové 54 | BE152: 0 | BF152: 0 | BG152: 0 | BH152: 0
A153: SPECT/CT | C153: Pacientský stôl | G153: GE Discovery NM/CT670 | K153: bez položkovej identifikácie ceny (v rámci sumárnej ceny) | L153: HW | M153: Nemocnice České Budějovice, a.s. | N153: ČR | O153: GE Medical Systems s.r.o. | Q153: 1 | T153: =IF(N153="SR",1,IF(AC153="",VLOOKUP(AW153,'CZKEUR Xchange rate'!$D$13:$E$234,2,FALSE),VLOOKUP(AW153,'CZKEUR Xchange rate'!$A$13:$B$234,2,FALSE))) -> 27.453 | U153: 0 | V153: 0 | Y153: =VLOOKUP(AW153,'Cenové indexy '!$D$7:$E$200,2,FALSE) -> 99.5 | Z153: =W153/Y153*'Cenové indexy '!$E$149 -> 0 | AA153: 0 | AB153: 2014 | AE153: 2013-11-30 | AF153: Áno | AG153: Áno | AH153: Neurčené | AI153: Nie | AJ153: 24 mesiacov zadarmo, potom 8 rokov podľa zmluvy | AN153: Zmluva 7_MS | AT153: =VLOOKUP(M153,Adresy!$A$4:$C$156,2,FALSE) -> České Budějovice | AU153: =VLOOKUP(M153,Adresy!$A$4:$C$156,3,FALSE) -> B. Němcové 54 | AV153: M | AW153: 2014M06 | BC153: =VLOOKUP(M153,Adresy!$A$3:$C$122,2,FALSE) -> České Budějovice | BD153: =VLOOKUP(M153,Adresy!$A$3:$C$122,3,FALSE) -> B. Němcové 54 | BE153: 0 | BF153: 0 | BG153: 0 | BH153: 0
A154: SPECT/CT | C154: Akvizičná konzola | G154: GE Discovery NM/CT670 | K154: bez položkovej identifikácie ceny (v rámci sumárnej ceny) | L154: HW | M154: Nemocnice České Budějovice, a.s. | N154: ČR | O154: GE Medical Systems s.r.o. | Q154: 1 | T154: =IF(N154="SR",1,IF(AC154="",VLOOKUP(AW154,'CZKEUR Xchange rate'!$D$13:$E$234,2,FALSE),VLOOKUP(AW154,'CZKEUR Xchange rate'!$A$13:$B$234,2,FALSE))) -> 27.453 | U154: 0 | V154: 0 | Y154: =VLOOKUP(AW154,'Cenové indexy '!$D$7:$E$200,2,FALSE) -> 99.5 | Z154: =W154/Y154*'Cenové indexy '!$E$149 -> 0 | AA154: 0 | AB154: 2014 | AE154: 2013-11-30 | AF154: Áno | AG154: Áno | AH154: Neurčené | AI154: Nie | AJ154: 24 mesiacov zadarmo, potom 8 rokov podľa zmluvy | AN154: Zmluva 7_MS | AT154: =VLOOKUP(M154,Adresy!$A$4:$C$156,2,FALSE) -> České Budějovice | AU154: =VLOOKUP(M154,Adresy!$A$4:$C$156,3,FALSE) -> B. Němcové 54 | AV154: M | AW154: 2014M06 | BC154: =VLOOKUP(M154,Adresy!$A$3:$C$122,2,FALSE) -> České Budějovice | BD154: =VLOOKUP(M154,Adresy!$A$3:$C$122,3,FALSE) -> B. Němcové 54 | BE154: 0 | BF154: 0 | BG154: 0 | BH154: 0
A155: SPECT/CT | C155: Akvizičná stanica Discovery | G155: GE Discovery NM/CT670 | K155: bez položkovej identifikácie ceny (v rámci sumárnej ceny) | L155: HW | M155: Nemocnice České Budějovice, a.s. | N155: ČR | O155: GE Medical Systems s.r.o. | Q155: 1 | T155: =IF(N155="SR",1,IF(AC155="",VLOOKUP(AW155,'CZKEUR Xchange rate'!$D$13:$E$234,2,FALSE),VLOOKUP(AW155,'CZKEUR Xchange rate'!$A$13:$B$234,2,FALSE))) -> 27.453 | U155: 0 | V155: 0 | Y155: =VLOOKUP(AW155,'Cenové indexy '!$D$7:$E$200,2,FALSE) -> 99.5 | Z155: =W155/Y155*'Cenové indexy '!$E$149 -> 0 | AA155: 0 | AB155: 2014 | AE155: 2013-11-30 | AF155: Áno | AG155: Áno | AH155: Neurčené | AI155: Nie | AJ155: 24 mesiacov zadarmo, potom 8 rokov podľa zmluvy | AN155: Zmluva 7_MS | AT155: =VLOOKUP(M155,Adresy!$A$4:$C$156,2,FALSE) -> České Budějovice | AU155: =VLOOKUP(M155,Adresy!$A$4:$C$156,3,FALSE) -> B. Němcové 54 | AV155: M | AW155: 2014M06 | BC155: =VLOOKUP(M155,Adresy!$A$3:$C$122,2,FALSE) -> České Budějovice | BD155: =VLOOKUP(M155,Adresy!$A$3:$C$122,3,FALSE) -> B. Němcové 54 | BE155: 0 | BF155: 0 | BG155: 0 | BH155: 0
A156: SPECT/CT | C156: Kolimátor pre nízke energie, vysoké rozlíšenie | G156: GE Discovery NM/CT670 | K156: bez položkovej identifikácie ceny (v rámci sumárnej ceny) | L156: HW | M156: Nemocnice České Budějovice, a.s. | N156: ČR | O156: GE Medical Systems s.r.o. | Q156: 2 | T156: =IF(N156="SR",1,IF(AC156="",VLOOKUP(AW156,'CZKEUR Xchange rate'!$D$13:$E$234,2,FALSE),VLOOKUP(AW156,'CZKEUR Xchange rate'!$A$13:$B$234,2,FALSE))) -> 27.453 | U156: 0 | V156: 0 | Y156: =VLOOKUP(AW156,'Cenové indexy '!$D$7:$E$200,2,FALSE) -> 99.5 | Z156: =W156/Y156*'Cenové indexy '!$E$149 -> 0 | AA156: 0 | AB156: 2014 | AE156: 2013-11-30 | AF156: Áno | AG156: Áno | AH156: Neurčené | AI156: Nie | AJ156: 24 mesiacov zadarmo, potom 8 rokov podľa zmluvy | AN156: Zmluva 7_MS | AT156: =VLOOKUP(M156,Adresy!$A$4:$C$156,2,FALSE) -> České Budějovice | AU156: =VLOOKUP(M156,Adresy!$A$4:$C$156,3,FALSE) -> B. Němcové 54 | AV156: M | AW156: 2014M06 | BC156: =VLOOKUP(M156,Adresy!$A$3:$C$122,2,FALSE) -> České Budějovice | BD156: =VLOOKUP(M156,Adresy!$A$3:$C$122,3,FALSE) -> B. Němcové 54 | BE156: 0 | BF156: 0 | BG156: 0 | BH156: 0
A157: SPECT/CT | C157: Kolimátor pre stredné energie | G157: GE Discovery NM/CT670 | K157: bez položkovej identifikácie ceny (v rámci sumárnej ceny) | L157: HW | M157: Nemocnice České Budějovice, a.s. | N157: ČR | O157: GE Medical Systems s.r.o. | Q157: 2 | T157: =IF(N157="SR",1,IF(AC157="",VLOOKUP(AW157,'CZKEUR Xchange rate'!$D$13:$E$234,2,FALSE),VLOOKUP(AW157,'CZKEUR Xchange rate'!$A$13:$B$234,2,FALSE))) -> 27.453 | U157: 0 | V157: 0 | Y157: =VLOOKUP(AW157,'Cenové indexy '!$D$7:$E$200,2,FALSE) -> 99.5 | Z157: =W157/Y157*'Cenové indexy '!$E$149 -> 0 | AA157: 0 | AB157: 2014 | AE157: 2013-11-30 | AF157: Áno | AG157: Áno | AH157: Neurčené | AI157: Nie | AJ157: 24 mesiacov zadarmo, potom 8 rokov podľa zmluvy | AN157: Zmluva 7_MS | AT157: =VLOOKUP(M157,Adresy!$A$4:$C$156,2,FALSE) -> České Budějovice | AU157: =VLOOKUP(M157,Adresy!$A$4:$C$156,3,FALSE) -> B. Němcové 54 | AV157: M | AW157: 2014M06 | BC157: =VLOOKUP(M157,Adresy!$A$3:$C$122,2,FALSE) -> České Budějovice | BD157: =VLOOKUP(M157,Adresy!$A$3:$C$122,3,FALSE) -> B. Němcové 54 | BE157: 0 | BF157: 0 | BG157: 0 | BH157: 0
A158: SPECT/CT | C158: Pracovná stanica | E158: Xeleris 3 | G158: GE Discovery NM/CT670 | K158: bez položkovej identifikácie ceny (v rámci sumárnej ceny) | L158: HW | M158: Nemocnice České Budějovice, a.s. | N158: ČR | O158: GE Medical Systems s.r.o. | Q158: 1 | T158: =IF(N158="SR",1,IF(AC158="",VLOOKUP(AW158,'CZKEUR Xchange rate'!$D$13:$E$234,2,FALSE),VLOOKUP(AW158,'CZKEUR Xchange rate'!$A$13:$B$234,2,FALSE))) -> 27.453 | U158: 0 | V158: 0 | Y158: =VLOOKUP(AW158,'Cenové indexy '!$D$7:$E$200,2,FALSE) -> 99.5 | Z158: =W158/Y158*'Cenové indexy '!$E$149 -> 0 | AA158: 0 | AB158: 2014 | AE158: 2013-11-30 | AF158: Áno | AG158: Áno | AH158: Neurčené | AI158: Nie | AJ158: 24 mesiacov zadarmo, potom 8 rokov podľa zmluvy | AN158: Zmluva 7_MS | AT158: =VLOOKUP(M158,Adresy!$A$4:$C$156,2,FALSE) -> České Budějovice | AU158: =VLOOKUP(M158,Adresy!$A$4:$C$156,3,FALSE) -> B. Němcové 54 | AV158: M | AW158: 2014M06 | BC158: =VLOOKUP(M158,Adresy!$A$3:$C$122,2,FALSE) -> České Budějovice | BD158: =VLOOKUP(M158,Adresy!$A$3:$C$122,3,FALSE) -> B. Němcové 54 | BE158: 0 | BF158: 0 | BG158: 0 | BH158: 0
A159: SPECT/CT | C159: Pracovná stanica | E159: Xeleris 3.1 | G159: GE Discovery NM/CT670 | K159: bez položkovej identifikácie ceny (v rámci sumárnej ceny) | L159: HW | M159: Nemocnice České Budějovice, a.s. | N159: ČR | O159: GE Medical Systems s.r.o. | Q159: 1 | T159: =IF(N159="SR",1,IF(AC159="",VLOOKUP(AW159,'CZKEUR Xchange rate'!$D$13:$E$234,2,FALSE),VLOOKUP(AW159,'CZKEUR Xchange rate'!$A$13:$B$234,2,FALSE))) -> 27.453 | U159: 0 | V159: 0 | Y159: =VLOOKUP(AW159,'Cenové indexy '!$D$7:$E$200,2,FALSE) -> 99.5 | Z159: =W159/Y159*'Cenové indexy '!$E$149 -> 0 | AA159: 0 | AB159: 2014 | AE159: 2013-11-30 | AF159: Áno | AG159: Áno | AH159: Neurčené | AI159: Nie | AJ159: 24 mesiacov zadarmo, potom 8 rokov podľa zmluvy | AN159: Zmluva 7_MS | AT159: =VLOOKUP(M159,Adresy!$A$4:$C$156,2,FALSE) -> České Budějovice | AU159: =VLOOKUP(M159,Adresy!$A$4:$C$156,3,FALSE) -> B. Němcové 54 | AV159: M | AW159: 2014M06 | BC159: =VLOOKUP(M159,Adresy!$A$3:$C$122,2,FALSE) -> České Budějovice | BD159: =VLOOKUP(M159,Adresy!$A$3:$C$122,3,FALSE) -> B. Němcové 54 | BE159: 0 | BF159: 0 | BG159: 0 | BH159: 0
A160: SPECT/CT | C160: Upgrade stanice | E160: Xeleris 1 na Xeleris 3 | G160: GE Discovery NM/CT670 | K160: bez položkovej identifikácie ceny (v rámci sumárnej ceny) | L160: SW | M160: Nemocnice České Budějovice, a.s. | N160: ČR | O160: GE Medical Systems s.r.o. | Q160: 1 | T160: =IF(N160="SR",1,IF(AC160="",VLOOKUP(AW160,'CZKEUR Xchange rate'!$D$13:$E$234,2,FALSE),VLOOKUP(AW160,'CZKEUR Xchange rate'!$A$13:$B$234,2,FALSE))) -> 27.453 | U160: 0 | V160: 0 | Y160: =VLOOKUP(AW160,'Cenové indexy '!$D$7:$E$200,2,FALSE) -> 99.5 | Z160: =W160/Y160*'Cenové indexy '!$E$149 -> 0 | AA160: 0 | AB160: 2014 | AE160: 2013-11-30 | AF160: Áno | AG160: Áno | AH160: Neurčené | AI160: Nie | AJ160: 24 mesiacov zadarmo, potom 8 rokov podľa zmluvy | AN160: Zmluva 7_MS | AT160: =VLOOKUP(M160,Adresy!$A$4:$C$156,2,FALSE) -> České Budějovice | AU160: =VLOOKUP(M160,Adresy!$A$4:$C$156,3,FALSE) -> B. Němcové 54 | AV160: M | AW160: 2014M06 | BC160: =VLOOKUP(M160,Adresy!$A$3:$C$122,2,FALSE) -> České Budějovice | BD160: =VLOOKUP(M160,Adresy!$A$3:$C$122,3,FALSE) -> B. Němcové 54 | BE160: 0 | BF160: 0 | BG160: 0 | BH160: 0
A161: SPECT/CT | C161: Jazyková sada pre Xeleris 3.1 | G161: GE Discovery NM/CT670 | K161: bez položkovej identifikácie ceny (v rámci sumárnej ceny) | L161: SW | M161: Nemocnice České Budějovice, a.s. | N161: ČR | O161: GE Medical Systems s.r.o. | Q161: 1 | T161: =IF(N161="SR",1,IF(AC161="",VLOOKUP(AW161,'CZKEUR Xchange rate'!$D$13:$E$234,2,FALSE),VLOOKUP(AW161,'CZKEUR Xchange rate'!$A$13:$B$234,2,FALSE))) -> 27.453 | U161: 0 | V161: 0 | Y161: =VLOOKUP(AW161,'Cenové indexy '!$D$7:$E$200,2,FALSE) -> 99.5 | Z161: =W161/Y161*'Cenové indexy '!$E$149 -> 0 | AA161: 0 | AB161: 2014 | AE161: 2013-11-30 | AF161: Áno | AG161: Áno | AH161: Neurčené | AI161: Nie | AJ161: 24 mesiacov zadarmo, potom 8 rokov podľa zmluvy | AN161: Zmluva 7_MS | AT161: =VLOOKUP(M161,Adresy!$A$4:$C$156,2,FALSE) -> České Budějovice | AU161: =VLOOKUP(M161,Adresy!$A$4:$C$156,3,FALSE) -> B. Němcové 54 | AV161: M | AW161: 2014M06 | BC161: =VLOOKUP(M161,Adresy!$A$3:$C$122,2,FALSE) -> České Budějovice | BD161: =VLOOKUP(M161,Adresy!$A$3:$C$122,3,FALSE) -> B. Němcové 54 | BE161: 0 | BF161: 0 | BG161: 0 | BH161: 0
A162: SPECT/CT | C162: Monitor 23, LCD | G162: GE Discovery NM/CT670 | K162: bez položkovej identifikácie ceny (v rámci sumárnej ceny) | L162: HW | M162: Nemocnice České Budějovice, a.s. | N162: ČR | O162: GE Medical Systems s.r.o. | Q162: 1 | T162: =IF(N162="SR",1,IF(AC162="",VLOOKUP(AW162,'CZKEUR Xchange rate'!$D$13:$E$234,2,FALSE),VLOOKUP(AW162,'CZKEUR Xchange rate'!$A$13:$B$234,2,FALSE))) -> 27.453 | U162: 0 | V162: 0 | Y162: =VLOOKUP(AW162,'Cenové indexy '!$D$7:$E$200,2,FALSE) -> 99.5 | Z162: =W162/Y162*'Cenové indexy '!$E$149 -> 0 | AA162: 0 | AB162: 2014 | AE162: 2013-11-30 | AF162: Áno | AG162: Áno | AH162: Neurčené | AI162: Nie | AJ162: 24 mesiacov zadarmo, potom 8 rokov podľa zmluvy | AN162: Zmluva 7_MS | AT162: =VLOOKUP(M162,Adresy!$A$4:$C$156,2,FALSE) -> České Budějovice | AU162: =VLOOKUP(M162,Adresy!$A$4:$C$156,3,FALSE) -> B. Němcové 54 | AV162: M | AW162: 2014M06 | BC162: =VLOOKUP(M162,Adresy!$A$3:$C$122,2,FALSE) -> České Budějovice | BD162: =VLOOKUP(M162,Adresy!$A$3:$C$122,3,FALSE) -> B. Němcové 54 | BE162: 0 | BF162: 0 | BG162: 0 | BH162: 0
A163: SPECT/CT | C163: Kábelová sada | G163: GE Discovery NM/CT670 | K163: bez položkovej identifikácie ceny (v rámci sumárnej ceny) | L163: HW | M163: Nemocnice České Budějovice, a.s. | N163: ČR | O163: GE Medical Systems s.r.o. | Q163: 1 | T163: =IF(N163="SR",1,IF(AC163="",VLOOKUP(AW163,'CZKEUR Xchange rate'!$D$13:$E$234,2,FALSE),VLOOKUP(AW163,'CZKEUR Xchange rate'!$A$13:$B$234,2,FALSE))) -> 27.453 | U163: 0 | V163: 0 | Y163: =VLOOKUP(AW163,'Cenové indexy '!$D$7:$E$200,2,FALSE) -> 99.5 | Z163: =W163/Y163*'Cenové indexy '!$E$149 -> 0 | AA163: 0 | AB163: 2014 | AE163: 2013-11-30 | AF163: Áno | AG163: Áno | AH163: Neurčené | AI163: Nie | AJ163: 24 mesiacov zadarmo, potom 8 rokov podľa zmluvy | AN163: Zmluva 7_MS | AT163: =VLOOKUP(M163,Adresy!$A$4:$C$156,2,FALSE) -> České Budějovice | AU163: =VLOOKUP(M163,Adresy!$A$4:$C$156,3,FALSE) -> B. Němcové 54 | AV163: M | AW163: 2014M06 | BC163: =VLOOKUP(M163,Adresy!$A$3:$C$122,2,FALSE) -> České Budějovice | BD163: =VLOOKUP(M163,Adresy!$A$3:$C$122,3,FALSE) -> B. Němcové 54 | BE163: 0 | BF163: 0 | BG163: 0 | BH163: 0
A164: SPECT/CT | C164: Kardiologický software 4D-MSPECT | G164: GE Discovery NM/CT670 | K164: bez položkovej identifikácie ceny (v rámci sumárnej ceny) | L164: SW | M164: Nemocnice České Budějovice, a.s. | N164: ČR | O164: GE Medical Systems s.r.o. | Q164: 1 | T164: =IF(N164="SR",1,IF(AC164="",VLOOKUP(AW164,'CZKEUR Xchange rate'!$D$13:$E$234,2,FALSE),VLOOKUP(AW164,'CZKEUR Xchange rate'!$A$13:$B$234,2,FALSE))) -> 27.453 | U164: 0 | V164: 0 | Y164: =VLOOKUP(AW164,'Cenové indexy '!$D$7:$E$200,2,FALSE) -> 99.5 | Z164: =W164/Y164*'Cenové indexy '!$E$149 -> 0 | AA164: 0 | AB164: 2014 | AE164: 2013-11-30 | AF164: Áno | AG164: Áno | AH164: Neurčené | AI164: Nie | AJ164: 24 mesiacov zadarmo, potom 8 rokov podľa zmluvy | AN164: Zmluva 7_MS | AT164: =VLOOKUP(M164,Adresy!$A$4:$C$156,2,FALSE) -> České Budějovice | AU164: =VLOOKUP(M164,Adresy!$A$4:$C$156,3,FALSE) -> B. Němcové 54 | AV164: M | AW164: 2014M06 | BC164: =VLOOKUP(M164,Adresy!$A$3:$C$122,2,FALSE) -> České Budějovice | BD164: =VLOOKUP(M164,Adresy!$A$3:$C$122,3,FALSE) -> B. Němcové 54 | BE164: 0 | BF164: 0 | BG164: 0 | BH164: 0
A165: SPECT/CT | C165: Software: evolution algorithm | E165: bone and cardiac | G165: GE Discovery NM/CT670 | K165: bez položkovej identifikácie ceny (v rámci sumárnej ceny) | L165: SW | M165: Nemocnice České Budějovice, a.s. | N165: ČR | O165: GE Medical Systems s.r.o. | Q165: 2 | T165: =IF(N165="SR",1,IF(AC165="",VLOOKUP(AW165,'CZKEUR Xchange rate'!$D$13:$E$234,2,FALSE),VLOOKUP(AW165,'CZKEUR Xchange rate'!$A$13:$B$234,2,FALSE))) -> 27.453 | U165: 0 | V165: 0 | Y165: =VLOOKUP(AW165,'Cenové indexy '!$D$7:$E$200,2,FALSE) -> 99.5 | Z165: =W165/Y165*'Cenové indexy '!$E$149 -> 0 | AA165: 0 | AB165: 2014 | AE165: 2013-11-30 | AF165: Áno | AG165: Áno | AH165: Neurčené | AI165: Nie | AJ165: 24 mesiacov zadarmo, potom 8 rokov podľa zmluvy | AN165: Zmluva 7_MS | AT165: =VLOOKUP(M165,Adresy!$A$4:$C$156,2,FALSE) -> České Budějovice | AU165: =VLOOKUP(M165,Adresy!$A$4:$C$156,3,FALSE) -> B. Němcové 54 | AV165: M | AW165: 2014M06 | BC165: =VLOOKUP(M165,Adresy!$A$3:$C$122,2,FALSE) -> České Budějovice | BD165: =VLOOKUP(M165,Adresy!$A$3:$C$122,3,FALSE) -> B. Němcové 54 | BE165: 0 | BF165: 0 | BG165: 0 | BH165: 0
A166: SPECT/CT | C166: Software: evolution bone, planar a cardiac | G166: GE Discovery NM/CT670 | K166: bez položkovej identifikácie ceny (v rámci sumárnej ceny) | L166: SW | M166: Nemocnice České Budějovice, a.s. | N166: ČR | O166: GE Medical Systems s.r.o. | Q166: 1 | T166: =IF(N166="SR",1,IF(AC166="",VLOOKUP(AW166,'CZKEUR Xchange rate'!$D$13:$E$234,2,FALSE),VLOOKUP(AW166,'CZKEUR Xchange rate'!$A$13:$B$234,2,FALSE))) -> 27.453 | U166: 0 | V166: 0 | Y166: =VLOOKUP(AW166,'Cenové indexy '!$D$7:$E$200,2,FALSE) -> 99.5 | Z166: =W166/Y166*'Cenové indexy '!$E$149 -> 0 | AA166: 0 | AB166: 2014 | AE166: 2013-11-30 | AF166: Áno | AG166: Áno | AH166: Neurčené | AI166: Nie | AJ166: 24 mesiacov zadarmo, potom 8 rokov podľa zmluvy | AN166: Zmluva 7_MS | AT166: =VLOOKUP(M166,Adresy!$A$4:$C$156,2,FALSE) -> České Budějovice | AU166: =VLOOKUP(M166,Adresy!$A$4:$C$156,3,FALSE) -> B. Němcové 54 | AV166: M | AW166: 2014M06 | BC166: =VLOOKUP(M166,Adresy!$A$3:$C$122,2,FALSE) -> České Budějovice | BD166: =VLOOKUP(M166,Adresy!$A$3:$C$122,3,FALSE) -> B. Němcové 54 | BE166: 0 | BF166: 0 | BG166: 0 | BH166: 0
A167: SPECT/CT | C167: Software: neurogam a Neuromatch | G167: GE Discovery NM/CT670 | K167: bez položkovej identifikácie ceny (v rámci sumárnej ceny) | L167: SW | M167: Nemocnice České Budějovice, a.s. | N167: ČR | O167: GE Medical Systems s.r.o. | Q167: 1 | T167: =IF(N167="SR",1,IF(AC167="",VLOOKUP(AW167,'CZKEUR Xchange rate'!$D$13:$E$234,2,FALSE),VLOOKUP(AW167,'CZKEUR Xchange rate'!$A$13:$B$234,2,FALSE))) -> 27.453 | U167: 0 | V167: 0 | Y167: =VLOOKUP(AW167,'Cenové indexy '!$D$7:$E$200,2,FALSE) -> 99.5 | Z167: =W167/Y167*'Cenové indexy '!$E$149 -> 0 | AA167: 0 | AB167: 2014 | AE167: 2013-11-30 | AF167: Áno | AG167: Áno | AH167: Neurčené | AI167: Nie | AJ167: 24 mesiacov zadarmo, potom 8 rokov podľa zmluvy | AN167: Zmluva 7_MS | AT167: =VLOOKUP(M167,Adresy!$A$4:$C$156,2,FALSE) -> České Budějovice | AU167: =VLOOKUP(M167,Adresy!$A$4:$C$156,3,FALSE) -> B. Němcové 54 | AV167: M | AW167: 2014M06 | BC167: =VLOOKUP(M167,Adresy!$A$3:$C$122,2,FALSE) -> České Budějovice | BD167: =VLOOKUP(M167,Adresy!$A$3:$C$122,3,FALSE) -> B. Němcové 54 | BE167: 0 | BF167: 0 | BG167: 0 | BH167: 0
A168: SPECT/CT | C168: Volumetrix IR | G168: GE Discovery NM/CT670 | K168: bez položkovej identifikácie ceny (v rámci sumárnej ceny) | L168: SW | M168: Nemocnice České Budějovice, a.s. | N168: ČR | O168: GE Medical Systems s.r.o. | Q168: 1 | T168: =IF(N168="SR",1,IF(AC168="",VLOOKUP(AW168,'CZKEUR Xchange rate'!$D$13:$E$234,2,FALSE),VLOOKUP(AW168,'CZKEUR Xchange rate'!$A$13:$B$234,2,FALSE))) -> 27.453 | U168: 0 | V168: 0 | Y168: =VLOOKUP(AW168,'Cenové indexy '!$D$7:$E$200,2,FALSE) -> 99.5 | Z168: =W168/Y168*'Cenové indexy '!$E$149 -> 0 | AA168: 0 | AB168: 2014 | AE168: 2013-11-30 | AF168: Áno | AG168: Áno | AH168: Neurčené | AI168: Nie | AJ168: 24 mesiacov zadarmo, potom 8 rokov podľa zmluvy | AN168: Zmluva 7_MS | AT168: =VLOOKUP(M168,Adresy!$A$4:$C$156,2,FALSE) -> České Budějovice | AU168: =VLOOKUP(M168,Adresy!$A$4:$C$156,3,FALSE) -> B. Němcové 54 | AV168: M | AW168: 2014M06 | BC168: =VLOOKUP(M168,Adresy!$A$3:$C$122,2,FALSE) -> České Budějovice | BD168: =VLOOKUP(M168,Adresy!$A$3:$C$122,3,FALSE) -> B. Němcové 54 | BE168: 0 | BF168: 0 | BG168: 0 | BH168: 0
A169: SPECT/CT | C169: Volumetrix 3D | G169: GE Discovery NM/CT670 | K169: bez položkovej identifikácie ceny (v rámci sumárnej ceny) | L169: SW | M169: Nemocnice České Budějovice, a.s. | N169: ČR | O169: GE Medical Systems s.r.o. | Q169: 1 | T169: =IF(N169="SR",1,IF(AC169="",VLOOKUP(AW169,'CZKEUR Xchange rate'!$D$13:$E$234,2,FALSE),VLOOKUP(AW169,'CZKEUR Xchange rate'!$A$13:$B$234,2,FALSE))) -> 27.453 | U169: =R169/T169 -> 0 | V169: =S169/T169 -> 0 | Y169: =VLOOKUP(AW169,'Cenové indexy '!$D$7:$E$200,2,FALSE) -> 99.5 | Z169: =W169/Y169*'Cenové indexy '!$E$149 -> 0 | AA169: 0 | AB169: 2014 | AE169: 2013-11-30 | AF169: Áno | AG169: Áno | AH169: Neurčené | AI169: Nie | AJ169: 24 mesiacov zadarmo, potom 8 rokov podľa zmluvy | AN169: Zmluva 7_MS | AT169: =VLOOKUP(M169,Adresy!$A$4:$C$156,2,FALSE) -> České Budějovice | AU169: =VLOOKUP(M169,Adresy!$A$4:$C$156,3,FALSE) -> B. Němcové 54 | AV169: M | AW169: 2014M06 | BC169: =VLOOKUP(M169,Adresy!$A$3:$C$122,2,FALSE) -> České Budějovice | BD169: =VLOOKUP(M169,Adresy!$A$3:$C$122,3,FALSE) -> B. Němcové 54 | BE169: 0 | BF169: 0 | BG169: 0 | BH169: 0
A170: SPECT/CT | C170: Monitor | E170: IVY 3000m RWAWE | G170: GE Discovery NM/CT670 | K170: bez položkovej identifikácie ceny (v rámci sumárnej ceny) | L170: HW | M170: Nemocnice České Budějovice, a.s. | N170: ČR | O170: GE Medical Systems s.r.o. | Q170: 1 | T170: =IF(N170="SR",1,IF(AC170="",VLOOKUP(AW170,'CZKEUR Xchange rate'!$D$13:$E$234,2,FALSE),VLOOKUP(AW170,'CZKEUR Xchange rate'!$A$13:$B$234,2,FALSE))) -> 27.453 | U170: 0 | V170: 0 | Y170: =VLOOKUP(AW170,'Cenové indexy '!$D$7:$E$200,2,FALSE) -> 99.5 | Z170: =W170/Y170*'Cenové indexy '!$E$149 -> 0 | AA170: 0 | AB170: 2014 | AE170: 2013-11-30 | AF170: Áno | AG170: Áno | AH170: Neurčené | AI170: Nie | AJ170: 24 mesiacov zadarmo, potom 8 rokov podľa zmluvy | AN170: Zmluva 7_MS | AT170: =VLOOKUP(M170,Adresy!$A$4:$C$156,2,FALSE) -> České Budějovice | AU170: =VLOOKUP(M170,Adresy!$A$4:$C$156,3,FALSE) -> B. Němcové 54 | AV170: M | AW170: 2014M06 | BC170: =VLOOKUP(M170,Adresy!$A$3:$C$122,2,FALSE) -> České Budějovice | BD170: =VLOOKUP(M170,Adresy!$A$3:$C$122,3,FALSE) -> B. Němcové 54 | BE170: 0 | BF170: 0 | BG170: 0 | BH170: 0
A171: SPECT/CT | C171: Fantom Hine Duley | G171: GE Discovery NM/CT670 | K171: bez položkovej identifikácie ceny (v rámci sumárnej ceny) | L171: HW | M171: Nemocnice České Budějovice, a.s. | N171: ČR | O171: GE Medical Systems s.r.o. | Q171: 1 | T171: =IF(N171="SR",1,IF(AC171="",VLOOKUP(AW171,'CZKEUR Xchange rate'!$D$13:$E$234,2,FALSE),VLOOKUP(AW171,'CZKEUR Xchange rate'!$A$13:$B$234,2,FALSE))) -> 27.453 | U171: 0 | V171: 0 | Y171: =VLOOKUP(AW171,'Cenové indexy '!$D$7:$E$200,2,FALSE) -> 99.5 | Z171: =W171/Y171*'Cenové indexy '!$E$149 -> 0 | AA171: 0 | AB171: 2014 | AE171: 2013-11-30 | AF171: Áno | AG171: Áno | AH171: Neurčené | AI171: Nie | AJ171: 24 mesiacov zadarmo, potom 8 rokov podľa zmluvy | AN171: Zmluva 7_MS | AT171: =VLOOKUP(M171,Adresy!$A$4:$C$156,2,FALSE) -> České Budějovice | AU171: =VLOOKUP(M171,Adresy!$A$4:$C$156,3,FALSE) -> B. Němcové 54 | AV171: M | AW171: 2014M06 | BC171: =VLOOKUP(M171,Adresy!$A$3:$C$122,2,FALSE) -> České Budějovice | BD171: =VLOOKUP(M171,Adresy!$A$3:$C$122,3,FALSE) -> B. Němcové 54 | BE171: 0 | BF171: 0 | BG171: 0 | BH171: 0
A172: SPECT/CT | C172: Zdroj co-57 | G172: GE Discovery NM/CT670 | K172: bez položkovej identifikácie ceny (v rámci sumárnej ceny) | L172: HW | M172: Nemocnice České Budějovice, a.s. | N172: ČR | O172: GE Medical Systems s.r.o. | Q172: 1 | T172: =IF(N172="SR",1,IF(AC172="",VLOOKUP(AW172,'CZKEUR Xchange rate'!$D$13:$E$234,2,FALSE),VLOOKUP(AW172,'CZKEUR Xchange rate'!$A$13:$B$234,2,FALSE))) -> 27.453 | U172: 0 | V172: 0 | Y172: =VLOOKUP(AW172,'Cenové indexy '!$D$7:$E$200,2,FALSE) -> 99.5 | Z172: =W172/Y172*'Cenové indexy '!$E$149 -> 0 | AA172: 0 | AB172: 2014 | AE172: 2013-11-30 | AF172: Áno | AG172: Áno | AH172: Neurčené | AI172: Nie | AJ172: 24 mesiacov zadarmo, potom 8 rokov podľa zmluvy | AN172: Zmluva 7_MS | AT172: =VLOOKUP(M172,Adresy!$A$4:$C$156,2,FALSE) -> České Budějovice | AU172: =VLOOKUP(M172,Adresy!$A$4:$C$156,3,FALSE) -> B. Němcové 54 | AV172: M | AW172: 2014M06 | BC172: =VLOOKUP(M172,Adresy!$A$3:$C$122,2,FALSE) -> České Budějovice | BD172: =VLOOKUP(M172,Adresy!$A$3:$C$122,3,FALSE) -> B. Němcové 54 | BE172: 0 | BF172: 0 | BG172: 0 | BH172: 0
A173: SPECT/CT | C173: Ostatné stacionárne vybavenie | G173: GE Discovery NM/CT670 | K173: bez položkovej identifikácie ceny (v rámci sumárnej ceny) | L173: HW | M173: Nemocnice České Budějovice, a.s. | N173: ČR | O173: GE Medical Systems s.r.o. | Q173: 1 | T173: =IF(N173="SR",1,IF(AC173="",VLOOKUP(AW173,'CZKEUR Xchange rate'!$D$13:$E$234,2,FALSE),VLOOKUP(AW173,'CZKEUR Xchange rate'!$A$13:$B$234,2,FALSE))) -> 27.453 | U173: 0 | V173: 0 | Y173: =VLOOKUP(AW173,'Cenové indexy '!$D$7:$E$200,2,FALSE) -> 99.5 | Z173: =W173/Y173*'Cenové indexy '!$E$149 -> 0 | AA173: 0 | AB173: 2014 | AE173: 2013-11-30 | AF173: Áno | AG173: Áno | AH173: Neurčené | AI173: Nie | AJ173: 24 mesiacov zadarmo, potom 8 rokov podľa zmluvy | AN173: Zmluva 7_MS | AT173: =VLOOKUP(M173,Adresy!$A$4:$C$156,2,FALSE) -> České Budějovice | AU173: =VLOOKUP(M173,Adresy!$A$4:$C$156,3,FALSE) -> B. Němcové 54 | AV173: M | AW173: 2014M06 | BC173: =VLOOKUP(M173,Adresy!$A$3:$C$122,2,FALSE) -> České Budějovice | BD173: =VLOOKUP(M173,Adresy!$A$3:$C$122,3,FALSE) -> B. Němcové 54 | BE173: 0 | BF173: 0 | BG173: 0 | BH173: 0
A174: SPECT/CT | C174: Pozáručný servis (8 rokov po záruke) | E174: 8 rokov po záručnej dobe | G174: GE Discovery NM/CT670 | K174: bez položkovej identifikácie ceny (v rámci sumárnej ceny) | L174: služby | M174: Nemocnice České Budějovice, a.s. | N174: ČR | O174: GE Medical Systems s.r.o. | Q174: 1 | R174: 8000000 | S174: 9680000 | T174: =IF(N174="SR",1,IF(AC174="",VLOOKUP(AW174,'CZKEUR Xchange rate'!$D$13:$E$234,2,FALSE),VLOOKUP(AW174,'CZKEUR Xchange rate'!$A$13:$B$234,2,FALSE))) -> 27.453 | U174: 291407.1322 | V174: 352602.6299 | W174: =U174/Q174 -> 291407.1322 | X174: =V174/Q174 -> 352602.6299 | Y174: =VLOOKUP(AW174,'Cenové indexy '!$D$7:$E$200,2,FALSE) -> 99.5 | Z174: =W174/Y174*'Cenové indexy '!$E$149 -> 302038.3673 | AA174: 362446.0407 | AB174: 2014 | AE174: 2013-11-30 | AN174: Zmluva 7_MS | AT174: =VLOOKUP(M174,Adresy!$A$4:$C$156,2,FALSE) -> České Budějovice | AU174: =VLOOKUP(M174,Adresy!$A$4:$C$156,3,FALSE) -> B. Němcové 54 | AV174: M | AW174: 2014M06 | BC174: =VLOOKUP(M174,Adresy!$A$3:$C$122,2,FALSE) -> České Budějovice | BD174: =VLOOKUP(M174,Adresy!$A$3:$C$122,3,FALSE) -> B. Němcové 54 | BE174: 0 | BF174: 0 | BG174: 0 | BH174: 0
A175: SPECT/CT | C175: Celá zostava | G175: Mediso AnyScan SC | K175: sumárna cena | L175: HW/SW | M175: Masarykov onkologický ústav | N175: ČR | O175: BANK.SYS s.r.o. | Q175: 1 | R175: 10850000 | S175: 12369000 | T175: =IF(N175="SR",1,IF(AC175="",VLOOKUP(AW175,'CZKEUR Xchange rate'!$D$13:$E$234,2,FALSE),VLOOKUP(AW175,'CZKEUR Xchange rate'!$A$13:$B$234,2,FALSE))) -> 25.64 | U175: 423166.9267 | V175: 482410.2964 | W175: 423166.9267 | X175: 482410.2964 | Y175: =VLOOKUP(AW175,'Cenové indexy '!$D$7:$E$200,2,FALSE) -> 96.04 | Z175: =W175/Y175*'Cenové indexy '!$E$149 -> 454406.5509 | AA175: 545287.8611 | AB175: 2012 | AE175: 2011-11-30 | AF175: Áno | AG175: Áno | AH175: Neurčené | AI175: Nie | AJ175: 24 mesiacov zadarmo, potom (?) | AN175: Zmluva 8_MS | AT175: =VLOOKUP(M175,Adresy!$A$4:$C$156,2,FALSE) -> Brno | AU175: =VLOOKUP(M175,Adresy!$A$4:$C$156,3,FALSE) -> Žlutý kopec 543/7 | AV175: M | AW175: 2012M06 | BC175: =VLOOKUP(M175,Adresy!$A$3:$C$122,2,FALSE) -> Brno | BD175: =VLOOKUP(M175,Adresy!$A$3:$C$122,3,FALSE) -> Žlutý kopec 543/7 | BE175: 0 | BF175: 0 | BG175: 0 | BH175: 0
A176: SPECT/CT | C176: SPECT ganty | G176: Mediso AnyScan SC | K176: položková cena (súčasť sumárnej ceny) | L176: HW | M176: Masarykov onkologický ústav | N176: ČR | O176: BANK.SYS s.r.o. | Q176: 1 | R176: 3800000 | S176: =R176*1.14 -> 4332000 | T176: =IF(N176="SR",1,IF(AC176="",VLOOKUP(AW176,'CZKEUR Xchange rate'!$D$13:$E$234,2,FALSE),VLOOKUP(AW176,'CZKEUR Xchange rate'!$A$13:$B$234,2,FALSE))) -> 25.64 | U176: 148205.9282 | V176: 168954.7582 | W176: 148205.9282 | X176: 168954.7582 | Y176: =VLOOKUP(AW176,'Cenové indexy '!$D$7:$E$200,2,FALSE) -> 96.04 | Z176: =W176/Y176*'Cenové indexy '!$E$149 -> 159146.9948 | AA176: 190976.3937 | AB176: 2012 | AE176: 2011-11-30 | AF176: Áno | AG176: Áno | AH176: Neurčené | AI176: Nie | AJ176: 24 mesiacov zadarmo, potom (?) | AN176: Zmluva 8_MS | AT176: =VLOOKUP(M176,Adresy!$A$4:$C$156,2,FALSE) -> Brno | AU176: =VLOOKUP(M176,Adresy!$A$4:$C$156,3,FALSE) -> Žlutý kopec 543/7 | AV176: M | AW176: 2012M06 | BC176: =VLOOKUP(M176,Adresy!$A$3:$C$122,2,FALSE) -> Brno | BD176: =VLOOKUP(M176,Adresy!$A$3:$C$122,3,FALSE) -> Žlutý kopec 543/7 | BE176: 0 | BF176: 0 | BG176: 0 | BH176: 0
A177: SPECT/CT | C177: CT ganty | G177: Mediso AnyScan SC | K177: položková cena (súčasť sumárnej ceny) | L177: HW | M177: Masarykov onkologický ústav | N177: ČR | O177: BANK.SYS s.r.o. | Q177: 1 | R177: 3750000 | S177: 4275000 | T177: =IF(N177="SR",1,IF(AC177="",VLOOKUP(AW177,'CZKEUR Xchange rate'!$D$13:$E$234,2,FALSE),VLOOKUP(AW177,'CZKEUR Xchange rate'!$A$13:$B$234,2,FALSE))) -> 25.64 | U177: 146255.8502 | V177: 166731.6693 | W177: 146255.8502 | X177: 166731.6693 | Y177: =VLOOKUP(AW177,'Cenové indexy '!$D$7:$E$200,2,FALSE) -> 96.04 | Z177: =W177/Y177*'Cenové indexy '!$E$149 -> 157052.9554 | AA177: 188463.5465 | AB177: 2012 | AE177: 2011-11-30 | AF177: Áno | AG177: Áno | AH177: Neurčené | AI177: Nie | AJ177: 24 mesiacov zadarmo, potom (?) | AN177: Zmluva 8_MS | AT177: =VLOOKUP(M177,Adresy!$A$4:$C$156,2,FALSE) -> Brno | AU177: =VLOOKUP(M177,Adresy!$A$4:$C$156,3,FALSE) -> Žlutý kopec 543/7 | AV177: M | AW177: 2012M06 | BC177: =VLOOKUP(M177,Adresy!$A$3:$C$122,2,FALSE) -> Brno | BD177: =VLOOKUP(M177,Adresy!$A$3:$C$122,3,FALSE) -> Žlutý kopec 543/7 | BE177: 0 | BF177: 0 | BG177: 0 | BH177: 0
A178: SPECT/CT | C178: Pacientský stôl | G178: Mediso AnyScan SC | K178: položková cena (súčasť sumárnej ceny) | L178: HW | M178: Masarykov onkologický ústav | N178: ČR | O178: BANK.SYS s.r.o. | Q178: 1 | R178: 400000 | S178: 456000 | T178: =IF(N178="SR",1,IF(AC178="",VLOOKUP(AW178,'CZKEUR Xchange rate'!$D$13:$E$234,2,FALSE),VLOOKUP(AW178,'CZKEUR Xchange rate'!$A$13:$B$234,2,FALSE))) -> 25.64 | U178: 15600.62402 | V178: 17784.71139 | W178: 15600.62402 | X178: 17784.71139 | Y178: =VLOOKUP(AW178,'Cenové indexy '!$D$7:$E$200,2,FALSE) -> 96.04 | Z178: =W178/Y178*'Cenové indexy '!$E$149 -> 16752.31524 | AA178: 20102.77829 | AB178: 2012 | AE178: 2011-11-30 | AF178: Áno | AG178: Áno | AH178: Neurčené | AI178: Nie | AJ178: 24 mesiacov zadarmo, potom (?) | AN178: Zmluva 8_MS | AT178: =VLOOKUP(M178,Adresy!$A$4:$C$156,2,FALSE) -> Brno | AU178: =VLOOKUP(M178,Adresy!$A$4:$C$156,3,FALSE) -> Žlutý kopec 543/7 | AV178: M | AW178: 2012M06 | BC178: =VLOOKUP(M178,Adresy!$A$3:$C$122,2,FALSE) -> Brno | BD178: =VLOOKUP(M178,Adresy!$A$3:$C$122,3,FALSE) -> Žlutý kopec 543/7 | BE178: 0 | BF178: 0 | BG178: 0 | BH178: 0
A179: SPECT/CT | C179: Akvizičná konzola vrátane SW | G179: Mediso AnyScan SC | K179: položková cena (súčasť sumárnej ceny) | L179: HW/SW | M179: Masarykov onkologický ústav | N179: ČR | O179: BANK.SYS s.r.o. | Q179: 1 | R179: 400000 | S179: 456000 | T179: =IF(N179="SR",1,IF(AC179="",VLOOKUP(AW179,'CZKEUR Xchange rate'!$D$13:$E$234,2,FALSE),VLOOKUP(AW179,'CZKEUR Xchange rate'!$A$13:$B$234,2,FALSE))) -> 25.64 | U179: 15600.62402 | V179: 17784.71139 | W179: 15600.62402 | X179: 17784.71139 | Y179: =VLOOKUP(AW179,'Cenové indexy '!$D$7:$E$200,2,FALSE) -> 96.04 | Z179: =W179/Y179*'Cenové indexy '!$E$149 -> 16752.31524 | AA179: 20102.77829 | AB179: 2012 | AE179: 2011-11-30 | AF179: Áno | AG179: Áno | AH179: Neurčené | AI179: Nie | AJ179: 24 mesiacov zadarmo, potom (?) | AN179: Zmluva 8_MS | AT179: =VLOOKUP(M179,Adresy!$A$4:$C$156,2,FALSE) -> Brno | AU179: =VLOOKUP(M179,Adresy!$A$4:$C$156,3,FALSE) -> Žlutý kopec 543/7 | AV179: M | AW179: 2012M06 | BC179: =VLOOKUP(M179,Adresy!$A$3:$C$122,2,FALSE) -> Brno | BD179: =VLOOKUP(M179,Adresy!$A$3:$C$122,3,FALSE) -> Žlutý kopec 543/7 | BE179: 0 | BF179: 0 | BG179: 0 | BH179: 0
A180: SPECT/CT | C180: EKG zariadenie pre gateovanie | G180: Mediso AnyScan SC | K180: položková cena (súčasť sumárnej ceny) | L180: HW | M180: Masarykov onkologický ústav | N180: ČR | O180: BANK.SYS s.r.o. | Q180: 1 | R180: 50000 | S180: 57000 | T180: =IF(N180="SR",1,IF(AC180="",VLOOKUP(AW180,'CZKEUR Xchange rate'!$D$13:$E$234,2,FALSE),VLOOKUP(AW180,'CZKEUR Xchange rate'!$A$13:$B$234,2,FALSE))) -> 25.64 | U180: 1950.078003 | V180: 2223.088924 | W180: 1950.078003 | X180: 2223.088924 | Y180: =VLOOKUP(AW180,'Cenové indexy '!$D$7:$E$200,2,FALSE) -> 96.04 | Z180: =W180/Y180*'Cenové indexy '!$E$149 -> 2094.039405 | AA180: 2512.847286 | AB180: 2012 | AE180: 2011-11-30 | AF180: Áno | AG180: Áno | AH180: Neurčené | AI180: Nie | AJ180: 24 mesiacov zadarmo, potom (?) | AN180: Zmluva 8_MS | AT180: =VLOOKUP(M180,Adresy!$A$4:$C$156,2,FALSE) -> Brno | AU180: =VLOOKUP(M180,Adresy!$A$4:$C$156,3,FALSE) -> Žlutý kopec 543/7 | AV180: M | AW180: 2012M06 | BC180: =VLOOKUP(M180,Adresy!$A$3:$C$122,2,FALSE) -> Brno | BD180: =VLOOKUP(M180,Adresy!$A$3:$C$122,3,FALSE) -> Žlutý kopec 543/7 | BE180: 0 | BF180: 0 | BG180: 0 | BH180: 0
A181: SPECT/CT | C181: Kolimátor pre nízke energie, vysoké rozlíšenie | G181: Mediso AnyScan SC | K181: položková cena (súčasť sumárnej ceny) | L181: HW | M181: Masarykov onkologický ústav | N181: ČR | O181: BANK.SYS s.r.o. | Q181: 1 | R181: 450000 | S181: 513000 | T181: =IF(N181="SR",1,IF(AC181="",VLOOKUP(AW181,'CZKEUR Xchange rate'!$D$13:$E$234,2,FALSE),VLOOKUP(AW181,'CZKEUR Xchange rate'!$A$13:$B$234,2,FALSE))) -> 25.64 | U181: 17550.70203 | V181: 20007.80031 | W181: 17550.70203 | X181: 20007.80031 | Y181: =VLOOKUP(AW181,'Cenové indexy '!$D$7:$E$200,2,FALSE) -> 96.04 | Z181: =W181/Y181*'Cenové indexy '!$E$149 -> 18846.35465 | AA181: 22615.62557 | AB181: 2012 | AE181: 2011-11-30 | AF181: Áno | AG181: Áno | AH181: Neurčené | AI181: Nie | AJ181: 24 mesiacov zadarmo, potom (?) | AN181: Zmluva 8_MS | AT181: =VLOOKUP(M181,Adresy!$A$4:$C$156,2,FALSE) -> Brno | AU181: =VLOOKUP(M181,Adresy!$A$4:$C$156,3,FALSE) -> Žlutý kopec 543/7 | AV181: M | AW181: 2012M06 | BC181: =VLOOKUP(M181,Adresy!$A$3:$C$122,2,FALSE) -> Brno | BD181: =VLOOKUP(M181,Adresy!$A$3:$C$122,3,FALSE) -> Žlutý kopec 543/7 | BE181: 0 | BF181: 0 | BG181: 0 | BH181: 0
A182: SPECT/CT | C182: Kolimátor pre stredné energie | G182: Mediso AnyScan SC | K182: položková cena (súčasť sumárnej ceny) | L182: HW | M182: Masarykov onkologický ústav | N182: ČR | O182: BANK.SYS s.r.o. | Q182: 1 | R182: 450000 | S182: 513000 | T182: =IF(N182="SR",1,IF(AC182="",VLOOKUP(AW182,'CZKEUR Xchange rate'!$D$13:$E$234,2,FALSE),VLOOKUP(AW182,'CZKEUR Xchange rate'!$A$13:$B$234,2,FALSE))) -> 25.64 | U182: 17550.70203 | V182: 20007.80031 | W182: 17550.70203 | X182: 20007.80031 | Y182: =VLOOKUP(AW182,'Cenové indexy '!$D$7:$E$200,2,FALSE) -> 96.04 | Z182: =W182/Y182*'Cenové indexy '!$E$149 -> 18846.35465 | AA182: 22615.62557 | AB182: 2012 | AE182: 2011-11-30 | AF182: Áno | AG182: Áno | AH182: Neurčené | AI182: Nie | AJ182: 24 mesiacov zadarmo, potom (?) | AN182: Zmluva 8_MS | AT182: =VLOOKUP(M182,Adresy!$A$4:$C$156,2,FALSE) -> Brno | AU182: =VLOOKUP(M182,Adresy!$A$4:$C$156,3,FALSE) -> Žlutý kopec 543/7 | AV182: M | AW182: 2012M06 | BC182: =VLOOKUP(M182,Adresy!$A$3:$C$122,2,FALSE) -> Brno | BD182: =VLOOKUP(M182,Adresy!$A$3:$C$122,3,FALSE) -> Žlutý kopec 543/7 | BE182: 0 | BF182: 0 | BG182: 0 | BH182: 0
A183: SPECT/CT | C183: Injektor kontrastných látok | E183: OptiVantage DH | G183: Mediso AnyScan SC | K183: položková cena (súčasť sumárnej ceny) | L183: HW | M183: Masarykov onkologický ústav | N183: ČR | O183: BANK.SYS s.r.o. | Q183: 1 | R183: 550000 | S183: 627000 | T183: =IF(N183="SR",1,IF(AC183="",VLOOKUP(AW183,'CZKEUR Xchange rate'!$D$13:$E$234,2,FALSE),VLOOKUP(AW183,'CZKEUR Xchange rate'!$A$13:$B$234,2,FALSE))) -> 25.64 | U183: 21450.85803 | V183: 24453.97816 | W183: 21450.85803 | X183: 24453.97816 | Y183: =VLOOKUP(AW183,'Cenové indexy '!$D$7:$E$200,2,FALSE) -> 96.04 | Z183: =W183/Y183*'Cenové indexy '!$E$149 -> 23034.43346 | AA183: 27641.32015 | AB183: 2012 | AE183: 2011-11-30 | AF183: Áno | AG183: Áno | AH183: Neurčené | AI183: Nie | AJ183: 24 mesiacov zadarmo, potom (?) | AN183: Zmluva 8_MS | AT183: =VLOOKUP(M183,Adresy!$A$4:$C$156,2,FALSE) -> Brno | AU183: =VLOOKUP(M183,Adresy!$A$4:$C$156,3,FALSE) -> Žlutý kopec 543/7 | AV183: M | AW183: 2012M06 | BC183: =VLOOKUP(M183,Adresy!$A$3:$C$122,2,FALSE) -> Brno | BD183: =VLOOKUP(M183,Adresy!$A$3:$C$122,3,FALSE) -> Žlutý kopec 543/7 | BE183: 0 | BF183: 0 | BG183: 0 | BH183: 0
A184: SPECT/CT | C184: Hodnotiace stanice vrátane SW | G184: Mediso AnyScan SC | K184: položková cena (súčasť sumárnej ceny) | L184: HW/SW | M184: Masarykov onkologický ústav | N184: ČR | O184: BANK.SYS s.r.o. | Q184: 2 | R184: 960000 | S184: 1094400 | T184: =IF(N184="SR",1,IF(AC184="",VLOOKUP(AW184,'CZKEUR Xchange rate'!$D$13:$E$234,2,FALSE),VLOOKUP(AW184,'CZKEUR Xchange rate'!$A$13:$B$234,2,FALSE))) -> 25.64 | U184: 37441.49766 | V184: 42683.30733 | W184: 18720.74883 | X184: 21341.65367 | Y184: =VLOOKUP(AW184,'Cenové indexy '!$D$7:$E$200,2,FALSE) -> 96.04 | Z184: =W184/Y184*'Cenové indexy '!$E$149 -> 20102.77829 | AA184: 24123.33395 | AB184: 2012 | AE184: 2011-11-30 | AF184: Áno | AG184: Áno | AH184: Neurčené | AI184: Nie | AJ184: 24 mesiacov zadarmo, potom (?) | AN184: Zmluva 8_MS | AT184: =VLOOKUP(M184,Adresy!$A$4:$C$156,2,FALSE) -> Brno | AU184: =VLOOKUP(M184,Adresy!$A$4:$C$156,3,FALSE) -> Žlutý kopec 543/7 | AV184: M | AW184: 2012M06 | BC184: =VLOOKUP(M184,Adresy!$A$3:$C$122,2,FALSE) -> Brno | BD184: =VLOOKUP(M184,Adresy!$A$3:$C$122,3,FALSE) -> Žlutý kopec 543/7 | BE184: 0 | BF184: 0 | BG184: 0 | BH184: 0
A185: SPECT/CT | C185: Farebná laserová talčiareň | G185: Mediso AnyScan SC | K185: položková cena (súčasť sumárnej ceny) | L185: HW | M185: Masarykov onkologický ústav | N185: ČR | O185: BANK.SYS s.r.o. | Q185: 1 | R185: 40000 | S185: 45600 | T185: =IF(N185="SR",1,IF(AC185="",VLOOKUP(AW185,'CZKEUR Xchange rate'!$D$13:$E$234,2,FALSE),VLOOKUP(AW185,'CZKEUR Xchange rate'!$A$13:$B$234,2,FALSE))) -> 25.64 | U185: 1560.062402 | V185: 1778.471139 | W185: 1560.062402 | X185: 1778.471139 | Y185: =VLOOKUP(AW185,'Cenové indexy '!$D$7:$E$200,2,FALSE) -> 96.04 | Z185: =W185/Y185*'Cenové indexy '!$E$149 -> 1675.231524 | AA185: 2010.277829 | AB185: 2012 | AE185: 2011-11-30 | AF185: Áno | AG185: Áno | AH185: Neurčené | AI185: Nie | AJ185: 24 mesiacov zadarmo, potom (?) | AN185: Zmluva 8_MS | AT185: =VLOOKUP(M185,Adresy!$A$4:$C$156,2,FALSE) -> Brno | AU185: =VLOOKUP(M185,Adresy!$A$4:$C$156,3,FALSE) -> Žlutý kopec 543/7 | AV185: M | AW185: 2012M06 | BC185: =VLOOKUP(M185,Adresy!$A$3:$C$122,2,FALSE) -> Brno | BD185: =VLOOKUP(M185,Adresy!$A$3:$C$122,3,FALSE) -> Žlutý kopec 543/7 | BE185: 0 | BF185: 0 | BG185: 0 | BH185: 0
A186: SPECT/CT | C186: Celá zostava | G186: PHILIPS BrightView XCT | K186: sumárna cena | L186: HW/SW | M186: Krajská nemocnice Liberec, a.s. | N186: ČR | O186: EDOMED a.s. | Q186: 1 | R186: 14094000 | S186: 17053740 | T186: =IF(N186="SR",1,IF(AC186="",VLOOKUP(AW186,'CZKEUR Xchange rate'!$D$13:$E$234,2,FALSE),VLOOKUP(AW186,'CZKEUR Xchange rate'!$A$13:$B$234,2,FALSE))) -> 27.453 | U186: 513386.5151 | V186: 621197.6833 | W186: 513386.5151 | X186: 621197.6833 | Y186: =VLOOKUP(AW186,'Cenové indexy '!$D$7:$E$200,2,FALSE) -> 99.5 | Z186: =W186/Y186*'Cenové indexy '!$E$149 -> 532116.0935 | AA186: 638539.3122 | AB186: 2014 | AE186: 2013-11-30 | AF186: Áno | AG186: Áno | AH186: Neurčené | AI186: Nie | AJ186: 24 mesiacov zadarmo, potom (?) | AN186: Zmluva 9_MS | AT186: =VLOOKUP(M186,Adresy!$A$4:$C$156,2,FALSE) -> Liberec | AU186: =VLOOKUP(M186,Adresy!$A$4:$C$156,3,FALSE) -> Husova 357/10 | AV186: M | AW186: 2014M06 | BC186: =VLOOKUP(M186,Adresy!$A$3:$C$122,2,FALSE) -> Liberec | BD186: =VLOOKUP(M186,Adresy!$A$3:$C$122,3,FALSE) -> Husova 357/10 | BE186: 0 | BF186: 0 | BG186: 0 | BH186: 0
A187: SPECT/CT | C187: SPECT/CT kamera | G187: PHILIPS BrightView XCT | K187: bez položkovej identifikácie ceny (v rámci sumárnej ceny) | L187: HW | M187: Krajská nemocnice Liberec, a.s. | N187: ČR | O187: EDOMED a.s. | Q187: 1 | T187: =IF(N187="SR",1,IF(AC187="",VLOOKUP(AW187,'CZKEUR Xchange rate'!$D$13:$E$234,2,FALSE),VLOOKUP(AW187,'CZKEUR Xchange rate'!$A$13:$B$234,2,FALSE))) -> 27.453 | U187: 0 | V187: 0 | Y187: =VLOOKUP(AW187,'Cenové indexy '!$D$7:$E$200,2,FALSE) -> 99.5 | Z187: =W187/Y187*'Cenové indexy '!$E$149 -> 0 | AA187: 0 | AB187: 2014 | AE187: 2013-11-30 | AF187: Áno | AG187: Áno | AH187: Neurčené | AI187: Nie | AJ187: 24 mesiacov zadarmo, potom (?) | AN187: Zmluva 9_MS | AT187: =VLOOKUP(M187,Adresy!$A$4:$C$156,2,FALSE) -> Liberec | AU187: =VLOOKUP(M187,Adresy!$A$4:$C$156,3,FALSE) -> Husova 357/10 | AV187: M | AW187: 2014M06 | BC187: =VLOOKUP(M187,Adresy!$A$3:$C$122,2,FALSE) -> Liberec | BD187: =VLOOKUP(M187,Adresy!$A$3:$C$122,3,FALSE) -> Husova 357/10 | BE187: 0 | BF187: 0 | BG187: 0 | BH187: 0
A188: SPECT/CT | C188: Akvizičná konzola | G188: PHILIPS BrightView XCT | K188: bez položkovej identifikácie ceny (v rámci sumárnej ceny) | L188: HW | M188: Krajská nemocnice Liberec, a.s. | N188: ČR | O188: EDOMED a.s. | Q188: 1 | T188: =IF(N188="SR",1,IF(AC188="",VLOOKUP(AW188,'CZKEUR Xchange rate'!$D$13:$E$234,2,FALSE),VLOOKUP(AW188,'CZKEUR Xchange rate'!$A$13:$B$234,2,FALSE))) -> 27.453 | U188: 0 | V188: 0 | Y188: =VLOOKUP(AW188,'Cenové indexy '!$D$7:$E$200,2,FALSE) -> 99.5 | Z188: =W188/Y188*'Cenové indexy '!$E$149 -> 0 | AA188: 0 | AB188: 2014 | AE188: 2013-11-30 | AF188: Áno | AG188: Áno | AH188: Neurčené | AI188: Nie | AJ188: 24 mesiacov zadarmo, potom (?) | AN188: Zmluva 9_MS | AT188: =VLOOKUP(M188,Adresy!$A$4:$C$156,2,FALSE) -> Liberec | AU188: =VLOOKUP(M188,Adresy!$A$4:$C$156,3,FALSE) -> Husova 357/10 | AV188: M | AW188: 2014M06 | BC188: =VLOOKUP(M188,Adresy!$A$3:$C$122,2,FALSE) -> Liberec | BD188: =VLOOKUP(M188,Adresy!$A$3:$C$122,3,FALSE) -> Husova 357/10 | BE188: 0 | BF188: 0 | BG188: 0 | BH188: 0
A189: SPECT/CT | C189: Rozšírenie pracovnej stanice použitím dvoch monitorov | G189: PHILIPS BrightView XCT | K189: bez položkovej identifikácie ceny (v rámci sumárnej ceny) | L189: HW | M189: Krajská nemocnice Liberec, a.s. | N189: ČR | O189: EDOMED a.s. | Q189: 1 | T189: =IF(N189="SR",1,IF(AC189="",VLOOKUP(AW189,'CZKEUR Xchange rate'!$D$13:$E$234,2,FALSE),VLOOKUP(AW189,'CZKEUR Xchange rate'!$A$13:$B$234,2,FALSE))) -> 27.453 | U189: 0 | V189: 0 | Y189: =VLOOKUP(AW189,'Cenové indexy '!$D$7:$E$200,2,FALSE) -> 99.5 | Z189: =W189/Y189*'Cenové indexy '!$E$149 -> 0 | AA189: 0 | AB189: 2014 | AE189: 2013-11-30 | AF189: Áno | AG189: Áno | AH189: Neurčené | AI189: Nie | AJ189: 24 mesiacov zadarmo, potom (?) | AN189: Zmluva 9_MS | AT189: =VLOOKUP(M189,Adresy!$A$4:$C$156,2,FALSE) -> Liberec | AU189: =VLOOKUP(M189,Adresy!$A$4:$C$156,3,FALSE) -> Husova 357/10 | AV189: M | AW189: 2014M06 | BC189: =VLOOKUP(M189,Adresy!$A$3:$C$122,2,FALSE) -> Liberec | BD189: =VLOOKUP(M189,Adresy!$A$3:$C$122,3,FALSE) -> Husova 357/10 | BE189: 0 | BF189: 0 | BG189: 0 | BH189: 0
A190: SPECT/CT | C190: Kit pre pohodlie pacienta | E190: BV XCT Premium comfort kit | G190: PHILIPS BrightView XCT | K190: bez položkovej identifikácie ceny (v rámci sumárnej ceny) | L190: HW | M190: Krajská nemocnice Liberec, a.s. | N190: ČR | O190: EDOMED a.s. | Q190: 1 | T190: =IF(N190="SR",1,IF(AC190="",VLOOKUP(AW190,'CZKEUR Xchange rate'!$D$13:$E$234,2,FALSE),VLOOKUP(AW190,'CZKEUR Xchange rate'!$A$13:$B$234,2,FALSE))) -> 27.453 | U190: 0 | V190: 0 | Y190: =VLOOKUP(AW190,'Cenové indexy '!$D$7:$E$200,2,FALSE) -> 99.5 | Z190: =W190/Y190*'Cenové indexy '!$E$149 -> 0 | AA190: 0 | AB190: 2014 | AE190: 2013-11-30 | AF190: Áno | AG190: Áno | AH190: Neurčené | AI190: Nie | AJ190: 24 mesiacov zadarmo, potom (?) | AN190: Zmluva 9_MS | AT190: =VLOOKUP(M190,Adresy!$A$4:$C$156,2,FALSE) -> Liberec | AU190: =VLOOKUP(M190,Adresy!$A$4:$C$156,3,FALSE) -> Husova 357/10 | AV190: M | AW190: 2014M06 | BC190: =VLOOKUP(M190,Adresy!$A$3:$C$122,2,FALSE) -> Liberec | BD190: =VLOOKUP(M190,Adresy!$A$3:$C$122,3,FALSE) -> Husova 357/10 | BE190: 0 | BF190: 0 | BG190: 0 | BH190: 0
A191: SPECT/CT | C191: Zdroj pre kalibračné procedúry | E191: PASY, GD-153 | G191: PHILIPS BrightView XCT | K191: bez položkovej identifikácie ceny (v rámci sumárnej ceny) | L191: HW | M191: Krajská nemocnice Liberec, a.s. | N191: ČR | O191: EDOMED a.s. | Q191: 1 | T191: =IF(N191="SR",1,IF(AC191="",VLOOKUP(AW191,'CZKEUR Xchange rate'!$D$13:$E$234,2,FALSE),VLOOKUP(AW191,'CZKEUR Xchange rate'!$A$13:$B$234,2,FALSE))) -> 27.453 | U191: 0 | V191: 0 | Y191: =VLOOKUP(AW191,'Cenové indexy '!$D$7:$E$200,2,FALSE) -> 99.5 | Z191: =W191/Y191*'Cenové indexy '!$E$149 -> 0 | AA191: 0 | AB191: 2014 | AE191: 2013-11-30 | AF191: Áno | AG191: Áno | AH191: Neurčené | AI191: Nie | AJ191: 24 mesiacov zadarmo, potom (?) | AN191: Zmluva 9_MS | AT191: =VLOOKUP(M191,Adresy!$A$4:$C$156,2,FALSE) -> Liberec | AU191: =VLOOKUP(M191,Adresy!$A$4:$C$156,3,FALSE) -> Husova 357/10 | AV191: M | AW191: 2014M06 | BC191: =VLOOKUP(M191,Adresy!$A$3:$C$122,2,FALSE) -> Liberec | BD191: =VLOOKUP(M191,Adresy!$A$3:$C$122,3,FALSE) -> Husova 357/10 | BE191: 0 | BF191: 0 | BG191: 0 | BH191: 0
A192: SPECT/CT | C192: Kolimátor pre nízke energie, vysoké rozlíšenie | E192: XCT LEHR | G192: PHILIPS BrightView XCT | K192: bez položkovej identifikácie ceny (v rámci sumárnej ceny) | L192: HW | M192: Krajská nemocnice Liberec, a.s. | N192: ČR | O192: EDOMED a.s. | Q192: 1 | T192: =IF(N192="SR",1,IF(AC192="",VLOOKUP(AW192,'CZKEUR Xchange rate'!$D$13:$E$234,2,FALSE),VLOOKUP(AW192,'CZKEUR Xchange rate'!$A$13:$B$234,2,FALSE))) -> 27.453 | U192: 0 | V192: 0 | Y192: =VLOOKUP(AW192,'Cenové indexy '!$D$7:$E$200,2,FALSE) -> 99.5 | Z192: =W192/Y192*'Cenové indexy '!$E$149 -> 0 | AA192: 0 | AB192: 2014 | AE192: 2013-11-30 | AF192: Áno | AG192: Áno | AH192: Neurčené | AI192: Nie | AJ192: 24 mesiacov zadarmo, potom (?) | AN192: Zmluva 9_MS | AT192: =VLOOKUP(M192,Adresy!$A$4:$C$156,2,FALSE) -> Liberec | AU192: =VLOOKUP(M192,Adresy!$A$4:$C$156,3,FALSE) -> Husova 357/10 | AV192: M | AW192: 2014M06 | BC192: =VLOOKUP(M192,Adresy!$A$3:$C$122,2,FALSE) -> Liberec | BD192: =VLOOKUP(M192,Adresy!$A$3:$C$122,3,FALSE) -> Husova 357/10 | BE192: 0 | BF192: 0 | BG192: 0 | BH192: 0
A193: SPECT/CT | C193: Hodnotiaca stanica | E193: Intellispace portal IX | G193: PHILIPS BrightView XCT | K193: bez položkovej identifikácie ceny (v rámci sumárnej ceny) | L193: HW | M193: Krajská nemocnice Liberec, a.s. | N193: ČR | O193: EDOMED a.s. | Q193: 2 | T193: =IF(N193="SR",1,IF(AC193="",VLOOKUP(AW193,'CZKEUR Xchange rate'!$D$13:$E$234,2,FALSE),VLOOKUP(AW193,'CZKEUR Xchange rate'!$A$13:$B$234,2,FALSE))) -> 27.453 | U193: 0 | V193: 0 | Y193: =VLOOKUP(AW193,'Cenové indexy '!$D$7:$E$200,2,FALSE) -> 99.5 | Z193: =W193/Y193*'Cenové indexy '!$E$149 -> 0 | AA193: 0 | AB193: 2014 | AE193: 2013-11-30 | AF193: Áno | AG193: Áno | AH193: Neurčené | AI193: Nie | AJ193: 24 mesiacov zadarmo, potom (?) | AN193: Zmluva 9_MS | AT193: =VLOOKUP(M193,Adresy!$A$4:$C$156,2,FALSE) -> Liberec | AU193: =VLOOKUP(M193,Adresy!$A$4:$C$156,3,FALSE) -> Husova 357/10 | AV193: M | AW193: 2014M06 | BC193: =VLOOKUP(M193,Adresy!$A$3:$C$122,2,FALSE) -> Liberec | BD193: =VLOOKUP(M193,Adresy!$A$3:$C$122,3,FALSE) -> Husova 357/10 | BE193: 0 | BF193: 0 | BG193: 0 | BH193: 0
A194: SPECT/CT | C194: Software: automatizovanú analýzu | G194: PHILIPS BrightView XCT | K194: bez položkovej identifikácie ceny (v rámci sumárnej ceny) | L194: SW | M194: Krajská nemocnice Liberec, a.s. | N194: ČR | O194: EDOMED a.s. | Q194: 1 | T194: =IF(N194="SR",1,IF(AC194="",VLOOKUP(AW194,'CZKEUR Xchange rate'!$D$13:$E$234,2,FALSE),VLOOKUP(AW194,'CZKEUR Xchange rate'!$A$13:$B$234,2,FALSE))) -> 27.453 | U194: 0 | V194: 0 | Y194: =VLOOKUP(AW194,'Cenové indexy '!$D$7:$E$200,2,FALSE) -> 99.5 | Z194: =W194/Y194*'Cenové indexy '!$E$149 -> 0 | AA194: =Z194*1.2 -> 0 | AB194: 2014 | AE194: =DATE(AB194,AC194,AD194) -> 2013-11-30 | AF194: Áno | AG194: Áno | AH194: Neurčené | AI194: Nie | AJ194: 24 mesiacov zadarmo, potom (?) | AN194: Zmluva 9_MS | AT194: =VLOOKUP(M194,Adresy!$A$4:$C$156,2,FALSE) -> Liberec | AU194: =VLOOKUP(M194,Adresy!$A$4:$C$156,3,FALSE) -> Husova 357/10 | AV194: M | AW194: 2014M06 | BC194: =VLOOKUP(M194,Adresy!$A$3:$C$122,2,FALSE) -> Liberec | BD194: =VLOOKUP(M194,Adresy!$A$3:$C$122,3,FALSE) -> Husova 357/10 | BE194: =IF(BC194<>AT194,1,0) -> 0 | BF194: 0 | BG194: 0 | BH194: 0
A195: SPECT/CT | C195: Software: kardiológia | E195: CEDARS fusion WS | G195: PHILIPS BrightView XCT | K195: bez položkovej identifikácie ceny (v rámci sumárnej ceny) | L195: SW | M195: Krajská nemocnice Liberec, a.s. | N195: ČR | O195: EDOMED a.s. | Q195: 1 | T195: =IF(N195="SR",1,IF(AC195="",VLOOKUP(AW195,'CZKEUR Xchange rate'!$D$13:$E$234,2,FALSE),VLOOKUP(AW195,'CZKEUR Xchange rate'!$A$13:$B$234,2,FALSE))) -> 27.453 | U195: 0 | V195: 0 | Y195: =VLOOKUP(AW195,'Cenové indexy '!$D$7:$E$200,2,FALSE) -> 99.5 | Z195: =W195/Y195*'Cenové indexy '!$E$149 -> 0 | AA195: 0 | AB195: 2014 | AE195: 2013-11-30 | AF195: Áno | AG195: Áno | AH195: Neurčené | AI195: Nie | AJ195: 24 mesiacov zadarmo, potom (?) | AN195: Zmluva 9_MS | AT195: =VLOOKUP(M195,Adresy!$A$4:$C$156,2,FALSE) -> Liberec | AU195: =VLOOKUP(M195,Adresy!$A$4:$C$156,3,FALSE) -> Husova 357/10 | AV195: M | AW195: =IF(AC195="",CONCATENATE(AB195,AV195,"06"),IF(LEN(AC195)=1,CONCATENATE(AB195,AV195,"0"&AC195),CONCATENATE(AB195,AV195,AC195))) -> 2014M06 | BC195: =VLOOKUP(M195,Adresy!$A$3:$C$122,2,FALSE) -> Liberec | BD195: =VLOOKUP(M195,Adresy!$A$3:$C$122,3,FALSE) -> Husova 357/10 | BE195: 0 | BF195: 0 | BG195: 0 | BH195: 0
A196: SPECT/CT | C196: Software: porovnávanie a analýza štúdií | E196: NEW review IX | G196: PHILIPS BrightView XCT | K196: bez položkovej identifikácie ceny (v rámci sumárnej ceny) | L196: SW | M196: Krajská nemocnice Liberec, a.s. | N196: ČR | O196: EDOMED a.s. | Q196: 1 | T196: =IF(N196="SR",1,IF(AC196="",VLOOKUP(AW196,'CZKEUR Xchange rate'!$D$13:$E$234,2,FALSE),VLOOKUP(AW196,'CZKEUR Xchange rate'!$A$13:$B$234,2,FALSE))) -> 27.453 | U196: 0 | V196: 0 | Y196: =VLOOKUP(AW196,'Cenové indexy '!$D$7:$E$200,2,FALSE) -> 99.5 | Z196: =W196/Y196*'Cenové indexy '!$E$149 -> 0 | AA196: 0 | AB196: 2014 | AE196: 2013-11-30 | AF196: Áno | AG196: Áno | AH196: Neurčené | AI196: Nie | AJ196: 24 mesiacov zadarmo, potom (?) | AN196: Zmluva 9_MS | AT196: =VLOOKUP(M196,Adresy!$A$4:$C$156,2,FALSE) -> Liberec | AU196: =VLOOKUP(M196,Adresy!$A$4:$C$156,3,FALSE) -> Husova 357/10 | AV196: M | AW196: 2014M06 | BC196: =VLOOKUP(M196,Adresy!$A$3:$C$122,2,FALSE) -> Liberec | BD196: =VLOOKUP(M196,Adresy!$A$3:$C$122,3,FALSE) -> Husova 357/10 | BE196: 0 | BF196: 0 | BG196: 0 | BH196: 0
A197: SPECT/CT | C197: Prehliadač pre CD/DVD | G197: PHILIPS BrightView XCT | K197: bez položkovej identifikácie ceny (v rámci sumárnej ceny) | L197: HW | M197: Krajská nemocnice Liberec, a.s. | N197: ČR | O197: EDOMED a.s. | Q197: 1 | T197: =IF(N197="SR",1,IF(AC197="",VLOOKUP(AW197,'CZKEUR Xchange rate'!$D$13:$E$234,2,FALSE),VLOOKUP(AW197,'CZKEUR Xchange rate'!$A$13:$B$234,2,FALSE))) -> 27.453 | U197: 0 | V197: 0 | Y197: =VLOOKUP(AW197,'Cenové indexy '!$D$7:$E$200,2,FALSE) -> 99.5 | Z197: =W197/Y197*'Cenové indexy '!$E$149 -> 0 | AA197: 0 | AB197: 2014 | AE197: 2013-11-30 | AF197: Áno | AG197: Áno | AH197: Neurčené | AI197: Nie | AJ197: 24 mesiacov zadarmo, potom (?) | AN197: Zmluva 9_MS | AT197: =VLOOKUP(M197,Adresy!$A$4:$C$156,2,FALSE) -> Liberec | AU197: =VLOOKUP(M197,Adresy!$A$4:$C$156,3,FALSE) -> Husova 357/10 | AV197: M | AW197: 2014M06 | BC197: =VLOOKUP(M197,Adresy!$A$3:$C$122,2,FALSE) -> Liberec | BD197: =VLOOKUP(M197,Adresy!$A$3:$C$122,3,FALSE) -> Husova 357/10 | BE197: 0 | BF197: 0 | BG197: 0 | BH197: 0
A198: SPECT/CT | C198: Sofware: balík vybavenia NM | E198: NM processing app suite IX | G198: PHILIPS BrightView XCT | K198: bez položkovej identifikácie ceny (v rámci sumárnej ceny) | L198: SW | M198: Krajská nemocnice Liberec, a.s. | N198: ČR | O198: EDOMED a.s. | Q198: 1 | T198: =IF(N198="SR",1,IF(AC198="",VLOOKUP(AW198,'CZKEUR Xchange rate'!$D$13:$E$234,2,FALSE),VLOOKUP(AW198,'CZKEUR Xchange rate'!$A$13:$B$234,2,FALSE))) -> 27.453 | U198: 0 | V198: 0 | Y198: =VLOOKUP(AW198,'Cenové indexy '!$D$7:$E$200,2,FALSE) -> 99.5 | Z198: =W198/Y198*'Cenové indexy '!$E$149 -> 0 | AA198: 0 | AB198: 2014 | AE198: 2013-11-30 | AF198: Áno | AG198: Áno | AH198: Neurčené | AI198: Nie | AJ198: 24 mesiacov zadarmo, potom (?) | AN198: Zmluva 9_MS | AT198: =VLOOKUP(M198,Adresy!$A$4:$C$156,2,FALSE) -> Liberec | AU198: =VLOOKUP(M198,Adresy!$A$4:$C$156,3,FALSE) -> Husova 357/10 | AV198: M | AW198: 2014M06 | BC198: =VLOOKUP(M198,Adresy!$A$3:$C$122,2,FALSE) -> Liberec | BD198: =VLOOKUP(M198,Adresy!$A$3:$C$122,3,FALSE) -> Husova 357/10 | BE198: 0 | BF198: 0 | BG198: 0 | BH198: 0
A199: SPECT/CT | C199: Sofware: pokročilé rekonštrukčné algoritm | E199: NM astonish recon suite WS | G199: PHILIPS BrightView XCT | K199: bez položkovej identifikácie ceny (v rámci sumárnej ceny) | L199: SW | M199: Krajská nemocnice Liberec, a.s. | N199: ČR | O199: EDOMED a.s. | Q199: 1 | T199: =IF(N199="SR",1,IF(AC199="",VLOOKUP(AW199,'CZKEUR Xchange rate'!$D$13:$E$234,2,FALSE),VLOOKUP(AW199,'CZKEUR Xchange rate'!$A$13:$B$234,2,FALSE))) -> 27.453 | U199: 0 | V199: 0 | Y199: =VLOOKUP(AW199,'Cenové indexy '!$D$7:$E$200,2,FALSE) -> 99.5 | Z199: =W199/Y199*'Cenové indexy '!$E$149 -> 0 | AA199: 0 | AB199: 2014 | AE199: 2013-11-30 | AF199: Áno | AG199: Áno | AH199: Neurčené | AI199: Nie | AJ199: 24 mesiacov zadarmo, potom (?) | AN199: Zmluva 9_MS | AT199: =VLOOKUP(M199,Adresy!$A$4:$C$156,2,FALSE) -> Liberec | AU199: =VLOOKUP(M199,Adresy!$A$4:$C$156,3,FALSE) -> Husova 357/10 | AV199: M | AW199: 2014M06 | BC199: =VLOOKUP(M199,Adresy!$A$3:$C$122,2,FALSE) -> Liberec | BD199: =VLOOKUP(M199,Adresy!$A$3:$C$122,3,FALSE) -> Husova 357/10 | BE199: 0 | BF199: 0 | BG199: 0 | BH199: 0
A200: SPECT/CT | C200: Dátové úložisko | E200: Extended storage IX | G200: PHILIPS BrightView XCT | K200: bez položkovej identifikácie ceny (v rámci sumárnej ceny) | L200: HW | M200: Krajská nemocnice Liberec, a.s. | N200: ČR | O200: EDOMED a.s. | Q200: 1 | T200: =IF(N200="SR",1,IF(AC200="",VLOOKUP(AW200,'CZKEUR Xchange rate'!$D$13:$E$234,2,FALSE),VLOOKUP(AW200,'CZKEUR Xchange rate'!$A$13:$B$234,2,FALSE))) -> 27.453 | U200: 0 | V200: 0 | Y200: =VLOOKUP(AW200,'Cenové indexy '!$D$7:$E$200,2,FALSE) -> 99.5 | Z200: =W200/Y200*'Cenové indexy '!$E$149 -> 0 | AA200: 0 | AB200: 2014 | AE200: 2013-11-30 | AF200: Áno | AG200: Áno | AH200: Neurčené | AI200: Nie | AJ200: 24 mesiacov zadarmo, potom (?) | AN200: Zmluva 9_MS | AT200: =VLOOKUP(M200,Adresy!$A$4:$C$156,2,FALSE) -> Liberec | AU200: =VLOOKUP(M200,Adresy!$A$4:$C$156,3,FALSE) -> Husova 357/10 | AV200: M | AW200: 2014M06 | BC200: =VLOOKUP(M200,Adresy!$A$3:$C$122,2,FALSE) -> Liberec | BD200: =VLOOKUP(M200,Adresy!$A$3:$C$122,3,FALSE) -> Husova 357/10 | BE200: 0 | BF200: 0 | BG200: 0 | BH200: 0
... 925 more rows

Sheet Cenové indexy (hidden)
A1: HICP (2005 = 100) - monthly data (index) [prc_hicp_midx]
A3: UNIT | B3: Index, 2005=100
A4: COICOP | B4: Medical products, appliances and equipment
A6: GEO/TIME | B6: Slovakia | D6: GEO/TIME | E6: Slovakia
A7: 2011M01 | B7: 124.49 | D7: 2005M01 | E7: 69.58
A8: 2011M02 | B8: 124.71 | D8: 2005M02 | E8: 69.9
A9: 2011M03 | B9: 124.82 | D9: 2005M03 | E9: 70.24
A10: 2011M04 | B10: 125.02 | D10: 2005M04 | E10: 71.31
A11: 2011M05 | B11: 125.2 | D11: 2005M05 | E11: 71.4
A12: 2011M06 | B12: 125.33 | D12: 2005M06 | E12: 71.4
A13: 2011M07 | B13: 127.11 | D13: 2005M07 | E13: 71.67
A14: 2011M08 | B14: 127.26 | D14: 2005M08 | E14: 71.88
A15: 2011M09 | B15: 127.51 | D15: 2005M09 | E15: 71.99
A16: 2011M10 | B16: 128.86 | D16: 2005M10 | E16: 72.39
A17: 2011M11 | B17: 129.16 | D17: 2005M11 | E17: 72.6
A18: 2011M12 | B18: 129.4 | D18: 2005M12 | E18: 72.68
A19: 2012M01 | B19: 129.93 | D19: 2006M01 | E19: 77.25
A20: 2012M02 | B20: 130.14 | D20: 2006M02 | E20: 77.13
A21: 2012M03 | B21: 130.33 | D21: 2006M03 | E21: 77.2
A22: 2012M04 | B22: 135.53 | D22: 2006M04 | E22: 79.48
A23: 2012M05 | B23: 135.62 | D23: 2006M05 | E23: 79.72
A24: 2012M06 | B24: 134.48 | D24: 2006M06 | E24: 79.79
A25: 2012M07 | B25: 134.9 | D25: 2006M07 | E25: 82.77
A26: 2012M08 | B26: 137.45 | D26: 2006M08 | E26: 82.91
A27: 2012M09 | B27: 137.27 | D27: 2006M09 | E27: 82.96
A28: 2012M10 | B28: 139.05 | D28: 2006M10 | E28: 83.17
A29: 2012M11 | B29: 139.04 | D29: 2006M11 | E29: 83.01
A30: 2012M12 | B30: 139.12 | D30: 2006M12 | E30: 83.04
A31: 2013M01 | B31: 138.33 | D31: 2007M01 | E31: 79.79
A32: 2013M02 | B32: 138.61 | D32: 2007M02 | E32: 79.83
A33: 2013M03 | B33: 138.53 | D33: 2007M03 | E33: 79.8
A34: 2013M04 | B34: 137.71 | D34: 2007M04 | E34: 79.6
A35: 2013M05 | B35: 137.84 | D35: 2007M05 | E35: 75.48
A36: 2013M06 | B36: 138.01 | D36: 2007M06 | E36: 75.79
A37: 2013M07 | B37: 138.06 | D37: 2007M07 | E37: 76.11
A38: 2013M08 | B38: 138.37 | D38: 2007M08 | E38: 76.24
A39: 2013M09 | B39: 138.21 | D39: 2007M09 | E39: 77.01
A40: 2013M10 | B40: 139.05 | D40: 2007M10 | E40: 79.07
A41: 2013M11 | B41: 139.24 | D41: 2007M11 | E41: 79.24
A42: 2013M12 | B42: 139.02 | D42: 2007M12 | E42: 79.46
A43: 2014M01 | B43: 139.2 | D43: 2008M01 | E43: 80.6
A44: 2014M02 | B44: 139.35 | D44: 2008M02 | E44: 81.38
A45: 2014M03 | B45: 139.34 | D45: 2008M03 | E45: 81.74
A46: 2014M04 | B46: 139.1 | D46: 2008M04 | E46: 82.19
A47: 2014M05 | B47: 139.21 | D47: 2008M05 | E47: 82.4
A48: 2014M06 | B48: 139.32 | D48: 2008M06 | E48: 82.02
A49: 2014M07 | B49: 139.61 | D49: 2008M07 | E49: 80.87
A50: 2014M08 | B50: 139.84 | D50: 2008M08 | E50: 81.16
A51: 2014M09 | B51: 139.78 | D51: 2008M09 | E51: 81.31
A52: 2014M10 | B52: 139.94 | D52: 2008M10 | E52: 82.09
A53: 2014M11 | B53: 139.98 | D53: 2008M11 | E53: 82.23
A54: 2014M12 | B54: 139.9 | D54: 2008M12 | E54: 82.32
A55: 2015M01 | B55: 139.83 | D55: 2009M01 | E55: 83.2
A56: 2015M02 | B56: 139.94 | D56: 2009M02 | E56: 83.44
A57: 2015M03 | B57: 140.06 | D57: 2009M03 | E57: 83.6
A58: 2015M04 | B58: 139.67 | D58: 2009M04 | E58: 84.32
A59: 2015M05 | B59: 139.77 | D59: 2009M05 | E59: 84.62
A60: 2015M06 | B60: 139.86 | D60: 2009M06 | E60: 84.79
A61: 2015M07 | B61: 139.95 | D61: 2009M07 | E61: 85.58
A62: 2015M08 | B62: 140.17 | D62: 2009M08 | E62: 85.8
A63: 2015M09 | B63: 140.21 | D63: 2009M09 | E63: 86.06
A64: 2015M10 | B64: 140.12 | D64: 2009M10 | E64: 87.51
A65: 2015M11 | B65: 140.21 | D65: 2009M11 | E65: 87.74
A66: 2015M12 | B66: 140.43 | D66: 2009M12 | E66: 87.87
A67: 2016M01 | B67: 141.01 | D67: 2010M01 | E67: 87.62
A68: 2016M02 | B68: 141.18 | D68: 2010M02 | E68: 87.69
A69: 2016M03 | B69: 141.53 | D69: 2010M03 | E69: 87.83
A70: 2016M04 | B70: 142.03 | D70: 2010M04 | E70: 87.76
A71: 2016M05 | B71: 142.24 | D71: 2010M05 | E71: 87.83
A72: 2016M06 | B72: 142.43 | D72: 2010M06 | E72: 87.95
A73: 2016M07 | B73: 142.5 | D73: 2010M07 | E73: 88.24
A74: 2016M08 | B74: 142.62 | D74: 2010M08 | E74: 88.29
A75: 2016M09 | B75: 142.6 | D75: 2010M09 | E75: 88.12
A76: 2016M10 | B76: 144.16 | D76: 2010M10 | E76: 88.18
A77: 2016M11 | B77: 144.4 | D77: 2010M11 | E77: 88.07
A78: 2016M12 | B78: 144.65 | D78: 2010M12 | E78: 88.01
A79: 2017M01 | B79: 148.44 | D79: 2011M01 | E79: 88.91
A80: 2017M02 | B80: 148.82 | D80: 2011M02 | E80: 89.07
A81: 2017M03 | B81: 145.53 | D81: 2011M03 | E81: 89.14
A82: 2017M04 | B82: 145.13 | D82: 2011M04 | E82: 89.29
A83: 2017M05 | B83: 145.35 | D83: 2011M05 | E83: 89.42
D84: 2011M06 | E84: 89.51
D85: 2011M07 | E85: 90.78
D86: 2011M08 | E86: 90.89
D87: 2011M09 | E87: 91.07
D88: 2011M10 | E88: 92.03
D89: 2011M11 | E89: 92.25
D90: 2011M12 | E90: 92.42
D91: 2012M01 | E91: 92.79
D92: 2012M02 | E92: 92.95
D93: 2012M03 | E93: 93.08
D94: 2012M04 | E94: 96.8
D95: 2012M05 | E95: 96.86
D96: 2012M06 | E96: 96.04
D97: 2012M07 | E97: 96.35
D98: 2012M08 | E98: 98.17
D99: 2012M09 | E99: 98.04
D100: 2012M10 | E100: 99.31
D101: 2012M11 | E101: 99.3
D102: 2012M12 | E102: 99.36
D103: 2013M01 | E103: 98.79
D104: 2013M02 | E104: 99
D105: 2013M03 | E105: 98.94
D106: 2013M04 | E106: 98.35
D107: 2013M05 | E107: 98.45
D108: 2013M06 | E108: 98.57
D109: 2013M07 | E109: 98.6
D110: 2013M08 | E110: 98.82
D111: 2013M09 | E111: 98.71
D112: 2013M10 | E112: 99.31
D113: 2013M11 | E113: 99.45
D114: 2013M12 | E114: 99.28
D115: 2014M01 | E115: 99.41
D116: 2014M02 | E116: 99.52
D117: 2014M03 | E117: 99.52
D118: 2014M04 | E118: 99.35
D119: 2014M05 | E119: 99.42
D120: 2014M06 | E120: 99.5
D121: 2014M07 | E121: 99.71
D122: 2014M08 | E122: 99.87
D123: 2014M09 | E123: 99.83
D124: 2014M10 | E124: 99.94
D125: 2014M11 | E125: 99.98
D126: 2014M12 | E126: 99.92
D127: 2015M01 | E127: 99.86
D128: 2015M02 | E128: 99.95
D129: 2015M03 | E129: 100.03
D130: 2015M04 | E130: 99.75
D131: 2015M05 | E131: 99.82
D132: 2015M06 | E132: 99.88
D133: 2015M07 | E133: 99.95
D134: 2015M08 | E134: 100.11
D135: 2015M09 | E135: 100.14
D136: 2015M10 | E136: 100.07
D137: 2015M11 | E137: 100.14
D138: 2015M12 | E138: 100.29
D139: 2016M01 | E139: 100.71
D140: 2016M02 | E140: 100.83
D141: 2016M03 | E141: 101.08
D142: 2016M04 | E142: 101.44
D143: 2016M05 | E143: 101.58
D144: 2016M06 | E144: 101.72
D145: 2016M07 | E145: 101.77
D146: 2016M08 | E146: 101.86
D147: 2016M09 | E147: 101.84
D148: 2016M10 | E148: 102.96
D149: 2016M11 | E149: 103.13
D150: 2016M12 | E150: 103.31
D151: 2017M01 | E151: 106.01
D152: 2017M02 | E152: 106.29
D153: 2017M03 | E153: 103.93
D154: 2017M04 | E154: 103.65
D155: 2017M05 | E155: 103.8

Sheet Adresy (hidden)
A3: Nemocnica | B3: Mesto | C3: Adresa | H3: Krajská zdravotní
A4: Centrum kardiovaskulárni a transplantační chirurgie | B4: Brno | C4: Pekařská 664/53 | H4: Nemocnice Chomutov, o.z.
A5: Česká zemědelská univerzita va Prahe | B5: Praha | C5: Kamýcka 129
A6: Detská fakultná nemocnica Košice | B6: Košice | C6: Trieda SNP 457/1 | H6: Nemocnice Most, o.z.
A7: Detská fakultná nemocnica s poliklinikou Banská Bystrica | B7: Banská Bystrica | C7: Námestie Ludvíka Svobodu 6818/4 | H7: Nemocnice Teplice
A8: Detská fakultná nemocnica s poliklinikou Bratislava | B8: Bratislava | C8: Limbová 1 | H8: Masarykova nemocnice v Ústí nad Labem, o.z.
A9: Dolnooravská nemocnica s poliklinikou MUDr. L. Nádaši Jégého Dolný Kubín | B9: Dolný Kubín | C9: Nemocničná 1944 | H9: Nemocnice Děčín
A10: Fakultná nemocnica Kráľovské Vinohrady | B10: Praha | C10: Šrobárova 1150/50
A11: Fakultná nemocnica Nitra | B11: Nitra | C11: Špitálska 6
A12: Fakultní nemocnica Olomouc | B12: Olomouc | C12: I.P. Pavolva 185/6 | H12: Zdravotnícky holding Královohradeckého kraje
A13: Fakultná nemocnica s poliklinikou F. D. Roosevelta Banská Bystrica | B13: Banská Bystrica | C13: Námestie Ludvíka Svobodu 6818/4 | H13: Nemocnice Trutnov/Oblastní nemocnice Trutnov
A14: Fakultná nemocnica s poliklinikou J.A.Reimana Prešov | B14: Prešov | C14: Jána Hollého | H14: Nemocnice Náchod/Oblastní nemocnice Náchod, a.s.
A15: Fakultná nemocnica s poliklinikou Nové Zámky | B15: Nové Zámky | C15: Slovenská 11 | H15: Nemocnice Jičín/Oblastní nemocnice Jičín a.s
A16: Fakultná nemocnica s poliklinkou Žilina | B16: Žilina | C16: Vojtecha Spanyola 43 | H16: Nemocnice Dvur Králové nad Labem
A17: Fakultná nemocnica Trenčín | B17: Trenčín | C17: Legionárska 594/2 | H17: Nemocnice Rychnov nad Kněžnou
A18: Fakultná nemocnica Trnava | B18: Trnava | C18: Andreja Žarnova 11
A19: Fakultní nemocnice Brno | B19: Brno | C19: Jihlavská 340/20
A20: Fakultní nemocnice Hradec Králové | B20: Hradec Králové | C20: Sokolská 581 | H20: Nemocnice Pardubického kraje
A21: Fakultní nemocnice Ostrava | B21: Ostrava | C21: 17. listopadu | H21: Pardubická nemocnice
A22: Fakultní nemocnice Plzeň | B22: Plzeň | C22: Dr. E. Beneše 1128/13 | H22: Chrudimská nemocnice
A23: Fakultní nemocnice u sv. Anny v Brně | B23: Brno | C23: Pekařská 53 | H23: Orlickoústecká nemocnice
A24: Fakultní nemocnice v Motole | B24: Praha | C24: V úvalu 84 | H24: Litomyšlská nemocnice
A25: Hornooravská NsP Trstená | B25: Trstená | C25: Nábrežie Ľudovíta Štúra | H25: Svitavská nemocnice
A26: Chrudimská nemocnice | B26: Chrudim | C26: Václavská 570
A27: Institut klinické a experimentální medicíny | B27: Praha | C27: Vídeňská 1959/9 | H27: Nemocnice Olomouckého kraja (Strednomoravské nemocnice)
A28: Inštitút nukleárnej a molekulárnej medicíny | B28: Košice | C28: Rastislavova 785/43 | H28: Nemocnica Prostějov
A29: Karlovarská krajská nemocnice a.s | B29: Karlovy Vary | C29: Bezručova 1190/19 | H29: Nemocnica Přerov
A30: Karlova univerzita v Prahe | B30: Praha | C30: Ovocní trh 650 | H30: Nemocnica Šternberk
A31: Klatovská nemocnice | B31: Klatov | C31: Plzeňská 929 | H31: Nemocnica Šternberk
A32: Krajská nemocnica T.Bati, a.s. | B32: Zlín | C32: Havlíčkovo nábř. 600
A33: Krajská nemocnice Liberec, a.s. | B33: Liberec | C33: Husova 357/10
A34: Královohradecký kraj | B34: Hradec Králové
A35: Královéhradecká lekárna a.s. | B35: Hradec Králové | C35: Veverkova 1343/1
A36: Kroměřížska nemocnica a.s. | B36: Kroměříž | C36: Havlíčkova 660/69
A37: Kysucká nemocnica s poliklinikou Čadca | B37: Čadca | C37: Športovcov
A38: Letecká vojenská nemocnica, a.s. | B38: Košice | C38: Murgašova 1
A39: Liptovská nemocnica s poliklinikou MUDr. Ivana Stodolu Liptovský Mikuláš | B39: Liptovský Mikuláš | C39: Hurbanova
A40: Litomyšlská nemocnice | B40: Litomyšl | C40: J. E. Purkyně 652
A41: Ľubovnianska nemocnica, n.o. | B41: Stará Ľubovňa | C41: Obrancov mieru 3
A42: MANUS - MED, s.r.o., Prievidza | B42: Prievidza | C42: Štefana Závodníka 41
A43: Masarykov onkologický ústav | B43: Brno | C43: Žlutý kopec 543/7
A44: Masarykova nemocnice v Ústí nad Labem, o.z. | B44: Ústí nad Labem | C44: Sociální péčer 12A
A45: Město Jirkov | B45: Námestí Dr.E.Beneše čp.1 | C45: Jirkov
A46: Město Šumperk | B46: Šumperk | C46: náměstí Míru 1
A47: Mestská nemocnica Ostrava | B47: Ostrava | C47: Nemocniční 20
A48: Mestská poliklinika Šurany | B48: Šurany | C48: SNP 2
A49: Národní ústav duševního zdraví | B49: Klecany | C49: Topolová 748
A50: Národný onkologický ústav | B50: Bratislava | C50: Klenová 3019/1
A51: Národný ústav reumatických chorôb | B51: Piešťany | C51: Nábr. I. Krasku 4
A52: Národný ústav srdcových a cievnych chorôb, a.s. | B52: Bratislava | C52: Pod Krásnou hôrkou 1
A53: Národný ústav tuberkulózy, pl'úcnych chorôb a hrudníkovej chirurgie Vyšné Hágy | B53: Vysoké Tatry | C53: Vysoké Tatry 1
A54: Nemocnica České Budejovice, a.s. | B54: České Budějovice | C54: B. Němcové 585/54
A55: Nemocnica Košice-Šaca a.s. 1. súkromná nemocnica | B55: Košice | C55: Košice-Šaca
A56: Nemocnica Nový Jičín a.s. | B56: Nový Jičín | C56: K Nemocnici 76
A57: Nemocnica Poprad, a. s. | B57: Poprad | C57: Banícka
A58: Nemocnica s poliklinikou Brezno, n.o. | B58: Brezno | C58: Banisko 1
A59: Nemocnica s poliklinikou Myjava | B59: Myjava | C59: Staromyjavská 59
A60: Nemocnica s poliklinikou Považská Bystrica | B60: Považská Bystrica | C60: Nemocničná
A61: Nemocnica s poliklinikou Prievidza so sídlom v Bojniciach | B61: Bojnice | C61: Nemocničná
A62: Nemocnica s poliklinikou Žilina | B62: Žilina | C62: V. Spanyola 43
A63: Nemocnica s poliklinikou, n.o. Revúca | B63: Revúca | C63: Litovelská 25,
A64: Nemocnica svätého Michala, a.s. | B64: Bratislava | C64: Cintorínska 2365
A65: Nemocnica Třinec | B65: Třinec | C65: Kaštanova 268
A66: Nemocnica ve Frýdku-Místku, príspevková organizácia | B66: Frýdek-Mýstek | C66: El. Krásnohorské 321
A67: Nemocnice Boskovice | B67: Boskovice | C67: Otakara Kubína 179
A68: Nemocnice Břeclav | B68: U Nemocnice 3066/1 | C68: Břeclav
A69: Nemocnice Česká Lípa | B69: Česká Lípa | C69: Purkyňova 1849
A70: Nemocnice České Budějovice, a.s. | B70: České Budějovice | C70: B. Němcové 54
A71: Nemocnice Český Krumlov | B71: Český Krumlov | C71: Nemocniční 429
A72: Nemocnice Děčín | B72: Dečín | C72: U Nemocnice 604/1
A73: Nemocnice Havlíčkuv Brod | B73: Havlíčkův Brod | C73: Husova 2624
A74: Nemocnice Chomutov, o.z. | B74: Chomutov | C74: Kochova 1185
A75: Nemocnice Jablonec nad Nisou | B75: Jablonec nad Nisou | C75: Nemocniční 4446/15
A76: Nemocnice Jihlava | B76: Jihlava | C76: Vrchlického 59
A77: Nemocnice Jindrichuv Hradec, a.s. | B77: Jindřichův Hradec | C77: U Nemocnice 380/III
A78: Nemocnice Kyjov, příspěvková organizace | B78: Kyjov | C78: Strážovská 1247
A79: Nemocnice Most, o.z. | B79: Most | C79: Jana Evangelisty Purkyně 270/5
A80: Nemocnice následné péče Moravská Třebová | B80: Moravská Třebová | C80: Svitavská 480/25
A81: Nemocnice na Bulovce | B81: Praha | C81: Budínova 67/2
A82: Nemocnice na Homolce | B82: Praha | C82: Roentgenova 37/2
A83: Nemocnice Nové Mesto na Morave | B83: Nové Mesto na Morave | C83: Žďárská 610
A84: Nemocnice Nový Jičín a.s. | B84: Nový Jičín | C84: K Nemocnici 76
A85: Nemocnice Olomouckého kraje, a.s. | B85: Olomouc | C85: Jeremenkova 1191/40a
A86: Nemocnice Pelhřimov | B86: Pelhřimov | C86: Slovanského bratrství 710
A87: Nemocnice Prachatice a.s | B87: Prachatice | C87: Nebahovská 1015
A88: Nemocnice Rudolfa a Stefanie Benešov, a.s. | B88: Benešov | C88: Máchova 400
A89: Nemocnice s poliklinikami n.o Nitra - Topoľčany | B89: Topoľčany | C89: Pavlovova
A90: Nemocnice s poliklinikami n.o. - Nitra/Levice | B90: Levice | C90: 29. augusta 52/2
A91: Nemocnice s poliklinikami, n.o. | B91: Levice | C91: 29. augusta 52/2
A92: Nemocnice s poliklinikou Karviná | B92: Karviná | C92: Vydmuchov 399/5
A93: Nemocnice s poliklinikou v Semilech | B93: Semily | C93: 3. května 421
A94: Nemocnice Strakonice | B94: Strakonice | C94: Radomyšlská 336
A95: Nemocnice Šternberk | B95: Šternberk | C95: Jivavaská 20
A96: Nemocnice Tábor | B96: Tábor | C96: Kpt. Jaroše 2000
A97: Nemocnice Teplice | B97: Teplice | C97: Duchovská 53
A98: Nemocnice TGM Hodonín, p.o. | B98: Hodonín | C98: Purkyňova 2731/11
A99: Nemocnice Třebíč | B99: Třebíč | C99: Purkyňovo nám. 133/2
A100: Nemocnice Třinec | B100: Třinec | C100: Kaštanová 268
A101: Nemocnice Vyškov | B101: Vyškov | C101: Purkyňova 36
A102: Nemocnice Znojmo | B102: Znojmo | C102: MUDr. Jana Janského 2675/11
A103: NsP Dunajská Streda, a.s. | B103: Dunajská Streda | C103: Veľkoblahovská cesta 23
A104: NsP Sv. Jakuba, n.o. Bardejov | B104: Bardejov | C104: Sv. Jakuba 510/21
A105: Obec Zvolenská Slatina | B105: Zvolenská Slatina | C105: Ulica SNP 370/19
A106: Oblastní nemocnice Jičín a.s | B106: Jičín | C106: Bolzanova 512
A107: Oblastní nemocnice Kolín, a.s. | B107: Kolín | C107: Žižkova 146
A108: Oblastní nemocnice Náchod, a.s. | B108: Náchod | C108: Purkyňova 446
A109: Oblastní nemocnice Trutnov, a.s. | B109: Trutnov | C109: Maxima Gorkého 77
A110: Onkologický ústav sv. Alžbety s.r.o. | B110: Bratislava | C110: Heydukova 2157/1
A111: Orlickoústecká nemocnice | B111: Ústí nad Orlicí | C111: Čs. armády 1076
A112: Ostrov Zdraví o.p.s. | B112: Ostrov | C112: U Nemocnice 1161
A113: PANMED, s.r.o. | B113: Nové Zámky | C113: Tatranská 615/48
A114: Pardubická krajská nemocnice a.s | B114: Pardubice | C114: Kyjevská 44
A115: Pardubická nemocnice | B115: Pardubice | C115: Kyjevská 44
A116: Poliklinika Štúrovo | B116: Štúrovo | C116: Jesenského,
A117: Poliklinika Žďár nad Sázavou | B117: Žďár nad Sázavou | C117: Studentská 1699/5
A118: PRO VITAE, n.o. | B118: Gelnica | C118: Nemocničná 33
A119: Psychiatrická liečebňa Havlíčkov Brod | B119: Havlíčkův Brod | C119: Rozkošská 2322
A120: Psychiatrická nemocnica Opava | B120: Opava | C120: Olomoucká 305/88
A121: Psychiatrická nemocnica Philippa Pinela Pezinok | B121: Pezinok | C121: Malacká cesta
A122: PURUS Púchov | B122: Púchov | C122: Pod Lachovcom 1727/55
A123: Revmatologický ústav | B123: Praha | C123: Na Slupi 4
A124: Slezká nemocnice v Opavě p.o. | B124: Opava | C124: Olomoucká 86
A125: Slovenská zdravotnícka univerzita v Bratislave | B125: Limbová 12 | C125: Bratislava
A126: Stodecká nemocnice, a.s. | B126: Stod | C126: Hradecká 600
A127: Stredoslovenský ústav srdcových a cievnych chorôb, a.s. | B127: Banská Bystrica | C127: Cesta k nemocnici 622/1
A128: Svitavská nemocnice | B128: Svitavy | C128: Kollárova 7
A129: Špecializovaná nemocnica sv. Svorada Zobor, n.o. | B129: Nitra | C129: Kláštorská 134
A130: Thomayerova nemocnice | B130: Praha | C130: Vídeňská 800
A131: Uherskohradišťská nemocnice | B131: Uherské Hradiště | C131: Jana Evangelisty Purkyně 365
A132: Umiverzita Palackého v Olomouci | B132: Olomouc | C132: Křížkovského 8
A133: Uniklinika Kardinála Korca v Prievidzi | B133: Prievidza | C133: Nábrežná 5
A134: Univerzita Komenského v Bratislave | B134: Bratislava | C134: Vajanského nábrežie
A135: Univerzitná nemocnica Bratislava | B135: Bratislava | C135: Ružinovská 4810/6
A136: Univerzitná nemocnica Bratislava | B136: Bratislava | C136: Ružinovská 4810/6
A137: Univerzitná nemocnica L. Pasteura Košice | B137: Košice | C137: Trieda SNP 457/1
A138: Univerzitná nemocnica Martin | B138: Martin | C138: Kollárova 2
A139: UPJŠ Košice | B139: Košice | C139: Moyzesova
A140: Úrazová nemocnice v Brne | B140: Brno | C140: Ponávka 6
A141: Ústav hematológie a krvnej transfúzie | B141: Praha | C141: U Nemocnice 1
A142: Ústredná vojenská nemocnica SNP Ružomberok | B142: Ružomberok | C142: Generála Miloša Vesela 21
A143: Virologický ústav SAV | B143: Bratislava | C143: Dúbravská č.9
A144: Vojenská fakultná nemocnica Praha | B144: Praha | C144: U Vojenské nemocnice 1/1200
A145: Vojenská nemocnice Brno | B145: Brno | C145: Zábrdovická 3
A146: Vojenská nemocnice Olomouc | B146: Olomouc | C146: Sušilovo nám. 5
A147: Vsetínska nemocnice | B147: Vsetín | C147: Nemocniční 955
A148: Všeobecná fakultní nemocnice Praha | B148: Praha | C148: U Nemocnice 2
A149: Všeobecná nemocnica s poliklinikou Lučenec n.o. | B149: Lučenec | C149: Námestie republiky
A150: Všeobecná nemocnica s poliklinikou Veľký Krtíš, n.o. | B150: Veľký Krtíš | C150: Nemocničná 1
A151: Východoslovenský onkologický ústav | B151: Košice | C151: Rastislavova 43
A152: Východoslovenský ústav srdcových a cievnych chorôb, a.s. | B152: Košice | C152: Ondavská č.8
A153: Vysoká škola zdravotníctva a sociálnej práce Sv. Alžbety | B153: Bratislava | C153: Námestie 1. Mája
A154: Záchranná služba Košice | B154: Košice | C154: Rastislavova 785/43
A155: Zdravotnícka záchranná služba Pardubického kraje, p.o. | B155: Pardubice | C155: Průmyslová 450
A156: Žilinský samosprávny kraj | B156: Žilina | C156: Komenského 2622/48

Sheet CZKEUR Xchange rate (hidden)
A1: Euro/ECU exchange rates - monthly data [ert_bil_eur_m]
A3: Last update | B3: 2017-07-05T02:04:31
A4: Extracted on | B4: 2017-07-11T16:56:23.267
A5: Source of data | B5: Eurostat
A7: UNIT | B7: National currency | D7: UNIT | E7: National currency
A8: STATINFO | B8: Average | D8: STATINFO | E8: Value at the end of the period
A12: CURRENCY/TIME | B12: Czech koruna | D12: CURRENCY/TIME | E12: Czech koruna
A13: 1999M01 | B13: 35.741 | D13: 1999M01 | E13: 36.827
A14: 1999M02 | B14: 37.8 | D14: 1999M02 | E14: 37.908
A15: 1999M03 | B15: 37.993 | D15: 1999M03 | E15: 38.393
A16: 1999M04 | B16: 37.982 | D16: 1999M04 | E16: 37.643
A17: 1999M05 | B17: 37.685 | D17: 1999M05 | E17: 37.553
A18: 1999M06 | B18: 37.094 | D18: 1999M06 | E18: 36.418
A19: 1999M07 | B19: 36.503 | D19: 1999M07 | E19: 36.664
A20: 1999M08 | B20: 36.413 | D20: 1999M08 | E20: 36.573
A21: 1999M09 | B21: 36.313 | D21: 1999M09 | E21: 35.775
A22: 1999M10 | B22: 36.62 | D22: 1999M10 | E22: 36.612
A23: 1999M11 | B23: 36.372 | D23: 1999M11 | E23: 36.077
A24: 1999M12 | B24: 36.048 | D24: 1999M12 | E24: 36.103
A25: 2000M01 | B25: 36.005 | D25: 2000M01 | E25: 35.79
A26: 2000M02 | B26: 35.685 | D26: 2000M02 | E26: 35.585
A27: 2000M03 | B27: 35.627 | D27: 2000M03 | E27: 36.223
A28: 2000M04 | B28: 36.323 | D28: 2000M04 | E28: 36.324
A29: 2000M05 | B29: 36.549 | D29: 2000M05 | E29: 36.135
A30: 2000M06 | B30: 35.974 | D30: 2000M06 | E30: 35.622
A31: 2000M07 | B31: 35.608 | D31: 2000M07 | E31: 35.424
A32: 2000M08 | B32: 35.356 | D32: 2000M08 | E32: 35.37
A33: 2000M09 | B33: 35.44 | D33: 2000M09 | E33: 35.55
A34: 2000M10 | B34: 35.236 | D34: 2000M10 | E34: 34.869
A35: 2000M11 | B35: 34.609 | D35: 2000M11 | E35: 34.628
A36: 2000M12 | B36: 34.834 | D36: 2000M12 | E36: 35.047
A37: 2001M01 | B37: 35.128 | D37: 2001M01 | E37: 34.69
A38: 2001M02 | B38: 34.64 | D38: 2001M02 | E38: 34.642
A39: 2001M03 | B39: 34.59 | D39: 2001M03 | E39: 34.552
A40: 2001M04 | B40: 34.555 | D40: 2001M04 | E40: 34.526
A41: 2001M05 | B41: 34.375 | D41: 2001M05 | E41: 34.195
A42: 2001M06 | B42: 33.954 | D42: 2001M06 | E42: 33.78
A43: 2001M07 | B43: 33.868 | D43: 2001M07 | E43: 33.98
A44: 2001M08 | B44: 34.05 | D44: 2001M08 | E44: 34.322
A45: 2001M09 | B45: 34.157 | D45: 2001M09 | E45: 33.912
A46: 2001M10 | B46: 33.549 | D46: 2001M10 | E46: 33.62
A47: 2001M11 | B47: 33.291 | D47: 2001M11 | E47: 33.097
A48: 2001M12 | B48: 32.532 | D48: 2001M12 | E48: 31.962
A49: 2002M01 | B49: 32.066 | D49: 2002M01 | E49: 31.902
A50: 2002M02 | B50: 31.789 | D50: 2002M02 | E50: 31.612
A51: 2002M03 | B51: 31.419 | D51: 2002M03 | E51: 31.013
A52: 2002M04 | B52: 30.336 | D52: 2002M04 | E52: 30.64
A53: 2002M05 | B53: 30.552 | D53: 2002M05 | E53: 30.418
A54: 2002M06 | B54: 30.3 | D54: 2002M06 | E54: 29.267
A55: 2002M07 | B55: 29.727 | D55: 2002M07 | E55: 30.33
A56: 2002M08 | B56: 30.796 | D56: 2002M08 | E56: 30.444
A57: 2002M09 | B57: 30.19 | D57: 2002M09 | E57: 30.285
A58: 2002M10 | B58: 30.66 | D58: 2002M10 | E58: 30.778
A59: 2002M11 | B59: 30.752 | D59: 2002M11 | E59: 30.857
A60: 2002M12 | B60: 31.194 | D60: 2002M12 | E60: 31.577
A61: 2003M01 | B61: 31.489 | D61: 2003M01 | E61: 31.572
A62: 2003M02 | B62: 31.641 | D62: 2003M02 | E62: 31.802
A63: 2003M03 | B63: 31.751 | D63: 2003M03 | E63: 31.947
A64: 2003M04 | B64: 31.618 | D64: 2003M04 | E64: 31.433
A65: 2003M05 | B65: 31.387 | D65: 2003M05 | E65: 31.333
A66: 2003M06 | B66: 31.412 | D66: 2003M06 | E66: 31.572
A67: 2003M07 | B67: 31.88 | D67: 2003M07 | E67: 32.22
A68: 2003M08 | B68: 32.287 | D68: 2003M08 | E68: 32.44
A69: 2003M09 | B69: 32.355 | D69: 2003M09 | E69: 31.844
A70: 2003M10 | B70: 31.989 | D70: 2003M10 | E70: 32.035
A71: 2003M11 | B71: 31.974 | D71: 2003M11 | E71: 32.095
A72: 2003M12 | B72: 32.329 | D72: 2003M12 | E72: 32.41
A73: 2004M01 | B73: 32.724 | D73: 2004M01 | E73: 33.323
A74: 2004M02 | B74: 32.857 | D74: 2004M02 | E74: 32.435
A75: 2004M03 | B75: 32.985 | D75: 2004M03 | E75: 32.833
A76: 2004M04 | B76: 32.519 | D76: 2004M04 | E76: 32.543
A77: 2004M05 | B77: 31.976 | D77: 2004M05 | E77: 31.625
A78: 2004M06 | B78: 31.614 | D78: 2004M06 | E78: 31.755
A79: 2004M07 | B79: 31.545 | D79: 2004M07 | E79: 31.693
A80: 2004M08 | B80: 31.634 | D80: 2004M08 | E80: 31.878
A81: 2004M09 | B81: 31.601 | D81: 2004M09 | E81: 31.66
A82: 2004M10 | B82: 31.491 | D82: 2004M10 | E82: 31.535
A83: 2004M11 | B83: 31.286 | D83: 2004M11 | E83: 30.988
A84: 2004M12 | B84: 30.636 | D84: 2004M12 | E84: 30.464
A85: 2005M01 | B85: 30.304 | D85: 2005M01 | E85: 30.14
A86: 2005M02 | B86: 29.957 | D86: 2005M02 | E86: 29.743
A87: 2005M03 | B87: 29.771 | D87: 2005M03 | E87: 29.955
A88: 2005M04 | B88: 30.134 | D88: 2005M04 | E88: 30.499
A89: 2005M05 | B89: 30.22 | D89: 2005M05 | E89: 30.372
A90: 2005M06 | B90: 30.034 | D90: 2005M06 | E90: 30.03
A91: 2005M07 | B91: 30.18 | D91: 2005M07 | E91: 30.15
A92: 2005M08 | B92: 29.594 | D92: 2005M08 | E92: 29.568
A93: 2005M09 | B93: 29.317 | D93: 2005M09 | E93: 29.553
A94: 2005M10 | B94: 29.675 | D94: 2005M10 | E94: 29.595
A95: 2005M11 | B95: 29.266 | D95: 2005M11 | E95: 28.933
A96: 2005M12 | B96: 28.972 | D96: 2005M12 | E96: 29
A97: 2006M01 | B97: 28.722 | D97: 2006M01 | E97: 28.408
A98: 2006M02 | B98: 28.407 | D98: 2006M02 | E98: 28.32
A99: 2006M03 | B99: 28.65 | D99: 2006M03 | E99: 28.595
A100: 2006M04 | B100: 28.501 | D100: 2006M04 | E100: 28.42
A101: 2006M05 | B101: 28.271 | D101: 2006M05 | E101: 28.208
A102: 2006M06 | B102: 28.386 | D102: 2006M06 | E102: 28.493
A103: 2006M07 | B103: 28.448 | D103: 2006M07 | E103: 28.528
A104: 2006M08 | B104: 28.194 | D104: 2006M08 | E104: 28.214
A105: 2006M09 | B105: 28.383 | D105: 2006M09 | E105: 28.326
A106: 2006M10 | B106: 28.29 | D106: 2006M10 | E106: 28.219
A107: 2006M11 | B107: 28.029 | D107: 2006M11 | E107: 27.972
A108: 2006M12 | B108: 27.778 | D108: 2006M12 | E108: 27.485
A109: 2007M01 | B109: 27.84 | D109: 2007M01 | E109: 28.163
A110: 2007M02 | B110: 28.233 | D110: 2007M02 | E110: 28.295
A111: 2007M03 | B111: 28.057 | D111: 2007M03 | E111: 28.01
A112: 2007M04 | B112: 28.015 | D112: 2007M04 | E112: 28.123
A113: 2007M05 | B113: 28.231 | D113: 2007M05 | E113: 28.324
A114: 2007M06 | B114: 28.546 | D114: 2007M06 | E114: 28.718
A115: 2007M07 | B115: 28.359 | D115: 2007M07 | E115: 28.037
A116: 2007M08 | B116: 27.86 | D116: 2007M08 | E116: 27.726
A117: 2007M09 | B117: 27.573 | D117: 2007M09 | E117: 27.532
A118: 2007M10 | B118: 27.335 | D118: 2007M10 | E118: 26.973
A119: 2007M11 | B119: 26.733 | D119: 2007M11 | E119: 26.261
A120: 2007M12 | B120: 26.317 | D120: 2007M12 | E120: 26.628
A121: 2008M01 | B121: 26.05 | D121: 2008M01 | E121: 26.07
A122: 2008M02 | B122: 25.377 | D122: 2008M02 | E122: 25.228
A123: 2008M03 | B123: 25.208 | D123: 2008M03 | E123: 25.335
A124: 2008M04 | B124: 25.064 | D124: 2008M04 | E124: 25.205
A125: 2008M05 | B125: 25.1 | D125: 2008M05 | E125: 25.088
A126: 2008M06 | B126: 24.316 | D126: 2008M06 | E126: 23.893
A127: 2008M07 | B127: 23.528 | D127: 2008M07 | E127: 23.947
A128: 2008M08 | B128: 24.287 | D128: 2008M08 | E128: 24.735
A129: 2008M09 | B129: 24.497 | D129: 2008M09 | E129: 24.66
A130: 2008M10 | B130: 24.768 | D130: 2008M10 | E130: 24.22
A131: 2008M11 | B131: 25.193 | D131: 2008M11 | E131: 25.209
A132: 2008M12 | B132: 26.12 | D132: 2008M12 | E132: 26.875
A133: 2009M01 | B133: 27.169 | D133: 2009M01 | E133: 27.882
A134: 2009M02 | B134: 28.461 | D134: 2009M02 | E134: 28.09
A135: 2009M03 | B135: 27.231 | D135: 2009M03 | E135: 27.388
A136: 2009M04 | B136: 26.774 | D136: 2009M04 | E136: 26.701
A137: 2009M05 | B137: 26.731 | D137: 2009M05 | E137: 26.825
A138: 2009M06 | B138: 26.545 | D138: 2009M06 | E138: 25.882
A139: 2009M07 | B139: 25.793 | D139: 2009M07 | E139: 25.573
A140: 2009M08 | B140: 25.646 | D140: 2009M08 | E140: 25.376
A141: 2009M09 | B141: 25.346 | D141: 2009M09 | E141: 25.164
A142: 2009M10 | B142: 25.861 | D142: 2009M10 | E142: 26.458
A143: 2009M11 | B143: 25.812 | D143: 2009M11 | E143: 26.135
A144: 2009M12 | B144: 26.089 | D144: 2009M12 | E144: 26.473
A145: 2010M01 | B145: 26.133 | D145: 2010M01 | E145: 26.223
A146: 2010M02 | B146: 25.979 | D146: 2010M02 | E146: 25.97
A147: 2010M03 | B147: 25.541 | D147: 2010M03 | E147: 25.44
A148: 2010M04 | B148: 25.308 | D148: 2010M04 | E148: 25.527
A149: 2010M05 | B149: 25.663 | D149: 2010M05 | E149: 25.505
A150: 2010M06 | B150: 25.78 | D150: 2010M06 | E150: 25.691
A151: 2010M07 | B151: 25.328 | D151: 2010M07 | E151: 24.777
A152: 2010M08 | B152: 24.806 | D152: 2010M08 | E152: 24.85
A153: 2010M09 | B153: 24.651 | D153: 2010M09 | E153: 24.6
A154: 2010M10 | B154: 24.531 | D154: 2010M10 | E154: 24.598
A155: 2010M11 | B155: 24.633 | D155: 2010M11 | E155: 24.915
A156: 2010M12 | B156: 25.174 | D156: 2010M12 | E156: 25.061
A157: 2011M01 | B157: 24.449 | D157: 2011M01 | E157: 24.223
A158: 2011M02 | B158: 24.277 | D158: 2011M02 | E158: 24.353
A159: 2011M03 | B159: 24.393 | D159: 2011M03 | E159: 24.543
A160: 2011M04 | B160: 24.301 | D160: 2011M04 | E160: 24.223
A161: 2011M05 | B161: 24.381 | D161: 2011M05 | E161: 24.547
A162: 2011M06 | B162: 24.286 | D162: 2011M06 | E162: 24.345
A163: 2011M07 | B163: 24.335 | D163: 2011M07 | E163: 24.188
A164: 2011M08 | B164: 24.273 | D164: 2011M08 | E164: 24.11
A165: 2011M09 | B165: 24.556 | D165: 2011M09 | E165: 24.754
A166: 2011M10 | B166: 24.841 | D166: 2011M10 | E166: 24.801
A167: 2011M11 | B167: 25.464 | D167: 2011M11 | E167: 25.321
A168: 2011M12 | B168: 25.514 | D168: 2011M12 | E168: 25.787
A169: 2012M01 | B169: 25.531 | D169: 2012M01 | E169: 25.188
A170: 2012M02 | B170: 25.042 | D170: 2012M02 | E170: 24.843
A171: 2012M03 | B171: 24.676 | D171: 2012M03 | E171: 24.73
A172: 2012M04 | B172: 24.809 | D172: 2012M04 | E172: 24.867
A173: 2012M05 | B173: 25.313 | D173: 2012M05 | E173: 25.693
A174: 2012M06 | B174: 25.64 | D174: 2012M06 | E174: 25.64
A175: 2012M07 | B175: 25.447 | D175: 2012M07 | E175: 25.255
A176: 2012M08 | B176: 25.021 | D176: 2012M08 | E176: 24.84
A177: 2012M09 | B177: 24.752 | D177: 2012M09 | E177: 25.141
A178: 2012M10 | B178: 24.939 | D178: 2012M10 | E178: 25.064
A179: 2012M11 | B179: 25.365 | D179: 2012M11 | E179: 25.262
A180: 2012M12 | B180: 25.214 | D180: 2012M12 | E180: 25.151
A181: 2013M01 | B181: 25.563 | D181: 2013M01 | E181: 25.619
A182: 2013M02 | B182: 25.475 | D182: 2013M02 | E182: 25.637
A183: 2013M03 | B183: 25.659 | D183: 2013M03 | E183: 25.74
A184: 2013M04 | B184: 25.841 | D184: 2013M04 | E184: 25.799
A185: 2013M05 | B185: 25.888 | D185: 2013M05 | E185: 25.711
A186: 2013M06 | B186: 25.759 | D186: 2013M06 | E186: 25.949
A187: 2013M07 | B187: 25.944 | D187: 2013M07 | E187: 25.857
A188: 2013M08 | B188: 25.818 | D188: 2013M08 | E188: 25.735
A189: 2013M09 | B189: 25.789 | D189: 2013M09 | E189: 25.73
A190: 2013M10 | B190: 25.662 | D190: 2013M10 | E190: 25.729
A191: 2013M11 | B191: 26.927 | D191: 2013M11 | E191: 27.391
A192: 2013M12 | B192: 27.521 | D192: 2013M12 | E192: 27.427
A193: 2014M01 | B193: 27.485 | D193: 2014M01 | E193: 27.5
A194: 2014M02 | B194: 27.444 | D194: 2014M02 | E194: 27.344
A195: 2014M03 | B195: 27.395 | D195: 2014M03 | E195: 27.442
A196: 2014M04 | B196: 27.45 | D196: 2014M04 | E196: 27.454
A197: 2014M05 | B197: 27.437 | D197: 2014M05 | E197: 27.471
A198: 2014M06 | B198: 27.45 | D198: 2014M06 | E198: 27.453
A199: 2014M07 | B199: 27.458 | D199: 2014M07 | E199: 27.57
A200: 2014M08 | B200: 27.816 | D200: 2014M08 | E200: 27.725
A201: 2014M09 | B201: 27.599 | D201: 2014M09 | E201: 27.5
A202: 2014M10 | B202: 27.588 | D202: 2014M10 | E202: 27.77
A203: 2014M11 | B203: 27.667 | D203: 2014M11 | E203: 27.652
A204: 2014M12 | B204: 27.64 | D204: 2014M12 | E204: 27.735
A205: 2015M01 | B205: 27.895 | D205: 2015M01 | E205: 27.797
... 29 more rows
